account_party,address,code,date,document_number,expense_code_name,expense_code_name_short,id,party_cell,party_cell_code,party_cell_geoobject,purpose,source_bank_account_number,source_bank_account_type,sum,target_legal_personality,target_legal_personality_code,target_type
ГОЛОС,"Київ, вулиця Миколи Лєскова, 9",70,2019-12-28,б\н,Банківські послуги,Інші витрати,297855,Рівненська обласна організація,43315659,Рівненська область,Комісія за вихідні перекази в нац. Валюті,UA583808050000000026006665221,current,18.00,"АТ ""Райффайзен банк Аваль""",14305909,юридична особа
ГОЛОС,"Київ, вулиця Миколи Лєскова, 9",70,2019-12-28,б\н,Банківські послуги,Інші витрати,297854,Рівненська обласна організація,43315659,Рівненська область,Комісія за ведення поточного рахунку,UA583808050000000026006665221,current,250.00,"АТ ""Райффайзен банк Аваль""",14305909,юридична особа
ГОЛОС,"Київ, вулиця Миколи Лєскова, 9",70,2019-12-28,bn,Банківські послуги,Інші витрати,297843,Львівська обласна організація,43311440,Львівська область,"Комісія за ведення поточних рахунків клієнта ЛОТО ПОЛІТИЧНОЇ ПАРТІЇ""ГОЛОС"" в дирек.13-Львівська за період з 09.12.19 по 27.12.19, безПДВ",UA893808050000000026001668193,current,250.00,"АТ ""Райффайзен банк Аваль""",14305909,юридична особа
ГОЛОС,"Київ, вулиця Миколи Лєскова, 9",70,2019-12-28,bn,Банківські послуги,Інші витрати,297842,Львівська обласна організація,43311440,Львівська область,"Комісія за вих перекази в нац валюті(Клієнт-Банк) з 09.12.19 по 27.12.19 по рах NoUA893808050000000026001668193(UAH) 3*2=6 грн,без ПДВ",UA893808050000000026001668193,current,6.00,"АТ ""Райффайзен банк Аваль""",14305909,юридична особа
ГОЛОС,"Київ, вулиця Миколи Лєскова, 9",70,2019-12-28,bn,Банківські послуги,Інші витрати,297841,Львівська обласна організація,43311440,Львівська область,"Комісія за вих перекази в нац валюті на папер носії з 09.12.19 по 27.12.19 по рахNoUA893808050000000026001668193(UAH) 1*20=20грн, без ПДВ",UA893808050000000026001668193,current,20.00,"АТ ""Райффайзен банк Аваль""",14305909,юридична особа
ГОЛОС,"Кіровоградська область, Кропивницький",70,2019-12-28,bn,Банківські послуги,Інші витрати,297835,Кіровоградська обласна організація,43307408,Кіровоградська область,Комісія банка,UA87380805000000002664516,current,8.00,"АТ ""Райффайзен банк Аваль""",14305909,юридична особа
ГОЛОС,"Кіровоградська область, Кропивницький",70,2019-12-28,bn,Банківські послуги,Інші витрати,297834,Кіровоградська обласна організація,43307408,Кіровоградська область,Комісія за ведення поточних рахунків,UA87380805000000002664516,current,250.00,"АТ ""Райффайзен банк Аваль""",14305909,юридична особа
ГОЛОС,"Київ, вулиця Миколи Лєскова, 9",70,2019-12-28,бн,Банківські послуги,Інші витрати,297825,Київська міська організація,43204012,Київ,Комісія за вих. перекази в нац.валюті,UA673808050000000026009659546,current,2.00,"АТ ""Райффайзен банк Аваль""",14305909,юридична особа
ГОЛОС,"Київ, вулиця Миколи Лєскова, 9",70,2019-12-28,бн,Банківські послуги,Інші витрати,297824,Київська міська організація,43204012,Київ,Комісія за ведення поточних рахунків,UA673808050000000026009659546,current,250.00,"АТ ""Райффайзен банк Аваль""",14305909,юридична особа
ГОЛОС,"Київ, вулиця Миколи Лєскова, 9",70,2019-12-28,bn,Банківські послуги,Інші витрати,297821,Центральний офіс,39651598,Україна,"Комісія за ведення поточних рахунків клієнта ПП ""ГОЛОС"" в дирек. 26-Київ за період з 29.11.19 по 27.12.19, без ПДВ",UA323808050000000026005643697,current,250.00,"АТ ""Райффайзен банк Аваль""",14305909,юридична особа
ГОЛОС,"Київ, вулиця Миколи Лєскова, 9",70,2019-12-28,bn,Банківські послуги,Інші витрати,297820,Центральний офіс,39651598,Україна,"Комісія за вих перекази в нац валюті (Клієнт-Банк) з 29.11.19 по 27.12.19 по рах №UA323808050000000026005643697(UAH) 45*2=90 грн, без ПДВ",UA323808050000000026005643697,current,90.00,"АТ ""Райффайзен банк Аваль""",14305909,юридична особа
ГОЛОС,"Київ, вулиця Володимирська, 69",63,2019-12-27,324,Податок на доходи,Податкові платежі,297819,Центральний офіс,39651598,Україна,*;101;39651598;11010400;податок на доходи з фіз.осіб Севернюк О.П. інші ніж заробітна плата ;;;,UA323808050000000026005643697,current,135.00,УДКСУ у Голосіївському районі м. Києва,38039757,юридична особа
ГОЛОС,"Київ, вулиця Володимирська, 69",61,2019-12-27,323,Військовий збір,Податкові платежі,297818,Центральний офіс,39651598,Україна,*;101;39651598;військовий збір з фіз.особи Севернюк О.П..;;;,UA323808050000000026005643697,current,11.25,УДКСУ у Голосіївському районі м. Києва,38039757,юридична особа
ГОЛОС,"Київ, вулиця Володимирська, 69",61,2019-12-27,322,Військовий збір,Податкові платежі,297817,Центральний офіс,39651598,Україна,*;101;39651598;військовий збір з фіз.особи Шиляєв О.Л..;;;,UA323808050000000026005643697,current,60.00,УДКСУ у Голосіївському районі м. Києва,38039757,юридична особа
ГОЛОС,"Київ, вулиця Володимирська, 69",63,2019-12-27,321,Податок на доходи,Податкові платежі,297816,Центральний офіс,39651598,Україна,*;101;39651598;11010400;податок на доходи з фіз.осіб Шиляєв О.Л. інші ніж заробітна плата ;;;,UA323808050000000026005643697,current,720.00,УДКСУ у Голосіївському районі м. Києва,38039757,юридична особа
ГОЛОС,"Івано-Франківська область, Івано-Франківськ, вулиця Євгена Коновальця, 227А",79,2019-12-27,316,"Оренда будинків і приміщень та експлуатаційні витрати (прибирання, страхування орендованих будинків, охорона, сигналізація, ремонт, вивіз сміття, тощо)",Оренда нерухомості,297814,Центральний офіс,39651598,Україна,"Оплата за оренду офісного приміщення згідно договору №435/пп від 14.11.2019 р. В т.ч. ПДВ (20%) 200,00",UA323808050000000026005643697,current,1200.00,"ТОВ ""ТДВ груп""",40898376,юридична особа
ГОЛОС,"Хмельницька область, Хмельницький",79,2019-12-27,319,"Оренда будинків і приміщень та експлуатаційні витрати (прибирання, страхування орендованих будинків, охорона, сигналізація, ремонт, вивіз сміття, тощо)",Оренда нерухомості,297749,Центральний офіс,39651598,Україна,"оплата за оренду офісного приміщення згідно договору оренди від 15.12.2019. , Севернюк О.П. Без ПДВ.",UA323808050000000026005643697,current,603.75,Севернюк Олеся Петрівна,,фізична особа
ГОЛОС,"Рівненська область, Рівне",79,2019-12-27,320,"Оренда будинків і приміщень та експлуатаційні витрати (прибирання, страхування орендованих будинків, охорона, сигналізація, ремонт, вивіз сміття, тощо)",Оренда нерухомості,297748,Центральний офіс,39651598,Україна,оплата за оренду офісного приміщення згідно договору від 08.10.2019 р. Шиляєв О.Л. Без ПДВ .,UA323808050000000026005643697,current,3220.00,Шиляєв Олександр Леонідович,,фізична особа
ГОЛОС,"Київ, вулиця Миколи Лєскова, 9",70,2019-12-26,1,Банківські послуги,Інші витрати,297840,Львівська обласна організація,43311440,Львівська область,"Комісія за відкриття поточного рахунку, без ПДВ",UA893808050000000026001668193,current,50.00,"АТ ""Райффайзен банк Аваль""",14305909,юридична особа
ГОЛОС,"Київська обл., Ірпінь, вулиця Давидчука, 69",82,2019-12-26,1,"Гонорари, в тому числі за надані консультаційні послуги","Гонорари, в тому числі за надані консультаційні послуги",297826,Київська обласна організація,43307785,Київська область,За послуги згідно договору №1 від 24.12.2019 р.,UA373348510000026005962508231,current,30485.00,Скорик-Шкарівська Михайлина Михайлівна,,фізична особа
ГОЛОС,"Львівська область, Львів, вулиця Тобілевича, 8",79,2019-12-26,314,"Оренда будинків і приміщень та експлуатаційні витрати (прибирання, страхування орендованих будинків, охорона, сигналізація, ремонт, вивіз сміття, тощо)",Оренда нерухомості,297815,Центральний офіс,39651598,Україна,"оплата за оренду офісного приміщення згідно договору №б/н від 10.10.2019 р. Без ПДВ.В т.ч. ПДВ (20%) 1580,67",UA323808050000000026005643697,current,9484.00,"ПАТ ""Троттола""",20835669,юридична особа
ГОЛОС,"Кіровоградська область, Кропивницький",79,2019-12-26,315,"Оренда будинків і приміщень та експлуатаційні витрати (прибирання, страхування орендованих будинків, охорона, сигналізація, ремонт, вивіз сміття, тощо)",Оренда нерухомості,297747,Центральний офіс,39651598,Україна,Оренда приміщення за Договором від 08.10.2019 р. Без ПДВ,UA323808050000000026005643697,current,1555.00,Пушкарьов Олександр Степанович,,фізична особа
ГОЛОС,"Черкаська область, Черкаси, вулиця Надпільна, 351, 7",79,2019-12-26,317,"Оренда будинків і приміщень та експлуатаційні витрати (прибирання, страхування орендованих будинків, охорона, сигналізація, ремонт, вивіз сміття, тощо)",Оренда нерухомості,297746,Центральний офіс,39651598,Україна,оплата за оренду офісного приміщення згідно договору від 18.11.2019 р. Без ПДВ.,UA323808050000000026005643697,current,2570.00,Кошева Юлія Павлівна,,фізична особа
ГОЛОС,"Київська обл., Вишгородський район, Вишгород, вулиця Симоненка, 4в, 164",82,2019-12-26,313,"Гонорари, в тому числі за надані консультаційні послуги","Гонорари, в тому числі за надані консультаційні послуги",297745,Центральний офіс,39651598,Україна,оплата за надання послуг згідно договору № 28/12п від 28.10.2019 р. Без ПДВ.,UA323808050000000026005643697,current,24000.00,Кривдик Остап Володимирович,,фізична особа
ГОЛОС,"Полтавська область, Оржицький район",84,2019-12-26,310,"Заробітна плата, премії","Заробітна плата, лікарняні, вагітності, відрядження, компенсації",297744,Центральний офіс,39651598,Україна,"Заробітна плата та аванси ПОЛІТИЧНА ПАРТІЯ ""ГОЛОС"" згiдно вiдомостi N 7 вiд 25.12.2019 за 2 пол. 12/2019 р.",UA323808050000000026005643697,current,13095.28,Макаренко Оксана Володимирівна,,фізична особа
ГОЛОС,"Київська обл., Києво-Святошинський район, Софіївська Борщагівка",84,2019-12-26,310,"Заробітна плата, премії","Заробітна плата, лікарняні, вагітності, відрядження, компенсації",297743,Центральний офіс,39651598,Україна,"Заробітна плата та аванси ПОЛІТИЧНА ПАРТІЯ ""ГОЛОС"" згiдно вiдомостi N 7 вiд 25.12.2019 за 2 пол. 12/2019 р.",UA323808050000000026005643697,current,13095.28,Харченко Наталія Олегівна,,фізична особа
ГОЛОС,Київ,84,2019-12-26,310,"Заробітна плата, премії","Заробітна плата, лікарняні, вагітності, відрядження, компенсації",297742,Центральний офіс,39651598,Україна,"Заробітна плата та аванси ПОЛІТИЧНА ПАРТІЯ ""ГОЛОС"" згiдно вiдомостi N 7 вiд 25.12.2019 за 2 пол. 12/2019 р.",UA323808050000000026005643697,current,6285.72,Ковриженко Денис Сергійович,,фізична особа
ГОЛОС,Київ,84,2019-12-26,310,"Заробітна плата, премії","Заробітна плата, лікарняні, вагітності, відрядження, компенсації",297741,Центральний офіс,39651598,Україна,"Заробітна плата та аванси ПОЛІТИЧНА ПАРТІЯ ""ГОЛОС"" згiдно вiдомостi N 7 вiд 25.12.2019 за 2 пол. 12/2019 р.",UA323808050000000026005643697,current,6285.72,Вибрановський Роман Богданович,,фізична особа
ГОЛОС,"Львівська область, Львів",84,2019-12-26,310,"Заробітна плата, премії","Заробітна плата, лікарняні, вагітності, відрядження, компенсації",297740,Центральний офіс,39651598,Україна,"Заробітна плата та аванси ПОЛІТИЧНА ПАРТІЯ ""ГОЛОС"" згiдно вiдомостi N 7 вiд 25.12.2019 за 2 пол. 12/2019 р.",UA323808050000000026005643697,current,5238.09,Дух Ярема Володимирович,,фізична особа
ГОЛОС,Київ,84,2019-12-26,310,"Заробітна плата, премії","Заробітна плата, лікарняні, вагітності, відрядження, компенсації",297739,Центральний офіс,39651598,Україна,"Заробітна плата та аванси ПОЛІТИЧНА ПАРТІЯ ""ГОЛОС"" згiдно вiдомостi N 7 вiд 25.12.2019 за 2 пол. 12/2019 р.",UA323808050000000026005643697,current,3928.57,Малицька Аліса Юріївна,,фізична особа
ГОЛОС,"Київ, вулиця Братиславська, 26, 55",82,2019-12-26,311,"Гонорари, в тому числі за надані консультаційні послуги","Гонорари, в тому числі за надані консультаційні послуги",297738,Центральний офіс,39651598,Україна,оплата за надання послуг згідно договору №02/09/2019 від 02.09.2019 р. Без ПДВ.,UA323808050000000026005643697,current,12000.00,Срібняк Ольга Олегівна,,фізична особа
ГОЛОС,"Київ, проспект Перемоги, 17, 115",82,2019-12-26,312,"Гонорари, в тому числі за надані консультаційні послуги","Гонорари, в тому числі за надані консультаційні послуги",297737,Центральний офіс,39651598,Україна,оплата за надання послуг згідно договору № 02/09/2019 від 02.09.2019. Без ПДВ.,UA323808050000000026005643697,current,12000.00,Симоненко Злата Віталіївна,,фізична особа
ГОЛОС,"Кіровоградська область, Кропивницький, вулиця Волкова, 4, 1",82,2019-12-26,308,"Гонорари, в тому числі за надані консультаційні послуги","Гонорари, в тому числі за надані консультаційні послуги",297736,Центральний офіс,39651598,Україна,оплата за надання послуг згідно договору №23/10/2019 від 23.10.2019р. Без ПДВ.,UA323808050000000026005643697,current,24000.00,Іванченко Максим Юрійович,,фізична особа
ГОЛОС,"Львівська область, Яворівський район, Паланки",82,2019-12-26,309,"Гонорари, в тому числі за надані консультаційні послуги","Гонорари, в тому числі за надані консультаційні послуги",297735,Центральний офіс,39651598,Україна,оплата за надання послуг згідно договору № 29/08/2019 від 29.08.2019р. Без ПДВ.,UA323808050000000026005643697,current,48000.00,Шуварська Катерина Валеріївна,,фізична особа
ГОЛОС,"Київ, вулиця Шолуденка, 33/19",62,2019-12-25,305,Сплата ЄСВ,Податкові платежі,297813,Центральний офіс,39651598,Україна,*;101;39651598;ЕСВ 22% на з/п за 2 пол.грудня 2019;;;,UA323808050000000026005643697,current,13098.51,ГУ ДФС у м. Києві,43141267,юридична особа
ГОЛОС,"Київ, вулиця Володимирська, 69",63,2019-12-25,306,Податок на доходи,Податкові платежі,297812,Центральний офіс,39651598,Україна,*;101;39651598;11010100;податок на доходи фіз.осіб з заробітної плати за 2 пол.12/2019;;;,UA323808050000000026005643697,current,10716.97,УДКСУ у Голосіївському районі м. Києва,38039757,юридична особа
ГОЛОС,"Київ, вулиця Володимирська, 69",61,2019-12-25,307,Військовий збір,Податкові платежі,297811,Центральний офіс,39651598,Україна,*;101;39651598;військовий збір з зарплати за 2 пол. 12/2019 р.;;;,UA323808050000000026005643697,current,893.07,УДКСУ у Голосіївському районі м. Києва,38039757,юридична особа
ГОЛОС,"Київ, вулиця Пирогова, 7",70,2019-12-25,309,Банківські послуги,Інші витрати,297810,Центральний офіс,39651598,Україна,"Комiсiя банку за зарахування коштiв на СКР працiвникiв ПОЛІТИЧНА ПАРТІЯ ""ГОЛОС"" - Заробітна плата та аванси згiдно вiдомостi N 7 вiд 25.12.2019",UA323808050000000026005643697,current,335.50,"Київська філія АТ ""Райффайзен банк Аваль""",23494105,юридична особа
ГОЛОС,"Київська обл., Васильків, вулиця Польова, 32",82,2019-12-24,303,"Гонорари, в тому числі за надані консультаційні послуги","Гонорари, в тому числі за надані консультаційні послуги",297734,Центральний офіс,39651598,Україна,оплата за надання послуг згідно договору № 01/10п від 01.10.2019 р. Без ПДВ,UA323808050000000026005643697,current,27632.00,Лопатко Оксана Юріївна,,фізична особа
ГОЛОС,"Львівська область, Львів",82,2019-12-23,3,"Гонорари, в тому числі за надані консультаційні послуги","Гонорари, в тому числі за надані консультаційні послуги",297836,Львівська обласна організація,43311440,Львівська область,оплата за вчин.нотаріальної дії зг.рах.No226 від 17.12.2019,UA893808050000000026001668193,current,500.00,Синюк Світлана Вікторівна,3237619779,фізична особа
ГОЛОС,"Київ, вулиця Миколи Лєскова, 9",70,2019-12-23,1EBQ,Банківські послуги,Інші витрати,297808,Центральний офіс,39651598,Україна,"Комісія за довідку про рух коштів, залишок коштів та ін. інформація по поточному рахунку-по операціях давністю до 1 року, без ПДВ- 2шт",UA323808050000000026005643697,current,150.00,"АТ ""Райффайзен банк Аваль""",14305909,юридична особа
ГОЛОС,"Київ, вулиця Миколи Лєскова, 9",70,2019-12-23,022Х_3,Банківські послуги,Інші витрати,297807,Центральний офіс,39651598,Україна,"Комісія за відкриття поточного рахунку, без ПДВ",UA323808050000000026005643697,current,50.00,"АТ ""Райффайзен банк Аваль""",14305909,юридична особа
ГОЛОС,"Київ, вулиця Миколи Лєскова, 9",70,2019-12-23,022Х_2,Банківські послуги,Інші витрати,297806,Центральний офіс,39651598,Україна,"Комісія за відкриття поточного рахунку, без ПДВ",UA323808050000000026005643697,current,50.00,"АТ ""Райффайзен банк Аваль""",14305909,юридична особа
ГОЛОС,"Київ, вулиця Миколи Лєскова, 9",70,2019-12-23,022Х_1,Банківські послуги,Інші витрати,297805,Центральний офіс,39651598,Україна,"Комісія за відкриття поточного рахунку, без ПДВ",UA323808050000000026005643697,current,50.00,"АТ ""Райффайзен банк Аваль""",14305909,юридична особа
ГОЛОС,"Київ, вулиця Миколи Лєскова, 9",70,2019-12-23,022Х,Банківські послуги,Інші витрати,297804,Центральний офіс,39651598,Україна,"Комісія за відкриття поточного рахунку, без ПДВ",UA323808050000000026005643697,current,50.00,"АТ ""Райффайзен банк Аваль""",14305909,юридична особа
ГОЛОС,"Київ, вулиця Кирилівська, 102",60,2019-12-20,2,Інші податки,Податкові платежі,297839,Львівська обласна організація,43311440,Львівська область,"Сплата рахунку NoЛВТ43311440 від 16.12.2019 в т.ч. ПДВ2,00 грн. за обробкуданих та видачу сертифікатів КЕП та постачання КП ""ПК""Варта""",UA893808050000000026001668193,current,332.00,"ТОВ ""Центр сертифікації ключів ""Україна""",36865753,юридична особа
ГОЛОС,"Львівська область, Львів, вулиця Водогінна, 2",72,2019-12-20,1,"Придбання, ремонт офісної техніки та програмного забезпечення (Бухгалтерські програми, Ліга.закон, домени)",Придбання офісної техніки та програмного забезпечення,297838,Львівська обласна організація,43311440,Львівська область,"оплата за постач.компонентів програмиM.E.Doc зг.рах.МД-2456від 16,12,2019ЄДРПО43311440 ЛОТО ПП""ГОЛОС"" БезПДВ.",UA893808050000000026001668193,current,902.00,"ПП ""Програми для бізнесу""",37444433,юридична особа
ГОЛОС,Київ,82,2019-12-18,300,"Гонорари, в тому числі за надані консультаційні послуги","Гонорари, в тому числі за надані консультаційні послуги",297733,Центральний офіс,39651598,Україна,Оплата за вчинення нотаріальних дій згідно рахунку №386 від 13.12.2019р. Без ПДВ.,UA323808050000000026005643697,current,1100.00,Мазепіна Валентина Георгіївна,,фізична особа
ГОЛОС,Київ,82,2019-12-18,301,"Гонорари, в тому числі за надані консультаційні послуги","Гонорари, в тому числі за надані консультаційні послуги",297732,Центральний офіс,39651598,Україна,Оплата за вчинення нотаріальних дій згідно рахунку №388 від 17.12.2019 р. Без ПДВ,UA323808050000000026005643697,current,1100.00,Мазепіна Валентина Георгіївна,,фізична особа
ГОЛОС,"Рівненська область, Рівне",79,2019-12-17,9,"Оренда будинків і приміщень та експлуатаційні витрати (прибирання, страхування орендованих будинків, охорона, сигналізація, ремонт, вивіз сміття, тощо)",Оренда нерухомості,297848,Рівненська обласна організація,43315659,Рівненська область,за оренду приміщення за грудень 2019 р.,UA583808050000000026006665221,current,10730.65,Шиляєв Олександр Леонідович,,фізична особа
ГОЛОС,"Рівненська область, Рівне",79,2019-12-17,8,"Оренда будинків і приміщень та експлуатаційні витрати (прибирання, страхування орендованих будинків, охорона, сигналізація, ремонт, вивіз сміття, тощо)",Оренда нерухомості,297847,Рівненська обласна організація,43315659,Рівненська область,за оренду приміщення за листопад 2019 р.,UA583808050000000026006665221,current,4292.26,Шиляєв Олександр Леонідович,,фізична особа
ГОЛОС,"Київ, вулиця Богдана Хмельницького, 55",82,2019-12-17,298,"Гонорари, в тому числі за надані консультаційні послуги","Гонорари, в тому числі за надані консультаційні послуги",297803,Центральний офіс,39651598,Україна,Оплата за надання консультаційних послуг з правових питань згідно рахунку № 1 від 13.12.2019 р. Без ПДВ.,UA323808050000000026005643697,current,14500.00,"Адвокатське обʼєднання ""Ай ді пі груп""",43388859,юридична особа
ГОЛОС,"Рівненська область, Рівне, вулиця Яворницького, 34",63,2019-12-16,5,Податок на доходи,Податкові платежі,297853,Рівненська обласна організація,43315659,Рівненська область,*;101;43315659; приб.податок з оренди приміщення за грудень 2019 р.(орендодавець фіз. особа Шиляєв О.Л.),UA583808050000000026006665221,current,2399.40,ГУ ДКСУ у Рівненській області,38012714,юридична особа
ГОЛОС,"Рівненська область, Рівне, вулиця Яворницького, 34",61,2019-12-16,6,Військовий збір,Податкові платежі,297852,Рівненська обласна організація,43315659,Рівненська область,*;101;43315659; Військовий збір з оренди приміщення за грудень 2019 р.(орендодавець фіз. особа Шиляєв О.Л.),UA583808050000000026006665221,current,199.95,ГУ ДКСУ у Рівненській області,38012714,юридична особа
ГОЛОС,"Рівненська область, Рівне, вулиця Яворницького, 34",63,2019-12-16,2,Податок на доходи,Податкові платежі,297851,Рівненська обласна організація,43315659,Рівненська область,*;101;43315659; приб.податок з оренди приміщення за листопад 2019 р.(орендодавець фіз. особа Шиляє,UA583808050000000026006665221,current,959.76,ГУ ДКСУ у Рівненській області,38012714,юридична особа
ГОЛОС,"Рівненська область, Рівне, вулиця Яворницького, 34",61,2019-12-16,3,Військовий збір,Податкові платежі,297850,Рівненська обласна організація,43315659,Рівненська область,*;101;43315659; Військовий збір з оренди приміщення за листопад 2019 р.(орендодавець фіз. особа Шиляєв О.Л.),UA583808050000000026006665221,current,79.98,ГУ ДКСУ у Рівненській області,38012714,юридична особа
ГОЛОС,"Рівненська область, Рівне",82,2019-12-16,7,"Гонорари, в тому числі за надані консультаційні послуги","Гонорари, в тому числі за надані консультаційні послуги",297846,Рівненська обласна організація,43315659,Рівненська область,за послуги згідно рах. №1 від 16.12.2019р.,UA583808050000000026006665221,current,20000.00,Онофрійчук Володимир Борисович,,фізична особа
ГОЛОС,"Рівненська область, Рівне",79,2019-12-16,4,"Оренда будинків і приміщень та експлуатаційні витрати (прибирання, страхування орендованих будинків, охорона, сигналізація, ремонт, вивіз сміття, тощо)",Оренда нерухомості,297845,Рівненська обласна організація,43315659,Рівненська область,за оренду приміщення за грудень 2019 р.,UA583808050000000026006665221,current,10730.65,Шиляєв Олександр Леонідович,,фізична особа
ГОЛОС,"Рівненська область, Рівне",79,2019-12-16,1,"Оренда будинків і приміщень та експлуатаційні витрати (прибирання, страхування орендованих будинків, охорона, сигналізація, ремонт, вивіз сміття, тощо)",Оренда нерухомості,297844,Рівненська обласна організація,43315659,Рівненська область,за оренду приміщення за листопад 2019 р.,UA583808050000000026006665221,current,4292.26,Шиляєв Олександр Леонідович,,фізична особа
ГОЛОС,"Львівська область, Львів, вулиця Джохара Дудаєва, 19",60,2019-12-16,1,Інші податки,Податкові платежі,297837,Львівська обласна організація,43311440,Львівська область,"101;43311440;22010300;;;адміністративний збір за проведення державної реєстрації юридичних осіб,фізичних осіб підприємців та громадських формувань",UA893808050000000026001668193,current,580.00,УДКСУ у Галицькому районі м. Львова,38007573,юридична особа
ГОЛОС,"Київ, вулиця Пирогова, 7",70,2019-12-16,298,Банківські послуги,Інші витрати,297802,Центральний офіс,39651598,Україна,"Комiсiя банку за зарахування коштiв на СКР працiвникiв ПОЛІТИЧНА ПАРТІЯ ""ГОЛОС"" - Заробітна плата та аванси згiдно вiдомостi N 6 вiд 16.12.2019",UA323808050000000026005643697,current,301.00,"Київська філія АТ ""Райффайзен банк Аваль""",23494105,юридична особа
ГОЛОС,"Київ, вулиця Володимирська, 69",63,2019-12-16,299,Податок на доходи,Податкові платежі,297801,Центральний офіс,39651598,Україна,*;101;39651598;11010100;ПДФО з заробітної плати за 1 пол. 12/2019 року;;;,UA323808050000000026005643697,current,9614.92,УДКСУ у Голосіївському районі м. Києва,38039757,юридична особа
ГОЛОС,"Київ, вулиця Шолуденка, 33/19",62,2019-12-16,300,Сплата ЄСВ,Податкові платежі,297800,Центральний офіс,39651598,Україна,*;101;39651598;ЄСВ 22% на з/п за 1 пол. грудня 2019 року;;;,UA323808050000000026005643697,current,11751.58,ГУ ДФС у м. Києві,43141267,юридична особа
ГОЛОС,"Київ, вулиця Володимирська, 69",61,2019-12-16,301,Військовий збір,Податкові платежі,297799,Центральний офіс,39651598,Україна,*; 101; 39651598;11011000;військовий збір з з/п за 1 пол. 12/2019 року;;;,UA323808050000000026005643697,current,801.25,УДКСУ у Голосіївському районі м. Києва,38039757,юридична особа
ГОЛОС,"Полтавська область, Оржицький район",84,2019-12-16,297,"Заробітна плата, премії","Заробітна плата, лікарняні, вагітності, відрядження, компенсації",297731,Центральний офіс,39651598,Україна,"Заробітна плата за 1 пол. 12/2019 р. ПОЛІТИЧНА ПАРТІЯ ""ГОЛОС"" згiдно вiдомостi N 6 вiд 16.12.2019",UA323808050000000026005643697,current,11904.80,Макаренко Оксана Володимирівна,,фізична особа
ГОЛОС,"Київська обл., Києво-Святошинський район, Софіївська Борщагівка",84,2019-12-16,297,"Заробітна плата, премії","Заробітна плата, лікарняні, вагітності, відрядження, компенсації",297730,Центральний офіс,39651598,Україна,"Заробітна плата за 1 пол. 12/2019 р. ПОЛІТИЧНА ПАРТІЯ ""ГОЛОС"" згiдно вiдомостi N 6 вiд 16.12.2019",UA323808050000000026005643697,current,11904.80,Харченко Наталія Олегівна,,фізична особа
ГОЛОС,Київ,84,2019-12-16,297,"Заробітна плата, премії","Заробітна плата, лікарняні, вагітності, відрядження, компенсації",297729,Центральний офіс,39651598,Україна,"Заробітна плата за 1 пол. 12/2019 р. ПОЛІТИЧНА ПАРТІЯ ""ГОЛОС"" згiдно вiдомостi N 6 вiд 16.12.2019",UA323808050000000026005643697,current,3571.43,Малицька Аліса Юріївна,,фізична особа
ГОЛОС,Київ,84,2019-12-16,297,"Заробітна плата, премії","Заробітна плата, лікарняні, вагітності, відрядження, компенсації",297728,Центральний офіс,39651598,Україна,"Заробітна плата за 1 пол. 12/2019 р. ПОЛІТИЧНА ПАРТІЯ ""ГОЛОС"" згiдно вiдомостi N 6 вiд 16.12.2019",UA323808050000000026005643697,current,5714.28,Ковриженко Денис Сергійович,,фізична особа
ГОЛОС,"Львівська область, Львів",84,2019-12-16,297,"Заробітна плата, премії","Заробітна плата, лікарняні, вагітності, відрядження, компенсації",297727,Центральний офіс,39651598,Україна,"Заробітна плата за 1 пол. 12/2019 р. ПОЛІТИЧНА ПАРТІЯ ""ГОЛОС"" згiдно вiдомостi N 6 вiд 16.12.2019",UA323808050000000026005643697,current,4761.91,Дух Ярема Володимирович,,фізична особа
ГОЛОС,Київ,84,2019-12-16,297,"Заробітна плата, премії","Заробітна плата, лікарняні, вагітності, відрядження, компенсації",297726,Центральний офіс,39651598,Україна,"Заробітна плата за 1 пол. 12/2019 р. ПОЛІТИЧНА ПАРТІЯ ""ГОЛОС"" згiдно вiдомостi N 6 вiд 16.12.2019",UA323808050000000026005643697,current,5142.85,Вибрановський Роман Богданович,,фізична особа
ГОЛОС,Київ,66,2019-12-16,296,Повернення внесків приватних внесків (донорам),Повернення приватних внесків (донорам),297629,Центральний офіс,39651598,Україна,Повернення внеску на рахунок партії у звʼязку із наявністю податкового боргу.,UA323808050000000026005643697,current,119140.00,Меліхова Тетяна Петрівна,,фізична особа
ГОЛОС,"Київ, Харківське шосе, 17",82,2019-12-12,294,"Гонорари, в тому числі за надані консультаційні послуги","Гонорари, в тому числі за надані консультаційні послуги",297725,Центральний офіс,39651598,Україна,Оплата за комплекс послуг згідно договору № б/н від 02.09.2019 р. Без ПДВ,UA323808050000000026005643697,current,24000.00,Галушко Олена Сергіївна,,фізична особа
ГОЛОС,"Київ, вулиця Басейна, 23",82,2019-12-10,5,"Гонорари, в тому числі за надані консультаційні послуги","Гонорари, в тому числі за надані консультаційні послуги",297831,Кіровоградська обласна організація,43307408,Кіровоградська область,Оплата юридичних послуг,UA87380805000000002664516,current,12000.00,Медвєдєва Олена Володимирівна,,фізична особа
ГОЛОС,"Київ, вулиця Миколи Лєскова, 9",70,2019-12-10,1EBQ,Банківські послуги,Інші витрати,297798,Центральний офіс,39651598,Україна,"Комісія за довідку про рух коштів, залишок коштів та ін. інформація по поточному рахунку-по операціях давністю до 1 року, без ПДВ",UA323808050000000026005643697,current,75.00,"АТ ""Райффайзен банк Аваль""",14305909,юридична особа
ГОЛОС,"Київ, вулиця Верховинна, 34, 19",81,2019-12-10,289,Аудит,"Гонорари, в тому числі за надані консультаційні послуги",297797,Центральний офіс,39651598,Україна,Попередня оплата за надання аудиторських послуг згідно договору №26-11/19 від 26.11.2019 р. Без ПДВ.,UA323808050000000026005643697,current,150000.00,"ПП ""Аудиторська фірма ""Компас-аудит""",32135020,юридична особа
ГОЛОС,"Київська обл., Обухівський район, Нещерів",74,2019-12-10,288,"Придбання канцтоварів, паперу, інших предметів і матеріалів, а також госп товари",Придбання канцтоварів та госп. товарів,297724,Центральний офіс,39651598,Україна,Оплата за товари згідно рах.№ 707 від 06.12.2019р. Без ПДВ,UA323808050000000026005643697,current,19750.00,Кішка Іван Васильович,,фізична особа
ГОЛОС,"Чернівецька область, Чернівці, вулиця Кармелюка, 67",79,2019-12-10,290,"Оренда будинків і приміщень та експлуатаційні витрати (прибирання, страхування орендованих будинків, охорона, сигналізація, ремонт, вивіз сміття, тощо)",Оренда нерухомості,297723,Центральний офіс,39651598,Україна,За оренду приміщення зг. Дог. №08/10/2019 від 08.10.2019 р. Без ПДВ.,UA323808050000000026005643697,current,1850.00,Жук Наталія Дмитрівна,,фізична особа
ГОЛОС,"Київ, вулиця Дегтярівська, 49А",82,2019-12-10,294,"Гонорари, в тому числі за надані консультаційні послуги","Гонорари, в тому числі за надані консультаційні послуги",297722,Центральний офіс,39651598,Україна,оплата за надання послуг згідно договору № 02/092019 від 30.09.2019.Без ПДВ,UA323808050000000026005643697,current,24000.00,Гнатів Богдан Андрійович,,фізична особа
ГОЛОС,"Тернопільська область, Чортківський район, Чортків, вулиця Тараса Шевченка, 21",82,2019-12-10,292,"Гонорари, в тому числі за надані консультаційні послуги","Гонорари, в тому числі за надані консультаційні послуги",297721,Центральний офіс,39651598,Україна,оплата за надання консультаційних послуг згідно договору №23/09/2019 р. від 23.09.2019 р.Без ПДВ.,UA323808050000000026005643697,current,24000.00,Костецький Максим Юрійович,,фізична особа
ГОЛОС,"Київ, проспект Соборності, 26/2, 33",82,2019-12-10,291,"Гонорари, в тому числі за надані консультаційні послуги","Гонорари, в тому числі за надані консультаційні послуги",297720,Центральний офіс,39651598,Україна,Оплата за надання послуг згідно договору № 25/10/2019 від 25.10.2019 р. Без ПДВ,UA323808050000000026005643697,current,24000.00,Боярчук Тарас Андрійович,,фізична особа
ГОЛОС,"Київ, вулиця Григорія Ващенка, 1, 265",82,2019-12-10,293,"Гонорари, в тому числі за надані консультаційні послуги","Гонорари, в тому числі за надані консультаційні послуги",297719,Центральний офіс,39651598,Україна,оплата за комплекс послуг згідно договору №02/09/2019 від 02.09.2019 р. Без ПДВ,UA323808050000000026005643697,current,24000.00,Когут Ірина Богданівна,,фізична особа
ГОЛОС,"Тернопільська область, Тернопіль, Медова вулиця, 12",79,2019-12-09,4,"Оренда будинків і приміщень та експлуатаційні витрати (прибирання, страхування орендованих будинків, охорона, сигналізація, ремонт, вивіз сміття, тощо)",Оренда нерухомості,297859,Тернопільська обласна організація,43306708,Тернопільська область,компенсація комунальних послуг за листопад 2019р. Зг. Рахунку № 58 від 02.12.19р.,UA023808050000000026006664192,current,662.47,"ТОВ ""Аудиторська фірма ""Консул""",21131551,юридична особа
ГОЛОС,"Дніпропетровська область, Дніпро́",74,2019-12-06,4,"Придбання канцтоварів, паперу, інших предметів і матеріалів, а також госп товари",Придбання канцтоварів та госп. товарів,297830,Кіровоградська обласна організація,43307408,Кіровоградська область,Оплата канцелярських товарів,UA87380805000000002664516,current,454.80,Христя Дмитро Володимирович,,фізична особа
ГОЛОС,"Дніпропетровська область, Дніпро́",74,2019-12-06,3,"Придбання канцтоварів, паперу, інших предметів і матеріалів, а також госп товари",Придбання канцтоварів та госп. товарів,297829,Кіровоградська обласна організація,43307408,Кіровоградська область,Оплата канцелярських товарів,UA87380805000000002664516,current,397.50,Христя Дмитро Володимирович,,фізична особа
ГОЛОС,"Кіровоградська область, Кропивницький",79,2019-12-05,2,"Оренда будинків і приміщень та експлуатаційні витрати (прибирання, страхування орендованих будинків, охорона, сигналізація, ремонт, вивіз сміття, тощо)",Оренда нерухомості,297828,Кіровоградська обласна організація,43307408,Кіровоградська область,Оплата комунальних послуг за листопад 2019,UA87380805000000002664516,current,2440.23,Пушкарьов Олександр Степанович,,фізична особа
ГОЛОС,"Полтавська область, Великобагачанський район, Велика Багачка, вул. Гірська",82,2019-12-05,287,"Гонорари, в тому числі за надані консультаційні послуги","Гонорари, в тому числі за надані консультаційні послуги",297718,Центральний офіс,39651598,Україна,оплата за комплекс послуг згідно договору № 201914П від 14.11.2019р. Без ПДВ.,UA323808050000000026005643697,current,24000.00,Боженко Ольга Олегівна,,фізична особа
ГОЛОС,"Київ, вулиця Московська, 17",82,2019-12-05,286,"Гонорари, в тому числі за надані консультаційні послуги","Гонорари, в тому числі за надані консультаційні послуги",297717,Центральний офіс,39651598,Україна,оплата за комлекс послуг згідно договору №16/2019 від 16.10.2019 р.Без ПДВ.,UA323808050000000026005643697,current,36000.00,Жарун Тарас Анатолійович,,фізична особа
ГОЛОС,"Чернівецька область, Чернівці, вулиця Кармелюка, 67",79,2019-12-03,1,"Оренда будинків і приміщень та експлуатаційні витрати (прибирання, страхування орендованих будинків, охорона, сигналізація, ремонт, вивіз сміття, тощо)",Оренда нерухомості,297860,Чернівецька обласна організація,43314572,Чернівецька область,Зг. Договору оренди №1 від 1.11.2019. Без ПДВ,UA043808050000000026008664587,current,30096.00,Жук Наталія Дмитрівна,,фізична особа
ГОЛОС,"Київ, вулиця Миколи Лєскова, 9",70,2019-12-03,бн,Банківські послуги,Інші витрати,297823,Київська міська організація,43204012,Київ,Комісія за ведення поточних рахунків,UA673808050000000026009659546,current,250.00,"АТ ""Райффайзен банк Аваль""",14305909,юридична особа
ГОЛОС,"Київська обл., Васильків, вулиця Польова, 32",82,2019-12-03,285,"Гонорари, в тому числі за надані консультаційні послуги","Гонорари, в тому числі за надані консультаційні послуги",297716,Центральний офіс,39651598,Україна,оплата за надання послуг згідно договору № 01/10п від 01.10.2019 р. Без ПДВ,UA323808050000000026005643697,current,13815.79,Лопатко Оксана Юріївна,,фізична особа
ГОЛОС,"Волинська область, Луцьк, вулиця Івана Франка, 61, 52",48,2019-12-02,1,Публікування матеріалів у мережі Інтернет,Реклама в інтернеті,297822,Київська міська організація,43204012,Київ,За розробку веб-сайту,UA673808050000000026009659546,current,15000.00,Демчук Микола Олександрович,,фізична особа
ГОЛОС,"Тернопільська область, Тернопіль, бульвар Данила Галицького, 4",82,2019-11-29,3,"Гонорари, в тому числі за надані консультаційні послуги","Гонорари, в тому числі за надані консультаційні послуги",297857,Тернопільська обласна організація,43306708,Тернопільська область,оплата за консультаційні послуги зг. Договору № 7 від 01.11.19р.,UA023808050000000026006664192,current,23000.00,Мельник Роман Олексійович,,фізична особа
ГОЛОС,"Тернопільська область, Тернопіль, бульвар Данила Галицького, 4",82,2019-11-29,2,"Гонорари, в тому числі за надані консультаційні послуги","Гонорари, в тому числі за надані консультаційні послуги",297856,Тернопільська обласна організація,43306708,Тернопільська область,оплата за ведення бухгалтерського обліку за листопад 2019р. Зг. Договору № 6 від 01.11.19р.,UA023808050000000026006664192,current,10000.00,Мельник Роман Олексійович,,фізична особа
ГОЛОС,"Київ, вулиця Миколи Лєскова, 9",70,2019-11-29,б.н,Банківські послуги,Інші витрати,297849,Рівненська обласна організація,43315659,Рівненська область,Комісія за ведення поточного рахунку,UA583808050000000026006665221,current,250.00,"АТ ""Райффайзен банк Аваль""",14305909,юридична особа
ГОЛОС,"Кіровоградська область, Кропивницький",70,2019-11-29,bn,Банківські послуги,Інші витрати,297833,Кіровоградська обласна організація,43307408,Кіровоградська область,Комісія за ведення поточних рахунків,UA87380805000000002664516,current,250.00,"АТ ""Райффайзен банк Аваль""",14305909,юридична особа
ГОЛОС,"Кіровоградська область, Кропивницький",70,2019-11-29,bn,Банківські послуги,Інші витрати,297832,Кіровоградська обласна організація,43307408,Кіровоградська область,Комісія за виконання платежів в національній валюті,UA87380805000000002664516,current,2.00,"АТ ""Райффайзен банк Аваль""",14305909,юридична особа
ГОЛОС,"Київ, вулиця Миколи Лєскова, 9",70,2019-11-29,bn,Банківські послуги,Інші витрати,297796,Центральний офіс,39651598,Україна,"Комісія за вих перекази в нац валюті (Клієнт-Банк) з 31.10.19 по 28.11.19 по рах №UA323808050000000026005643697(UAH) 73*2=146 грн, без ПДВ",UA323808050000000026005643697,current,146.00,"АТ ""Райффайзен банк Аваль""",14305909,юридична особа
ГОЛОС,"Київ, вулиця Миколи Лєскова, 9",70,2019-11-29,bn,Банківські послуги,Інші витрати,297795,Центральний офіс,39651598,Україна,"Комісія за ведення поточних рахунків клієнта ПП ""ГОЛОС"" в дирек. 26-Київ за період з 31.10.19 по 28.11.19, без ПДВ",UA323808050000000026005643697,current,250.00,"АТ ""Райффайзен банк Аваль""",14305909,юридична особа
ГОЛОС,"Київ, вулиця Пирогова, 7",70,2019-11-29,285,Банківські послуги,Інші витрати,297794,Центральний офіс,39651598,Україна,"Комiсiя банку за зарахування коштiв на СКР працiвникiв ПП ""ГОЛОС"" - Заробітна плата за листопад згiдно вiдомостi N 5 вiд 29.11.2019",UA323808050000000026005643697,current,166.67,"Київська філія АТ ""Райффайзен банк Аваль""",23494105,юридична особа
ГОЛОС,"Київ, вулиця Шолуденка, 33/19",62,2019-11-29,286,Сплата ЄСВ,Податкові платежі,297793,Центральний офіс,39651598,Україна,*;101;39651598;ЄСВ 22% на з/п за листопад 2019 року;;;,UA323808050000000026005643697,current,6506.97,ГУ ДФС у м. Києві,43141267,юридична особа
ГОЛОС,"Київ, вулиця Володимирська, 69",63,2019-11-29,287,Податок на доходи,Податкові платежі,297792,Центральний офіс,39651598,Україна,*;101;39651598;11010100;ПДФО з заробітної плати за листопад 2019 року;;;,UA323808050000000026005643697,current,5302.89,УДКСУ у Голосіївському районі м. Києва,38039757,юридична особа
ГОЛОС,"Київ, вулиця Володимирська, 69",61,2019-11-29,288,Військовий збір,Податкові платежі,297791,Центральний офіс,39651598,Україна,*; 101; 39651598;11011000;військовий збір з з/п за листопад 2019 року;;;,UA323808050000000026005643697,current,348.02,УДКСУ у Голосіївському районі м. Києва,38039757,юридична особа
ГОЛОС,"Івано-Франківська область, Коломия, вулиця Січових Стрільців, 44, 48",82,2019-11-29,289,"Гонорари, в тому числі за надані консультаційні послуги","Гонорари, в тому числі за надані консультаційні послуги",297715,Центральний офіс,39651598,Україна,оплата за надання послуг згідно договору №01/112019-Ф від 01.11.2019 р. Без ПДВ.,UA323808050000000026005643697,current,69300.00,Жуков Артем Володимирович,,фізична особа
ГОЛОС,"Київська обл., Києво-Святошинський район, Софіївська Борщагівка",84,2019-11-29,284,"Заробітна плата, премії","Заробітна плата, лікарняні, вагітності, відрядження, компенсації",297714,Центральний офіс,39651598,Україна,"Заробітна плата за листопад ПОЛІТИЧНА ПАРТІЯ ""ГОЛОС"" згiдно вiдомостi N 5 вiд 29.11.2019",UA323808050000000026005643697,current,11904.80,Харченко Наталія Олегівна,,фізична особа
ГОЛОС,"Полтавська область, Оржицький район",84,2019-11-29,284,"Заробітна плата, премії","Заробітна плата, лікарняні, вагітності, відрядження, компенсації",297713,Центральний офіс,39651598,Україна,"Заробітна плата за листопад ПОЛІТИЧНА ПАРТІЯ ""ГОЛОС"" згiдно вiдомостi N 5 вiд 29.11.2019",UA323808050000000026005643697,current,11904.80,Макаренко Оксана Володимирівна,,фізична особа
ГОЛОС,"Київ, вулиця Миколи Лєскова, 9",70,2019-11-28,б/н,Банківські послуги,Інші витрати,297861,Чернівецька обласна організація,43314572,Чернівецька область,"Комісія за користування пакетом позлуг з 13.11.2019 по 27.11.2019 по рах №UA043808050000000026008664587(UAH), без ПДВ",UA043808050000000026008664587,current,150.00,"АТ ""Райффайзен банк Аваль""",14305909,юридична особа
ГОЛОС,"Кіровоградська область, Маловисківський район, Березівка",82,2019-11-28,281,"Гонорари, в тому числі за надані консультаційні послуги","Гонорари, в тому числі за надані консультаційні послуги",297712,Центральний офіс,39651598,Україна,оплата за надання фотографічних послуг згідно договору №56 від 02.09.2019 р. Без ПДВ,UA323808050000000026005643697,current,35000.00,Завгородній Євгеній Григорович,,фізична особа
ГОЛОС,"Київ, вулиця Петра Калнишевського, 5, 112",82,2019-11-28,282,"Гонорари, в тому числі за надані консультаційні послуги","Гонорари, в тому числі за надані консультаційні послуги",297711,Центральний офіс,39651598,Україна,Оплата за надання послуг згідно Договору № 13-01/3 від 14.11.2019 р. Без ПДВ.,UA323808050000000026005643697,current,60000.00,Чебаненко Олена Дмитрівна,,фізична особа
ГОЛОС,"Дніпропетровська область, Кам’янське, вулиця Металургів, 80, 6",82,2019-11-28,283,"Гонорари, в тому числі за надані консультаційні послуги","Гонорари, в тому числі за надані консультаційні послуги",297710,Центральний офіс,39651598,Україна,Оплата за консультаційні послуги згідно Договору №1 від 19.08.2019 без ПДВ,UA323808050000000026005643697,current,66000.00,Божко Іван Олександрович,,фізична особа
ГОЛОС,"Черкаська область, Жашківський район, Жашків, вулиця Громового",82,2019-11-28,274,"Гонорари, в тому числі за надані консультаційні послуги","Гонорари, в тому числі за надані консультаційні послуги",297709,Центральний офіс,39651598,Україна,оплата за надання послуг згідно договору №04/11/2019 від 04.11.2019 р. Без ПДВ,UA323808050000000026005643697,current,40800.00,Первак Назар Михайлович,,фізична особа
ГОЛОС,"Київська обл., Києво-Святошинський район, Чабани, вулиця Машинобудівників, 2, 84",60,2019-11-28,275,Інші податки,Податкові платежі,297708,Центральний офіс,39651598,Україна,Оплата за адміністрування поштових скриньок зг. дог. № 30/09/2019 от 30.09.2019 без ПДВ,UA323808050000000026005643697,current,19403.00,Товпеко Олександр Сергійович,,фізична особа
ГОЛОС,"Київська обл., Києво-Святошинський район, Чабани, вулиця Машинобудівників, 2, 84",60,2019-11-28,276,Інші податки,Податкові платежі,297707,Центральний офіс,39651598,Україна,Оплата за адміністрування поштових скриньок зг. дог. № 30/09/2019 от 30.09.2019 без ПДВ,UA323808050000000026005643697,current,33072.00,Товпеко Олександр Сергійович,,фізична особа
ГОЛОС,"Київ, вулиця Академіка Грекова, 22А, 80",82,2019-11-28,277,"Гонорари, в тому числі за надані консультаційні послуги","Гонорари, в тому числі за надані консультаційні послуги",297706,Центральний офіс,39651598,Україна,оплата за комплекс послуг згідно договору №02/09/2019 від 02.09.2019 р. Без ПДВ,UA323808050000000026005643697,current,134880.00,Вибрановський Роман Богданович,,фізична особа
ГОЛОС,"Івано-Франківська область, Коломия, вулиця Січових Стрільців, 44, 48",82,2019-11-28,278,"Гонорари, в тому числі за надані консультаційні послуги","Гонорари, в тому числі за надані консультаційні послуги",297705,Центральний офіс,39651598,Україна,Послуги райтера соціальних медіа за Договором № п12/05 від 24.05.2019. Без ПДВ,UA323808050000000026005643697,current,67200.00,Жуков Артем Володимирович,,фізична особа
ГОЛОС,"Київська обл., Києво-Святошинський район, Мила, вулиця Комарова, 40А, 50",68,2019-11-28,273,Соцдослідження,"Гонорари, в тому числі за надані консультаційні послуги",297704,Центральний офіс,39651598,Україна,Оплата за послуги райтера соціальних медіа зг. дог. № п25/08 від 25.08.2019 без ПДВ,UA323808050000000026005643697,current,8000.00,Дацюк Ольга Вікторівна,,фізична особа
ГОЛОС,"Київ, проспект Академіка Корольова, 2В",68,2019-11-28,279,Соцдослідження,"Гонорари, в тому числі за надані консультаційні послуги",297703,Центральний офіс,39651598,Україна,оплата за послуги райтера соціальних медіа згідно договору №п2/10 від 02.10.2019 р. Без ПДВ,UA323808050000000026005643697,current,28800.00,Ступень Юрій Олегович,,фізична особа
ГОЛОС,"Хмельницька область, Старокостянтинів, вулиця Попова, 20, 24",82,2019-11-28,280,"Гонорари, в тому числі за надані консультаційні послуги","Гонорари, в тому числі за надані консультаційні послуги",297702,Центральний офіс,39651598,Україна,оплата за надання послуг згідно договору № 11/09/2019 від 11.09.2019 р. Без ПДВ,UA323808050000000026005643697,current,48000.00,Артеменко Віктор Володимирович,,фізична особа
ГОЛОС,"Тернопільська область, Тернопіль, вулиця Максима Кривоноса, 11",82,2019-11-27,272,"Гонорари, в тому числі за надані консультаційні послуги","Гонорари, в тому числі за надані консультаційні послуги",297701,Центральний офіс,39651598,Україна,оплата за надання послуг згідно договору №04/11/2019 від 04.11.2019 р. Без ПДВ,UA323808050000000026005643697,current,33454.55,Слободян Роман Робертович,,фізична особа
ГОЛОС,"Київ, вулиця Смілянська, 17",69,2019-11-26,270,Організація заходів та інші організаційні послуги,Організація заходів та інші організаційні послуги,297700,Центральний офіс,39651598,Україна,оплата за організацію виїзної конференції згідно рах.№ В/03 від 26.11.2019. Без ПДВ,UA323808050000000026005643697,current,2162.00,Ткаліч Олександр Петрович,,фізична особа
ГОЛОС,"Київська обл., Васильків, вулиця Польова, 32",82,2019-11-26,271,"Гонорари, в тому числі за надані консультаційні послуги","Гонорари, в тому числі за надані консультаційні послуги",297699,Центральний офіс,39651598,Україна,оплата за надання послуг згідно договору № 01/10п від 01.10.2019 р. Без ПДВ,UA323808050000000026005643697,current,13815.79,Лопатко Оксана Юріївна,,фізична особа
ГОЛОС,"Харківська область, Харків, проспект Ювілейний, 65, 83",82,2019-11-26,269,"Гонорари, в тому числі за надані консультаційні послуги","Гонорари, в тому числі за надані консультаційні послуги",297698,Центральний офіс,39651598,Україна,Оплата за надання послуг згідно з договором №201910-1 від 10.10.2019р. Без ПДВ,UA323808050000000026005643697,current,5500.00,Руденко Андрій Володимирович,,фізична особа
ГОЛОС,"Тернопільська область, Тернопіль, Медова вулиця, 12",79,2019-11-25,1,"Оренда будинків і приміщень та експлуатаційні витрати (прибирання, страхування орендованих будинків, охорона, сигналізація, ремонт, вивіз сміття, тощо)",Оренда нерухомості,297858,Тернопільська обласна організація,43306708,Тернопільська область,орендна плата за листопад 2019р. Зг. Договору від 01.11.19р.,UA023808050000000026006664192,current,5300.00,"ТОВ ""Аудиторська фірма ""Консул""",21131551,юридична особа
ГОЛОС,"Кіровоградська область, Кропивницький",79,2019-11-19,1,"Оренда будинків і приміщень та експлуатаційні витрати (прибирання, страхування орендованих будинків, охорона, сигналізація, ремонт, вивіз сміття, тощо)",Оренда нерухомості,297827,Кіровоградська обласна організація,43307408,Кіровоградська область,Оплата за оренду приміщення за листопад 2019,UA87380805000000002664516,current,22500.00,Пушкарьов Олександр Степанович,,фізична особа
ГОЛОС,"Хмельницька область, Старокостянтинів, вулиця Попова, 20, 24",69,2019-11-19,266,Організація заходів та інші організаційні послуги,Організація заходів та інші організаційні послуги,297697,Центральний офіс,39651598,Україна,оплата за організацію партійних заходів згідно договору №11/09/2019 від 11.09.2019р. Без ПДВ,UA323808050000000026005643697,current,2990.00,Артеменко Віктор Володимирович,,фізична особа
ГОЛОС,"Київ, вулиця Смілянська, 17",69,2019-11-19,267,Організація заходів та інші організаційні послуги,Організація заходів та інші організаційні послуги,297696,Центральний офіс,39651598,Україна,оплата за організацію виїзної конференції зг. рах. №В/03 від 19.11.2019р. Без ПДВ,UA323808050000000026005643697,current,1210.00,Ткаліч Олександр Петрович,,фізична особа
ГОЛОС,Київ,82,2019-11-19,263,"Гонорари, в тому числі за надані консультаційні послуги","Гонорари, в тому числі за надані консультаційні послуги",297695,Центральний офіс,39651598,Україна,оплата за нотаріальні послуги згідно довідки рахунку №795 від 15.11.2019р. Без ПДВ,UA323808050000000026005643697,current,2800.00,Волкова Світлана Михайлівна,,фізична особа
ГОЛОС,"Київ, вулиця Академіка Туполєва, 28А",60,2019-11-15,268,Інші податки,Податкові платежі,297787,Центральний офіс,39651598,Україна,Оплата за державну реєстрацію змін до відомостей.ККДБ:22012900; символ звітності:170. Без ПДВ.,UA323808050000000026005643697,current,5800.00,УДКСУ у Шевченківському районі м. Києва,37995466,юридична особа
ГОЛОС,"Київ, вулиця Шолуденка, 33/19",62,2019-11-15,262,Сплата ЄСВ,Податкові платежі,297786,Центральний офіс,39651598,Україна,*;101;39651598;сплата ЄСВ 22% на з/п за жовтень 2019 року;;;,UA323808050000000026005643697,current,7157.66,ГУ ДФС у м. Києві,39439980,юридична особа
ГОЛОС,"Київ, вулиця Володимирська, 69",61,2019-11-15,263,Військовий збір,Податкові платежі,297785,Центральний офіс,39651598,Україна,*; 101; 39651598;11011000;військовий збір з з/п за жовтень 2019 року;;;,UA323808050000000026005643697,current,488.02,УДКСУ у Голосіївському районі м. Києва,38039757,юридична особа
ГОЛОС,"Київ, вулиця Володимирська, 69",63,2019-11-15,264,Податок на доходи,Податкові платежі,297784,Центральний офіс,39651598,Україна,*;101;39651598;11010100;податок на доходи фіз.осіб з заробітної плати за жовтень 2019 року;;;,UA323808050000000026005643697,current,5856.28,УДКСУ у Голосіївському районі м. Києва,38039757,юридична особа
ГОЛОС,"Київ, вулиця Пирогова, 7",70,2019-11-15,266,Банківські послуги,Інші витрати,297783,Центральний офіс,39651598,Україна,"Комiсiя банку за зарах коштiв на СКР працiвникiв ПП ""ГОЛОС"" - Зарплата та аванси за жовтень згiдно вiдомостi N 4 вiд 15.11.2019",UA323808050000000026005643697,current,183.33,"Київська філія АТ ""Райффайзен банк Аваль""",23494105,юридична особа
ГОЛОС,"Київська обл., Києво-Святошинський район, Софіївська Борщагівка",84,2019-11-15,265,"Заробітна плата, премії","Заробітна плата, лікарняні, вагітності, відрядження, компенсації",297694,Центральний офіс,39651598,Україна,"Заробітна плата та аванси за жовтень ПП ""ГОЛОС"" згiдно вiдомостi N 4 вiд 15.11.2019",UA323808050000000026005643697,current,13095.28,Харченко Наталія Олегівна,,фізична особа
ГОЛОС,"Полтавська область, Оржицький район",84,2019-11-15,265,"Заробітна плата, премії","Заробітна плата, лікарняні, вагітності, відрядження, компенсації",297693,Центральний офіс,39651598,Україна,"Заробітна плата та аванси за жовтень ПП ""ГОЛОС"" згiдно вiдомостi N 4 вiд 15.11.2019",UA323808050000000026005643697,current,13095.28,Макаренко Оксана Володимирівна,,фізична особа
ГОЛОС,"Кіровоградська область, Кропивницький, вулиця Волкова, 4, 1",82,2019-11-14,258,"Гонорари, в тому числі за надані консультаційні послуги","Гонорари, в тому числі за надані консультаційні послуги",297692,Центральний офіс,39651598,Україна,Оплата за консультаційні послуги згідно договору № 23/10/2019 від 23.10.2019 р. Без ПДВ.,UA323808050000000026005643697,current,25000.00,Іванченко Максим Юрійович,,фізична особа
ГОЛОС,"Львівська область, Львів",66,2019-11-14,257,Повернення внесків приватних внесків (донорам),Повернення приватних внесків (донорам),297643,Центральний офіс,39651598,Україна,Повернення внеску на підтримку Партії згідно заяви від 13.11.2019 р. від Дениса Олега Мирославовича. Без ПДВ,UA323808050000000026005643697,current,20000.00,Денис Олег Мирославович,,фізична особа
ГОЛОС,"Київ, вулиця Дегтярівська, 49А",82,2019-11-12,255,"Гонорари, в тому числі за надані консультаційні послуги","Гонорари, в тому числі за надані консультаційні послуги",297691,Центральний офіс,39651598,Україна,оплата за комплекс послуг згідно договору № 02/092019 від 02.09.2019. Без ПДВ,UA323808050000000026005643697,current,25000.00,Гнатів Богдан Андрійович,,фізична особа
ГОЛОС,"Київ, вулиця Петра Калнишевського, 5, 112",82,2019-11-12,256,"Гонорари, в тому числі за надані консультаційні послуги","Гонорари, в тому числі за надані консультаційні послуги",297690,Центральний офіс,39651598,Україна,Оплата за підготовку експертних висновків згідно договору № 13-01/2 від 12.11.2019 р. Без ПДВ.,UA323808050000000026005643697,current,48387.00,Чебаненко Олена Дмитрівна,,фізична особа
ГОЛОС,"Київ, Харківське шосе, 17",82,2019-11-12,254,"Гонорари, в тому числі за надані консультаційні послуги","Гонорари, в тому числі за надані консультаційні послуги",297689,Центральний офіс,39651598,Україна,оплата за комплекс послуг згідно договору № б/н від 02.09.2019. Без ПДВ,UA323808050000000026005643697,current,25000.00,Галушко Олена Сергіївна,,фізична особа
ГОЛОС,"Сумська область, Шостка, вулиця Онупрієнка, 9",82,2019-11-12,253,"Гонорари, в тому числі за надані консультаційні послуги","Гонорари, в тому числі за надані консультаційні послуги",297688,Центральний офіс,39651598,Україна,оплата за дизайнерські послуги згідно договору №7-102019 від 07.10.2019 р. Без ПДВ,UA323808050000000026005643697,current,12500.00,Коновалов Павло Геннадійович,,фізична особа
ГОЛОС,"Кіровоградська область, Маловисківський район, Березівка",82,2019-11-12,252,"Гонорари, в тому числі за надані консультаційні послуги","Гонорари, в тому числі за надані консультаційні послуги",297687,Центральний офіс,39651598,Україна,оплата за фотографічні послуги за договором №56 від 02.09.2019 р. згідно додатку №2. Без ПДВ,UA323808050000000026005643697,current,25000.00,Завгородній Євгеній Григорович,,фізична особа
ГОЛОС,"Київ, вулиця Смілянська, 17",69,2019-11-12,250,Організація заходів та інші організаційні послуги,Організація заходів та інші організаційні послуги,297686,Центральний офіс,39651598,Україна,оплата за організацію виїзної конференції згідно рахунку №В/02 від 08.11.2019 р. Без ПДВ,UA323808050000000026005643697,current,2208.00,Ткаліч Олександр Петрович,,фізична особа
ГОЛОС,"Львівська область, Львів",66,2019-11-12,251,Повернення внесків приватних внесків (донорам),Повернення приватних внесків (донорам),297642,Центральний офіс,39651598,Україна,Повернення внеску на користь партії згідно заяви від 22.10.2019р. Трач Тарас Васильович. Без ПДВ,UA323808050000000026005643697,current,42000.00,Трач Тарас Васильович,,фізична особа
ГОЛОС,"Київ, вулиця Сурикова, 3",68,2019-11-11,249,Соцдослідження,"Гонорари, в тому числі за надані консультаційні послуги",297779,Центральний офіс,39651598,Україна,Оплата послуг з дослідження інформаційного простору згідно договору №01102019 від 01.10.2019 р. Без ПДВ.,UA323808050000000026005643697,current,70000.00,"ТОВ ""Корстоун груп""",41674090,юридична особа
ГОЛОС,"Київ, вулиця Університетська, 13А",82,2019-11-08,247,"Гонорари, в тому числі за надані консультаційні послуги","Гонорари, в тому числі за надані консультаційні послуги",297778,Центральний офіс,39651598,Україна,Оплата за послуги з ведення фін. консультування та ведення бух. обліку за серпень 2019 зг. рах. № VS/29-03-19/002 від 01.08.2019 без ПДВ,UA323808050000000026005643697,current,15000.00,"ТОВ ""ЕБС адвантедж""",36538593,юридична особа
ГОЛОС,"Київ, вулиця Університетська, 13А",82,2019-11-08,248,"Гонорари, в тому числі за надані консультаційні послуги","Гонорари, в тому числі за надані консультаційні послуги",297777,Центральний офіс,39651598,Україна,Оплата за послуги з ведення фін. консультування та ведення бух. обліку за вересень 2019 зг. рах. № DRN/02-09-19/001 від 02.09.2019 без ПДВ,UA323808050000000026005643697,current,15000.00,"ТОВ ""ЕБС адвантедж""",36538593,юридична особа
ГОЛОС,"Дніпропетровська область, Кам’янське, вулиця Металургів, 80, 6",82,2019-11-07,246,"Гонорари, в тому числі за надані консультаційні послуги","Гонорари, в тому числі за надані консультаційні послуги",297685,Центральний офіс,39651598,Україна,Оплата за консультаційні послуги згідно Договору №1 від 19.08.2019 без ПДВ,UA323808050000000026005643697,current,68750.00,Божко Іван Олександрович,,фізична особа
ГОЛОС,"Київська обл., Бровари",66,2019-11-07,244,Повернення внесків приватних внесків (донорам),Повернення приватних внесків (донорам),297639,Центральний офіс,39651598,Україна,Повернення внеску на користь партії згідно наданої заяви від 07.11.2019 р. Без ПДВ,UA323808050000000026005643697,current,149105.37,Краснощок Олексій Вікторович,,фізична особа
ГОЛОС,Київ,66,2019-11-07,243,Повернення внесків приватних внесків (донорам),Повернення приватних внесків (донорам),297638,Центральний офіс,39651598,Україна,Повернення внеску на користь партії згідно наданої заяви від 07.11.2019 р. Без ПДВ,UA323808050000000026005643697,current,1000000.00,Хицюк Руслан Вікторович,,фізична особа
ГОЛОС,Київ,66,2019-11-07,245,Повернення внесків приватних внесків (донорам),Повернення приватних внесків (донорам),297637,Центральний офіс,39651598,Україна,Повернення внеску на користь партії згідно наданої заяви від 07.11.2019 р. Без ПДВ,UA323808050000000026005643697,current,795228.63,Клименко Костянтин Петрович,,фізична особа
ГОЛОС,"Київ, проспект Соборності, 26/2, 33",82,2019-11-05,237,"Гонорари, в тому числі за надані консультаційні послуги","Гонорари, в тому числі за надані консультаційні послуги",297684,Центральний офіс,39651598,Україна,Оплата за консультаційні послуги згідно договору№ 25/10/2019 р. Без ПДВ.,UA323808050000000026005643697,current,25000.00,Боярчук Тарас Андрійович,,фізична особа
ГОЛОС,"Київ, вулиця Північна, 54В, 79",69,2019-11-05,238,Організація заходів та інші організаційні послуги,Організація заходів та інші організаційні послуги,297683,Центральний офіс,39651598,Україна,Оплата за організацію та проведення партійних заходів згідно договору №1 від 03.09.2019 р. Без ПДВ.,UA323808050000000026005643697,current,11753.00,Ніколаєнко Катерина Олександрівна,,фізична особа
ГОЛОС,"Кіровоградська область, Кропивницький, вулиця Волкова, 4, 1",82,2019-11-05,239,"Гонорари, в тому числі за надані консультаційні послуги","Гонорари, в тому числі за надані консультаційні послуги",297682,Центральний офіс,39651598,Україна,Оплата за консультаційні послуги згідно договору № 23/10/2019 від 23.10.2019 р. Без ПДВ.,UA323808050000000026005643697,current,24000.00,Іванченко Максим Юрійович,,фізична особа
ГОЛОС,"Хмельницька область, Старокостянтинів, вулиця Попова, 20, 24",82,2019-11-05,240,"Гонорари, в тому числі за надані консультаційні послуги","Гонорари, в тому числі за надані консультаційні послуги",297681,Центральний офіс,39651598,Україна,Оплата за консультаційні послуги згідно договору № 11/09/2019 від 11.09.2019 р. Без ПДВ,UA323808050000000026005643697,current,50000.00,Артеменко Віктор Володимирович,,фізична особа
ГОЛОС,"Київ, вулиця Григорія Ващенка, 1, 265",82,2019-11-05,242,"Гонорари, в тому числі за надані консультаційні послуги","Гонорари, в тому числі за надані консультаційні послуги",297680,Центральний офіс,39651598,Україна,Оплата за підготовку аналітичних матеріалів згідно договору № 02/09/2019 р. від 02.09.2019 р. Без ПДВ.,UA323808050000000026005643697,current,25000.00,Когут Ірина Богданівна,,фізична особа
ГОЛОС,"Львівська область, Яворівський район, Паланки",82,2019-11-05,241,"Гонорари, в тому числі за надані консультаційні послуги","Гонорари, в тому числі за надані консультаційні послуги",297679,Центральний офіс,39651598,Україна,Оплата за аналіз законопроектів згідно договору №29/08\2019 від 29.08.2019 р. Без ПДВ.,UA323808050000000026005643697,current,50000.00,Шуварська Катерина Валеріївна,,фізична особа
ГОЛОС,"Київ, вулиця Пирогова, 10В",74,2019-11-04,236,"Придбання канцтоварів, паперу, інших предметів і матеріалів, а також госп товари",Придбання канцтоварів та госп. товарів,297776,Центральний офіс,39651598,Україна,Оплата за печатки згідно рахунку № СФ-0001455 від 01.11.2019 р. Без ПДВ.,UA323808050000000026005643697,current,2580.00,"ТОВ ""Штамп-сервіс""",30383647,юридична особа
ГОЛОС,"Київ, вулиця Академіка Грекова, 22А, 80",82,2019-11-04,235,"Гонорари, в тому числі за надані консультаційні послуги","Гонорари, в тому числі за надані консультаційні послуги",297678,Центральний офіс,39651598,Україна,оплата за комплекс послуг згідно договору №02/09/2019 від 02.09.2019 р. Без ПДВ,UA323808050000000026005643697,current,140500.00,Вибрановський Роман Богданович,,фізична особа
ГОЛОС,"Київ, вулиця Володимирська, 69",63,2019-11-01,23257,Податок на доходи,Податкові платежі,297775,Центральний офіс,39651598,Україна,*;101;39651598;11010100;податок на доходи фіз.осіб з заробітної плати за листопад 2019 року;;;,UA323808050000000026005643697,current,482.88,УДКСУ у Голосіївському районі м. Києва,38039757,юридична особа
ГОЛОС,"Київ, вулиця Пирогова, 7",70,2019-11-01,23261,Банківські послуги,Інші витрати,297774,Центральний офіс,39651598,Україна,"Комiсiя банку за зарахування коштiв на СКР працiвникiв ПОЛІТИЧНА ПАРТІЯ ""ГОЛОС"" - Зарплата та аванси за листопад згiдно вiдомостi N 3 вiд 01.11.2019",UA323808050000000026005643697,current,14.46,"Київська філія АТ ""Райффайзен банк Аваль""",23494105,юридична особа
ГОЛОС,"Київ, вулиця Володимирська, 69",61,2019-11-01,23258,Військовий збір,Податкові платежі,297773,Центральний офіс,39651598,Україна,*; 101; 39651598;11011000;військовий збір з з/п за листопад 2019 року;;;,UA323808050000000026005643697,current,134.13,УДКСУ у Голосіївському районі м. Києва,38039757,юридична особа
ГОЛОС,"Київ, вулиця Шолуденка, 33/19",62,2019-11-01,23259,Сплата ЄСВ,Податкові платежі,297772,Центральний офіс,39651598,Україна,*;101;39651598;сплата ЄСВ 22% на з/п за листопад 2019 року;;;,UA323808050000000026005643697,current,590.19,ГУ ДФС у м. Києві,43141267,юридична особа
ГОЛОС,"Київська обл., Києво-Святошинський район, Чабани, вулиця Машинобудівників, 2, 84",60,2019-11-01,234,Інші податки,Податкові платежі,297677,Центральний офіс,39651598,Україна,Оплата за адміністрування поштових скриньок зг. дог. № 30/09/2019 от 30.09.2019 без ПДВ,UA323808050000000026005643697,current,51622.00,Товпеко Олександр Сергійович,,фізична особа
ГОЛОС,"Київська обл., Києво-Святошинський район, Вишневе",84,2019-11-01,23260,"Заробітна плата, премії","Заробітна плата, лікарняні, вагітності, відрядження, компенсації",297676,Центральний офіс,39651598,Україна,"Заробітна плата та аванси ПОЛІТИЧНА ПАРТІЯ ""ГОЛОС"" за листопад згiдно вiдомостi N 3 вiд 01.11.2019",UA323808050000000026005643697,current,2065.67,Грищенко Катерина Станіславівна,,фізична особа
ГОЛОС,"Київ, вулиця Братиславська, 26, 55",82,2019-11-01,233,"Гонорари, в тому числі за надані консультаційні послуги","Гонорари, в тому числі за надані консультаційні послуги",297675,Центральний офіс,39651598,Україна,оплата за комплекс послуг згідно договору №02/09/2019 від 02.09.2019 р. Без ПДВ,UA323808050000000026005643697,current,24500.00,Срібняк Ольга Олегівна,,фізична особа
ГОЛОС,"Київ, вулиця Миколи Лєскова, 9",70,2019-10-31,bn,Банківські послуги,Інші витрати,297771,Центральний офіс,39651598,Україна,"Комісія за вих перекази в нац валюті (Клієнт-Банк) з 30.09.19 по 30.10.19 по рах №UA323808050000000026005643697(UAH) 52*2=104 грн, без ПДВ",UA323808050000000026005643697,current,104.00,"АТ ""Райффайзен банк Аваль""",14305909,юридична особа
ГОЛОС,"Київ, вулиця Миколи Лєскова, 9",70,2019-10-31,bn,Банківські послуги,Інші витрати,297770,Центральний офіс,39651598,Україна,"Комісія за ведення поточних рахунків клієнта ПП ""ГОЛОС"" в дирек. 26-Київ за період з 30.09.19 по 30.10.19, без ПДВ",UA323808050000000026005643697,current,250.00,"АТ ""Райффайзен банк Аваль""",14305909,юридична особа
ГОЛОС,"Київ, вулиця Пирогова, 10В",74,2019-10-31,231,"Придбання канцтоварів, паперу, інших предметів і матеріалів, а також госп товари",Придбання канцтоварів та госп. товарів,297769,Центральний офіс,39651598,Україна,Оплата за печатку згідно рахунку № СФ-0001433 від 29.10.2019 р. Без ПДВ.,UA323808050000000026005643697,current,840.00,"ТОВ ""Штамп-сервіс""",30383647,юридична особа
ГОЛОС,"Київ, вулиця Володимирська, 69",61,2019-10-31,232,Військовий збір,Податкові платежі,297768,Центральний офіс,39651598,Україна,*; 101; 39651598;11011000;військовий збір з з/п за жовтень 2019 року;;;,UA323808050000000026005643697,current,694.55,УДКСУ у Голосіївському районі м. Києва,38039757,юридична особа
ГОЛОС,"Київ, вулиця Володимирська, 69",63,2019-10-31,233,Податок на доходи,Податкові платежі,297767,Центральний офіс,39651598,Україна,*;101;39651598;11010100;податок на доходи фіз.осіб з заробітної плати за жовтень 2019 року;;;,UA323808050000000026005643697,current,8334.66,УДКСУ у Голосіївському районі м. Києва,38039757,юридична особа
ГОЛОС,"Київ, вулиця Шолуденка, 33/19",62,2019-10-31,234,Сплата ЄСВ,Податкові платежі,297766,Центральний офіс,39651598,Україна,*;101;39651598;сплата ЄСВ 22% на з/п за жовтень 2019 року;;;,UA323808050000000026005643697,current,17795.97,ГУ ДФС у м. Києві,43141267,юридична особа
ГОЛОС,"Київ, вулиця Пирогова, 7",70,2019-10-31,238,Банківські послуги,Інші витрати,297765,Центральний офіс,39651598,Україна,"Комiсiя банку за зарахування коштiв на СКР працiвникiв ПОЛІТИЧНА ПАРТІЯ ""ГОЛОС"" - Заробітна плата та аванси згiдно вiдомостi N 2 вiд 31.10.2019",UA323808050000000026005643697,current,60.47,"Київська філія АТ ""Райффайзен банк Аваль""",23494105,юридична особа
ГОЛОС,"Київська обл., Києво-Святошинський район, Вишневе",84,2019-10-31,23256,"Заробітна плата, премії","Заробітна плата, лікарняні, вагітності, відрядження, компенсації",297674,Центральний офіс,39651598,Україна,"Заробітна плата та аванси ПОЛІТИЧНА ПАРТІЯ ""ГОЛОС"" згiдно вiдомостi N 2 вiд 31.10.2019 за жовтень 2019",UA323808050000000026005643697,current,8638.23,Грищенко Катерина Станіславівна,,фізична особа
ГОЛОС,"Полтавська область, Оржицький район",84,2019-10-31,235,"Заробітна плата, премії","Заробітна плата, лікарняні, вагітності, відрядження, компенсації",297673,Центральний офіс,39651598,Україна,Поповнення карткового рахунку Макаренко Оксана Володимирівна зарплата за жовтень 2019р.,UA323808050000000026005643697,current,13636.41,Макаренко Оксана Володимирівна,,фізична особа
ГОЛОС,"Київська обл., Києво-Святошинський район, Софіївська Борщагівка",84,2019-10-31,236,"Заробітна плата, премії","Заробітна плата, лікарняні, вагітності, відрядження, компенсації",297672,Центральний офіс,39651598,Україна,"Поповнення поточного рахунку Харченко Наталія Олегівна, заробітна плата за жовтень 2019р.",UA323808050000000026005643697,current,14999.78,Харченко Наталія Олегівна,,фізична особа
ГОЛОС,"Сумська область, Шостка, вулиця Онупрієнка, 9",82,2019-10-31,23255,"Гонорари, в тому числі за надані консультаційні послуги","Гонорари, в тому числі за надані консультаційні послуги",297671,Центральний офіс,39651598,Україна,Оплата за послуги дизайнера згідно договору № 7-102019 від 07.10.2019 р. Без ПДВ.,UA323808050000000026005643697,current,25000.00,Коновалов Павло Геннадійович,,фізична особа
ГОЛОС,"Івано-Франківська область, Коломия, вулиця Січових Стрільців, 44, 48",82,2019-10-31,229,"Гонорари, в тому числі за надані консультаційні послуги","Гонорари, в тому числі за надані консультаційні послуги",297670,Центральний офіс,39651598,Україна,Оплата за комплекс послуг за Договором п12/05 від 24.05.2019. Без ПДВ.,UA323808050000000026005643697,current,70000.00,Жуков Артем Володимирович,,фізична особа
ГОЛОС,"Київ, проспект Академіка Корольова, 2В",82,2019-10-31,230,"Гонорари, в тому числі за надані консультаційні послуги","Гонорари, в тому числі за надані консультаційні послуги",297669,Центральний офіс,39651598,Україна,Оплата послуг з розробки контенту згідно з Договором № п2/10 від 02.10.2019 р. Без ПДВ.,UA323808050000000026005643697,current,30000.00,Ступень Юрій Олегович,,фізична особа
ГОЛОС,"Київ, вулиця Північна, 54В, 79",69,2019-10-31,228,Організація заходів та інші організаційні послуги,Організація заходів та інші організаційні послуги,297668,Центральний офіс,39651598,Україна,Оплата за організацію та проведення партійних заходів згідно договору №1 від 03.09.2019 р. Без ПДВ.,UA323808050000000026005643697,current,52500.00,Ніколаєнко Катерина Олександрівна,,фізична особа
ГОЛОС,"Львівська область, Яворівський район, Паланки",82,2019-10-31,226,"Гонорари, в тому числі за надані консультаційні послуги","Гонорари, в тому числі за надані консультаційні послуги",297667,Центральний офіс,39651598,Україна,Оплата за аналіз законопроектів згідно договору №28\08\2019 від 29.08.2019 р. Без ПДВ,UA323808050000000026005643697,current,48000.00,Шуварська Катерина Валеріївна,,фізична особа
ГОЛОС,"Київ, вулиця Володимира Наумовича, 6",82,2019-10-31,227,"Гонорари, в тому числі за надані консультаційні послуги","Гонорари, в тому числі за надані консультаційні послуги",297666,Центральний офіс,39651598,Україна,Оплата за комплекс послуг зг. дог. № 02/09/2019 від 02.09.2019 без ПДВ,UA323808050000000026005643697,current,25000.00,Мельник Максим Петрович,,фізична особа
ГОЛОС,"Київська обл., Києво-Святошинський район, Мила, вулиця Комарова, 40А, 50",68,2019-10-31,225,Соцдослідження,"Гонорари, в тому числі за надані консультаційні послуги",297665,Центральний офіс,39651598,Україна,Оплата за послуги райтера соціальних медіа зг. дог. № п25/08 від 25.08.2019 без ПДВ,UA323808050000000026005643697,current,8000.00,Дацюк Ольга Вікторівна,,фізична особа
ГОЛОС,"Тернопільська область, Чортківський район, Чортків, вулиця Тараса Шевченка, 21",82,2019-10-25,223,"Гонорари, в тому числі за надані консультаційні послуги","Гонорари, в тому числі за надані консультаційні послуги",297664,Центральний офіс,39651598,Україна,Оплата за консультування з правових питань згідно договору № 23/09/2019 від 23.09.2019 р. Без ПДВ.,UA323808050000000026005643697,current,25000.00,Костецький Максим Юрійович,,фізична особа
ГОЛОС,"Львівська область, Львів",66,2019-10-25,222,Повернення внесків приватних внесків (донорам),Повернення приватних внесків (донорам),297636,Центральний офіс,39651598,Україна,Повернення внеску на підтримку партії згідно наданої заяви від 21 жовтня 2019 р. Без ПДВ.,UA323808050000000026005643697,current,44000.00,Галецька Марʼяна Романівна,,фізична особа
ГОЛОС,"Львівська область, Львів",66,2019-10-25,224,Повернення внесків приватних внесків (донорам),Повернення приватних внесків (донорам),297635,Центральний офіс,39651598,Україна,"Повернення внеску на підтримку партії на підставі наданої заяви від 17.10.2019 р. Засадний Олег Миронович, Без ПДВ.",UA323808050000000026005643697,current,50000.00,Засадний Олег Миронович,,фізична особа
ГОЛОС,"Хмельницька область, Старокостянтинів, вулиця Попова, 20, 24",82,2019-10-24,221,"Гонорари, в тому числі за надані консультаційні послуги","Гонорари, в тому числі за надані консультаційні послуги",297663,Центральний офіс,39651598,Україна,Оплата за підготовку законопроектів згідно договору №11/09/2019 від 11.09.2019 р. Без ПДВ.,UA323808050000000026005643697,current,54000.00,Артеменко Віктор Володимирович,,фізична особа
ГОЛОС,"Київ, вулиця Смілянська, 17",69,2019-10-23,220,Організація заходів та інші організаційні послуги,Організація заходів та інші організаційні послуги,297662,Центральний офіс,39651598,Україна,Оплата за організацію виїзної партійної конференції згідно рахунку № В/01 від 18.10.2019 р. Без ПДВ.,UA323808050000000026005643697,current,7516.00,Ткаліч Олександр Петрович,,фізична особа
ГОЛОС,"Київ, вулиця Бастіонна, 6",60,2019-10-22,218,Інші податки,Податкові платежі,297764,Центральний офіс,39651598,Україна,Оплата за державну реєстрацію змін до відомостей. ККДБ: 22010300; символ звітності: 170. Без ПДВ.,UA323808050000000026005643697,current,580.00,ДКСУ,37567646,юридична особа
ГОЛОС,"Київ, вулиця Терещенківська, 11А",60,2019-10-22,219,Інші податки,Податкові платежі,297763,Центральний офіс,39651598,Україна,"Плата за надання відомостей з ЄДРПОУ. ККДБ 22012700; ""41"" Міністерство юстиції України; BLKK 0. Без ПДВ.",UA323808050000000026005643697,current,140.00,ГУ ДКСУ у м. Києві,37993783,юридична особа
ГОЛОС,Київ,66,2019-10-21,216,Повернення внесків приватних внесків (донорам),Повернення приватних внесків (донорам),297634,Центральний офіс,39651598,Україна,"Повернення внеску на підтримку партії на підставі наданої заяви від 17.10.2019 р. Кирилов Юрій Геннадійович, Без ПДВ.",UA323808050000000026005643697,current,500000.00,Кирилов Юрій Геннадійович,,фізична особа
ГОЛОС,"Львівська область, Львів",66,2019-10-21,217,Повернення внесків приватних внесків (донорам),Повернення приватних внесків (донорам),297633,Центральний офіс,39651598,Україна,"Повернення внеску на підтримку партії на підставі наданої заяви від 17.10.2019 р. Засадний Олег Миронович, Без ПДВ.",UA323808050000000026005643697,current,50000.00,Засадний Олег Миронович,,фізична особа
ГОЛОС,"Київ, вулиця Смілянська, 17",69,2019-10-18,215,Організація заходів та інші організаційні послуги,Організація заходів та інші організаційні послуги,297661,Центральний офіс,39651598,Україна,Оплата за послуги з організації виїзної конференції згідно рахунку №В/01 від 18.10.2019 р. Без ПДВ.,UA323808050000000026005643697,current,10650.00,Ткаліч Олександр Петрович,,фізична особа
ГОЛОС,Київ,66,2019-10-18,214,Повернення внесків приватних внесків (донорам),Повернення приватних внесків (донорам),297641,Центральний офіс,39651598,Україна,Повернення внеску Ісупова Д.Ю. на підтримку партії на підставі наданої заяви від 18.10.2019 р. Без ПДВ.,UA323808050000000026005643697,current,279000.00,Ісупов Дмитро Юрійович,,фізична особа
ГОЛОС,"Київ, вулиця Володимирська, 69",61,2019-10-17,212,Військовий збір,Податкові платежі,297762,Центральний офіс,39651598,Україна,*; 101; 39651598;11011000;військовий збір з з/п за жовтень 2019 року;;;,UA323808050000000026005643697,current,120.72,УДКСУ у Голосіївському районі м. Києва,38039757,юридична особа
ГОЛОС,"Київ, вулиця Володимирська, 69",63,2019-10-17,213,Податок на доходи,Податкові платежі,297761,Центральний офіс,39651598,Україна,*;101;39651598;11010100;податок на доходи фіз.осіб з заробітної плати за жовтень 2019 року;;;,UA323808050000000026005643697,current,1448.65,УДКСУ у Голосіївському районі м. Києва,38039757,юридична особа
ГОЛОС,"Київ, вулиця Шолуденка, 33/19",62,2019-10-17,214,Сплата ЄСВ,Податкові платежі,297760,Центральний офіс,39651598,Україна,*;101;39651598;сплата ЄСВ 22% на з/п за жовтень 2019 року;;;,UA323808050000000026005643697,current,1770.57,ГУ ДФС у м. Києві,43141267,юридична особа
ГОЛОС,"Київ, вулиця Пирогова, 7",70,2019-10-17,216,Банківські послуги,Інші витрати,297759,Центральний офіс,39651598,Україна,"Комiсiя банку за зарахування коштiв на СКР працiвникiв ПОЛІТИЧНА ПАРТІЯ ""ГОЛОС"" - Заробітна плата та аванси згiдно вiдомостi N 1 вiд 17.10.2019",UA323808050000000026005643697,current,45.35,"Київська філія АТ ""Райффайзен банк Аваль""",23494105,юридична особа
ГОЛОС,"Київська обл., Києво-Святошинський район, Вишневе",84,2019-10-17,215,"Заробітна плата, премії","Заробітна плата, лікарняні, вагітності, відрядження, компенсації",297660,Центральний офіс,39651598,Україна,"Заробітна плата за жовтень ПОЛІТИЧНА ПАРТІЯ ""ГОЛОС"" згiдно вiдомостi N 1 вiд 17.10.2019",UA323808050000000026005643697,current,6478.68,Грищенко Катерина Станіславівна,,фізична особа
ГОЛОС,"Полтавська область, Оржицький район",84,2019-10-16,210,"Заробітна плата, премії","Заробітна плата, лікарняні, вагітності, відрядження, компенсації",297659,Центральний офіс,39651598,Україна,Поповнення карткового рахунку Макаренко Оксана Володимирівна зарплата за жовтень 2019р.,UA323808050000000026005643697,current,11363.67,Макаренко Оксана Володимирівна,,фізична особа
ГОЛОС,"Київська обл., Києво-Святошинський район, Софіївська Борщагівка",84,2019-10-16,211,"Заробітна плата, премії","Заробітна плата, лікарняні, вагітності, відрядження, компенсації",297658,Центральний офіс,39651598,Україна,"Поповнення поточного рахунку Харченко Наталія Олегівна, заробітна плата за жовтень 2019р.",UA323808050000000026005643697,current,10000.30,Харченко Наталія Олегівна,,фізична особа
ГОЛОС,"Київ, вулиця Володимирська, 69",63,2019-10-15,207,Податок на доходи,Податкові платежі,297758,Центральний офіс,39651598,Україна,*;101;39651598;11010100;податок на доходи фіз.осіб з заробітної плати за жовтень 2019 року;;;,UA323808050000000026005643697,current,4777.04,УДКСУ у Голосіївському районі м. Києва,38039757,юридична особа
ГОЛОС,"Київ, вулиця Володимирська, 69",61,2019-10-15,208,Військовий збір,Податкові платежі,297757,Центральний офіс,39651598,Україна,*; 101; 39651598;11011000;військовий збір з з/п за жовтень 2019 року;;;,UA323808050000000026005643697,current,398.09,УДКСУ у Голосіївському районі м. Києва,38039757,юридична особа
ГОЛОС,"Київ, вулиця Шолуденка, 33/19",62,2019-10-15,209,Сплата ЄСВ,Податкові платежі,297756,Центральний офіс,39651598,Україна,*;101;39651598;сплата ЄСВ 22% на з/п за жовтень 2019 року;;;,UA323808050000000026005643697,current,5838.60,ГУ ДФС у м. Києві,43141267,юридична особа
ГОЛОС,"Львівська область, Львів",66,2019-10-11,206,Повернення внесків приватних внесків (донорам),Повернення приватних внесків (донорам),297640,Центральний офіс,39651598,Україна,Повернення внеску на підтримку партії на підстави заяви. Без ПДВ.,UA323808050000000026005643697,current,46000.00,Мальчик Василь Данилович,,фізична особа
ГОЛОС,,67,2019-10-11,206,"Повернення коштів, що надійшли з державного бюджету","Повернення коштів, що надійшли з державного бюджету",297628,Центральний офіс,39651598,Україна,"Перерахування до державного бюджету платежу платежу від 19.07.2019 р. у звʼязку з порушеннм ЗУ ""Про політичні партії України"" ст.15 п.5 (невстановлені особи)",UA323808050000000026005643697,current,100.00,Витошко Віктор Михайлович,,фізична особа
ГОЛОС,"Київ, вулиця Керченська, 3",82,2019-10-10,203,"Гонорари, в тому числі за надані консультаційні послуги","Гонорари, в тому числі за надані консультаційні послуги",297657,Центральний офіс,39651598,Україна,Оплата за консультаційні послуги згідно договору №190920 від 20.09.2019 р. Без ПДВ.,UA323808050000000026005643697,current,38430.00,Гавриш Роман Орестович,,фізична особа
ГОЛОС,"Київ, вулиця Григорія Ващенка, 1, 265",82,2019-10-10,204,"Гонорари, в тому числі за надані консультаційні послуги","Гонорари, в тому числі за надані консультаційні послуги",297656,Центральний офіс,39651598,Україна,Оплата за послуги консультування щодо законопроектів згідно договору № 02\09\2019 ВІД 02.09.2019 Р. Без ПДВ.,UA323808050000000026005643697,current,36000.00,Когут Ірина Богданівна,,фізична особа
ГОЛОС,"Київ, проспект Перемоги, 17, 115",82,2019-10-09,200,"Гонорари, в тому числі за надані консультаційні послуги","Гонорари, в тому числі за надані консультаційні послуги",297655,Центральний офіс,39651598,Україна,оплата за комплекс послуг зг. дог. № 02/09/2019 від 30.09.2019 без ПДВ,UA323808050000000026005643697,current,24000.00,Симоненко Злата Віталіївна,,фізична особа
ГОЛОС,"Київ, вулиця Дегтярівська, 49А",82,2019-10-09,202,"Гонорари, в тому числі за надані консультаційні послуги","Гонорари, в тому числі за надані консультаційні послуги",297654,Центральний офіс,39651598,Україна,оплата за комплекс послуг зг. дог. № 02/09/2019 від 30.09.2019 без ПДВ,UA323808050000000026005643697,current,24000.00,Гнатів Богдан Андрійович,,фізична особа
ГОЛОС,"Київ, Харківське шосе, 17",82,2019-10-09,203,"Гонорари, в тому числі за надані консультаційні послуги","Гонорари, в тому числі за надані консультаційні послуги",297653,Центральний офіс,39651598,Україна,оплата за комплекс послуг зг. дог. № б/н від 02.09.2019 без ПДВ,UA323808050000000026005643697,current,24000.00,Галушко Олена Сергіївна,,фізична особа
ГОЛОС,"Київ, вулиця Північна, 54В, 79",69,2019-10-09,198,Організація заходів та інші організаційні послуги,Організація заходів та інші організаційні послуги,297652,Центральний офіс,39651598,Україна,Оплата за організацію та проведення партійних заходів згідно договору №1 від 03.09.2019 р. Без ПДВ.,UA323808050000000026005643697,current,24000.00,Ніколаєнко Катерина Олександрівна,,фізична особа
ГОЛОС,"Київ, вулиця Володимира Наумовича, 6",82,2019-10-09,199,"Гонорари, в тому числі за надані консультаційні послуги","Гонорари, в тому числі за надані консультаційні послуги",297651,Центральний офіс,39651598,Україна,Оплата за комплекс послуг зг. дог. № 02/09/2019 від 02.09.2019 без ПДВ,UA323808050000000026005643697,current,24000.00,Мельник Максим Петрович,,фізична особа
ГОЛОС,"Львівська область, Львів, вулиця Драгана, 15, 12",68,2019-10-09,201,Соцдослідження,"Гонорари, в тому числі за надані консультаційні послуги",297650,Центральний офіс,39651598,Україна,Оплата за роботи з дослідження громадської думки згідно договору №16/09 від 16.09.2019 р. Без ПДВ.,UA323808050000000026005643697,current,318000.00,Антипович Олексій Георгійович,,фізична особа
ГОЛОС,"Київ, вулиця Володимирська, 69",61,2019-10-07,198,Військовий збір,Податкові платежі,297755,Центральний офіс,39651598,Україна,*; 101; 39651598;11011000;військовий збір з з/п за жовтень 2019 року;;;,UA323808050000000026005643697,current,57.81,УДКСУ у Голосіївському районі м. Києва,38039757,юридична особа
ГОЛОС,"Київ, вулиця Володимирська, 69",63,2019-10-07,199,Податок на доходи,Податкові платежі,297754,Центральний офіс,39651598,Україна,*;101;39651598;11010100;податок на доходи фіз.осіб з заробітної плати за жовтень 2019 року;;;,UA323808050000000026005643697,current,693.68,УДКСУ у Голосіївському районі м. Києва,38039757,юридична особа
ГОЛОС,"Київ, вулиця Шолуденка, 33/19",62,2019-10-07,200,Сплата ЄСВ,Податкові платежі,297753,Центральний офіс,39651598,Україна,*;101;39651598;сплата ЄСВ 22% на з/п за жовтень 2019 року;;;,UA323808050000000026005643697,current,847.83,ГУ ДФС у м. Києві,43141267,юридична особа
ГОЛОС,Київ,84,2019-10-07,197,"Заробітна плата, премії","Заробітна плата, лікарняні, вагітності, відрядження, компенсації",297649,Центральний офіс,39651598,Україна,"Поповнення картки Гевко Андрій Євгенович, зарплата за жовтень 2019 Без ПДВ.",UA323808050000000026005643697,current,3102.28,Гевко Андрій Євгенович,,фізична особа
ГОЛОС,"Львівська область, Львів",66,2019-10-07,195,Повернення внесків приватних внесків (донорам),Повернення приватних внесків (донорам),297632,Центральний офіс,39651598,Україна,Повернення внеску на підтримку партії на підставі заяви від 03.10.2019 р. Без ПДВ.,UA323808050000000026005643697,current,470000.00,Панчишин Ольга Богданівна,,фізична особа
ГОЛОС,"Львівська область, Львів",66,2019-10-07,196,Повернення внесків приватних внесків (донорам),Повернення приватних внесків (донорам),297631,Центральний офіс,39651598,Україна,Повернення внеску на підтримку партії на підставі заяви від 03.10.2019 р. Без ПДВ.,UA323808050000000026005643697,current,400000.00,Мовчан Вероніка Вікторівна,,фізична особа
ГОЛОС,"Львівська область, Львів",66,2019-10-07,194,Повернення внесків приватних внесків (донорам),Повернення приватних внесків (донорам),297630,Центральний офіс,39651598,Україна,Повернення внеску на підтримку партії на підставі заяви від 03.10.2019 р.,UA323808050000000026005643697,current,500000.00,Назарук Юрій Миколайович,,фізична особа
ГОЛОС,"Київ, вулиця Сурикова, 3",68,2019-10-04,190,Соцдослідження,"Гонорари, в тому числі за надані консультаційні послуги",297752,Центральний офіс,39651598,Україна,Оплата послуг з дослідження інформаційного простору згідно договору №01102019 від 01.10.2019 р. Без ПДВ.,UA323808050000000026005643697,current,70000.00,"ТОВ ""Корстоун груп""",41674090,юридична особа
ГОЛОС,"Кіровоградська область, Маловисківський район, Березівка",82,2019-10-04,192,"Гонорари, в тому числі за надані консультаційні послуги","Гонорари, в тому числі за надані консультаційні послуги",297648,Центральний офіс,39651598,Україна,Оплата за фотографічні послуги згідно договору №56 від 02.09.2019 р. Без ПДВ.,UA323808050000000026005643697,current,30000.00,Завгородній Євгеній Григорович,,фізична особа
ГОЛОС,"Київ, вулиця Академіка Грекова, 22А, 80",82,2019-10-04,193,"Гонорари, в тому числі за надані консультаційні послуги","Гонорари, в тому числі за надані консультаційні послуги",297647,Центральний офіс,39651598,Україна,Оплата за послуги з формування ключових тем комунікацій згідно договору № 02/09/2019 р. від 02.09.2019 р. Без ПДВ.,UA323808050000000026005643697,current,84000.00,Вибрановський Роман Богданович,,фізична особа
ГОЛОС,"Хмельницька область, Старокостянтинів, вулиця Попова, 20, 24",82,2019-10-04,191,"Гонорари, в тому числі за надані консультаційні послуги","Гонорари, в тому числі за надані консультаційні послуги",297646,Центральний офіс,39651598,Україна,Оплата за консультаційні послуги згідно договору № 11/09/2019 від 11.09.2019 р. Без ПДВ,UA323808050000000026005643697,current,32000.00,Артеменко Віктор Володимирович,,фізична особа
ГОЛОС,"Київ, вулиця Володимирська, 69",63,2019-10-03,191,Податок на доходи,Податкові платежі,297751,Центральний офіс,39651598,Україна,*;101;39651598; ПДФО із доходів інших ніж заробітна плата;;;,UA323808050000000026005643697,current,1080.00,УДКСУ у Голосіївському районі м. Києва,38039757,юридична особа
ГОЛОС,"Київ, вулиця Володимирська, 69",61,2019-10-03,192,Військовий збір,Податкові платежі,297750,Центральний офіс,39651598,Україна,*;101;39651598; ВЗ із доходів інших ніж заробітна плата;;;,UA323808050000000026005643697,current,90.00,УДКСУ у Голосіївському районі м. Києва,38039757,юридична особа
ГОЛОС,"Київська обл., Києво-Святошинський район, Чабани, вулиця Машинобудівників, 2, 84",60,2019-10-03,189,Інші податки,Податкові платежі,297645,Центральний офіс,39651598,Україна,Оплата за адміністрування поштових скриньок зг. дог. № 30/09/2019 от 30.09.2019 без ПДВ,UA323808050000000026005643697,current,27327.00,Товпеко Олександр Сергійович,,фізична особа
ГОЛОС,Київ,43,2019-10-03,190,Інші витрати,Інші витрати,297644,Центральний офіс,39651598,Україна,"оплата за користування логотипом ""ГОЛОС"" зг. дог. № 07/05/2019 від 07.05.2019 Без ПДВ.",UA323808050000000026005643697,current,4830.00,Вакарчук Святослав Іванович,,фізична особа
ГОЛОС,"Київ, вулиця Шолуденка, 33/19",62,2019-09-30,191,Сплата ЄСВ,Податкові платежі,297627,Центральний офіс,39651598,Україна,*;101;39651598;сплата ЄСВ 22% на з/п за вересень 2019 року;;;,26005643697,current,5491.29,ГУ ДФС у м. Києві,39439980,юридична особа
ГОЛОС,"Київ, вулиця Володимирська, 69",61,2019-09-30,192,Військовий збір,Податкові платежі,297626,Центральний офіс,39651598,Україна,*; 101; 39651598;11011000;військовий збір з з/п за вересень 2019 року;;;,26005643697,current,374.41,УДКСУ у Голосіївському районі м. Києва,38039757,юридична особа
ГОЛОС,"Київ, вулиця Володимирська, 69",63,2019-09-30,193,Податок на доходи,Податкові платежі,297625,Центральний офіс,39651598,Україна,*;101;39651598;11010100;податок на доходи фіз.осіб з заробітної плати за вересень 2019 року;;;,26005643697,current,4492.88,УДКСУ у Голосіївському районі м. Києва,38039757,юридична особа
ГОЛОС,"Київ, вулиця Миколи Лєскова, 9",70,2019-09-30,bn,Банківські послуги,Інші витрати,297624,Центральний офіс,39651598,Україна,"Комісія за ведення поточних рахунків клієнта ПП ""ГОЛОС"" в дирек. 26-Київ за період з 30.08.19 по 29.09.19, без ПДВ",26005643697,current,250.00,"АТ ""Райффайзен банк Аваль""",14305909,юридична особа
ГОЛОС,"Київ, вулиця Миколи Лєскова, 9",70,2019-09-30,bn,Банківські послуги,Інші витрати,297623,Центральний офіс,39651598,Україна,"Комісія за вих перекази в нац валюті (Клієнт-Банк) з 30.08.19 по 29.09.19 по рах №UA323808050000000026005643697(UAH) 40*2=80 грн, без ПДВ",26005643697,current,80.00,"АТ ""Райффайзен банк Аваль""",14305909,юридична особа
ГОЛОС,"Київська обл., Києво-Святошинський район, Мила",68,2019-09-30,188,Соцдослідження,"Гонорари, в тому числі за надані консультаційні послуги",297532,Центральний офіс,39651598,Україна,Оплата за послуги райтера соціальних медіа зг. дог. № п25/08 від 25.08.2019 без ПДВ,26005643697,current,24000.00,Дацюк Ольга Вікторівна,,фізична особа
ГОЛОС,Київ,84,2019-09-30,189,"Заробітна плата, премії","Заробітна плата, лікарняні, вагітності, відрядження, компенсації",297531,Центральний офіс,39651598,Україна,"Поповнення картки Гевко Андрій Євгенович, зарплата за вересень 2019 Без ПДВ.",26005643697,current,1759.62,Гевко Андрій Євгенович,,фізична особа
ГОЛОС,"Полтавська область, Оржицький район, Новооржицьке",84,2019-09-30,190,"Заробітна плата, премії","Заробітна плата, лікарняні, вагітності, відрядження, компенсації",297530,Центральний офіс,39651598,Україна,Поповнення карткового рахунку Макаренко Оксана Володимирівна зарплата за вересень 2019р.,26005643697,current,13095.28,Макаренко Оксана Володимирівна,,фізична особа
ГОЛОС,"Київська обл., Києво-Святошинський район, Софіївська Борщагівка",84,2019-09-30,194,"Заробітна плата, премії","Заробітна плата, лікарняні, вагітності, відрядження, компенсації",297529,Центральний офіс,39651598,Україна,"Поповнення поточного рахунку, Харченко Наталія Олегівна, заробітна плата за вересень 2019р.",26005643697,current,5238.24,Харченко Наталія Олегівна,,фізична особа
ГОЛОС,"Львівська область, Львів, вулиця Пекарська, 45, 9",69,2019-09-27,186,Організація заходів та інші організаційні послуги,Організація заходів та інші організаційні послуги,297528,Центральний офіс,39651598,Україна,Оплата за послуги з організації заходу згідно рахунку №77 від 24.09.2019 р. Без ПДВ.,26005643697,current,9690.00,Шостак Ольга Василівна,,фізична особа
ГОЛОС,"Київ, вулиця Північна, 54В, 79",69,2019-09-27,187,Організація заходів та інші організаційні послуги,Організація заходів та інші організаційні послуги,297527,Центральний офіс,39651598,Україна,Оплата за організацію та проведення партійних заходів згідно договору №1 від 3.09.3019 р. Без ПДВ.,26005643697,current,26400.00,Ніколаєнко Катерина Олександрівна,,фізична особа
ГОЛОС,"Київ, вулиця Євгена Сверстюка, 13",72,2019-09-25,183,"Придбання, ремонт офісної техніки та програмного забезпечення (Бухгалтерські програми, Ліга.закон, домени)",Придбання офісної техніки та програмного забезпечення,297622,Центральний офіс,39651598,Україна,оплата за Прогр. продукцію BAS Бухгалтерія. ПРОФ. компл на 5 кор. зг. рах. № 435 від 19.09.2019 без ПДВ,26005643697,current,12900.00,"ТОВ ""Еккаунт солюшн""",42474847,юридична особа
ГОЛОС,"Хмельницька область, Кам'янець-Подільський район, Слобідка-Рихтівська",58,2019-09-25,184,"Виготовлення друкованих матеріалів (плакатів, листівок, буклетів та інших агітаційних матеріалів)",Друкована агітація,297526,Центральний офіс,39651598,Україна,Оплата за друк візиток згідно рахунку №35-24-09-19-CSS від 24.09.2019 р. Без ПДВ,26005643697,current,1125.00,Волошин Руслан Михайлович,,фізична особа
ГОЛОС,"Хмельницька область, Кам'янець-Подільський район, Слобідка-Рихтівська",58,2019-09-25,185,"Виготовлення друкованих матеріалів (плакатів, листівок, буклетів та інших агітаційних матеріалів)",Друкована агітація,297525,Центральний офіс,39651598,Україна,Оплата за друк візиток згідно рахунку №35-24-09-19-CSS від 24.09.2019 р. Без ПДВ,26005643697,current,3150.00,Волошин Руслан Михайлович,,фізична особа
ГОЛОС,"Київ, вулиця Ярославів Вал, 22",69,2019-09-20,180,Організація заходів та інші організаційні послуги,Організація заходів та інші організаційні послуги,297621,Центральний офіс,39651598,Україна,"Оплата за оренду конференц-залу згідно рахунку №000007543 від 16.09.2019 р. в т.ч. ПДВ 3084,75 грн",26005643697,current,18508.50,"ТОВ ""Сасск""",30180471,юридична особа
ГОЛОС,Київ,66,2019-09-19,178,Повернення внесків приватних внесків (донорам),Повернення приватних внесків (донорам),297449,Центральний офіс,39651598,Україна,Повернення внеску на підтримку партії у звʼязку з наявністю податкового боргу.,26005643697,current,500000.00,Бест Наталія Вікторівна,,фізична особа
ГОЛОС,Київ,66,2019-09-19,179,Повернення внесків приватних внесків (донорам),Повернення приватних внесків (донорам),297443,Центральний офіс,39651598,Україна,Повернення внеску на підтримку партії у звʼязку з наявністю податкового боргу.,26005643697,current,1600000.00,Чаус Наталія Миколаївна,,фізична особа
ГОЛОС,"Хмельницька область, Кам'янець-Подільський район, Слобідка-Рихтівська",58,2019-09-18,176,"Виготовлення друкованих матеріалів (плакатів, листівок, буклетів та інших агітаційних матеріалів)",Друкована агітація,297524,Центральний офіс,39651598,Україна,Оплата за друк візиток згідно рахунку №29-17-09-19-CSS від 17 вересня 2019 р. Без ПДВ.,26005643697,current,2700.00,Волошин Руслан Михайлович,,фізична особа
ГОЛОС,Київ,66,2019-09-18,174,Повернення внесків приватних внесків (донорам),Повернення приватних внесків (донорам),297447,Центральний офіс,39651598,Україна,Повернення внеску на підтримку партії у звʼязку з наявністю податкового боргу.,26005643697,current,600000.00,Кравченко Олександр Сергійович,,фізична особа
ГОЛОС,Київ,66,2019-09-18,175,Повернення внесків приватних внесків (донорам),Повернення приватних внесків (донорам),297442,Центральний офіс,39651598,Україна,Повернення внеску на підтримку партії у звʼязку з наявністю податкового боргу.,26005643697,current,500000.00,Безпʼятов Андрій Валерійович,,фізична особа
ГОЛОС,Київ,66,2019-09-18,173,Повернення внесків приватних внесків (донорам),Повернення приватних внесків (донорам),297439,Центральний офіс,39651598,Україна,Повернення внеску на підтримку партії у звʼязку з наявністю податкового боргу.,26005643697,current,250000.00,Фурса Сергій Віталійович,,фізична особа
ГОЛОС,Київ,66,2019-09-18,177,Повернення внесків приватних внесків (донорам),Повернення приватних внесків (донорам),297438,Центральний офіс,39651598,Україна,Повернення внеску на підтримку партії у звʼязку з наявністю податкового боргу.,26005643697,current,1489200.00,Лукачук Тарас Ігорович,,фізична особа
ГОЛОС,"Київ, вулиця Рейтарська, 8/5А",69,2019-09-17,172,Організація заходів та інші організаційні послуги,Організація заходів та інші організаційні послуги,297620,Центральний офіс,39651598,Україна,"Оплата за організацію та проведення прес-конференціії згідно з рахунком № СФ-0000388 від 06.09.2019 в т.ч. ПДВ (20%) 1 000,00",26005643697,current,6000.00,"ТОВ ""Інформаційне агенство ""Інтерфакс-Україна""",23732734,юридична особа
ГОЛОС,"Дніпропетровська область, Кам’янське, вулиця Металургів, 80, 6",82,2019-09-17,169,"Гонорари, в тому числі за надані консультаційні послуги","Гонорари, в тому числі за надані консультаційні послуги",297523,Центральний офіс,39651598,Україна,оплата за консультаційні послуги згідно Договору від 19.08.2019 без ПДВ,26005643697,current,69383.00,Божко Іван Олександрович,,фізична особа
ГОЛОС,Київ,66,2019-09-17,170,Повернення внесків приватних внесків (донорам),Повернення приватних внесків (донорам),297441,Центральний офіс,39651598,Україна,Повернення внеску на підтримку партії у звʼязку з наявністю податкового боргу.,26005643697,current,500000.00,Чернишов Петро Анатолійович,,фізична особа
ГОЛОС,Київ,66,2019-09-17,171,Повернення внесків приватних внесків (донорам),Повернення приватних внесків (донорам),297437,Центральний офіс,39651598,Україна,Повернення внеску на підтримку партії у звʼязку з наявністю податкового боргу.,26005643697,current,300000.00,Ублінських Олександр Юрійович,,фізична особа
ГОЛОС,"Київ, вулиця Володимирська, 69",61,2019-09-13,170,Військовий збір,Податкові платежі,297619,Центральний офіс,39651598,Україна,*; 101; 39651598;11011000;військовий збір з з/п за вересень 2019 року;;;,26005643697,current,296.01,УДКСУ у Голосіївському районі м. Києва,38039757,юридична особа
ГОЛОС,"Київ, вулиця Шолуденка, 33/19",62,2019-09-13,171,Сплата ЄСВ,Податкові платежі,297618,Центральний офіс,39651598,Україна,*;101;39651598;сплата ЄСВ 22% на з/п за вересень 2019 року;;;,26005643697,current,4341.42,ГУ ДФС у м. Києві,39439980,юридична особа
ГОЛОС,"Київ, вулиця Володимирська, 69",63,2019-09-13,172,Податок на доходи,Податкові платежі,297617,Центральний офіс,39651598,Україна,*;101;39651598;11010100;податок на доходи фіз.осіб з заробітної плати за вересень 2019 року;;;,26005643697,current,3552.07,УДКСУ у Голосіївському районі м. Києва,38039757,юридична особа
ГОЛОС,"Київ, вулиця Університетська, 13А",82,2019-09-13,175,"Гонорари, в тому числі за надані консультаційні послуги","Гонорари, в тому числі за надані консультаційні послуги",297616,Центральний офіс,39651598,Україна,Оплата за послуги з ведення консультування та бухобліку за червень згідно рахунку №GLS/03-06-19/002 від 03.06.2019 р. Без ПДВ.,26005643697,current,15000.00,"ТОВ ""ЕБС адвантедж""",36538593,юридична особа
ГОЛОС,"Київ, вулиця Університетська, 13А",82,2019-09-13,176,"Гонорари, в тому числі за надані консультаційні послуги","Гонорари, в тому числі за надані консультаційні послуги",297615,Центральний офіс,39651598,Україна,Оплата за послуги з ведення консультування та бухобліку за липень згідно рахунку №GLS/01-07-19/002 від 03.06.2019 р. Без ПДВ.,26005643697,current,15000.00,"ТОВ ""ЕБС адвантедж""",36538593,юридична особа
ГОЛОС,"Полтавська область, Оржицький район, Новооржицьке",84,2019-09-13,174,"Заробітна плата, премії","Заробітна плата, лікарняні, вагітності, відрядження, компенсації",297522,Центральний офіс,39651598,Україна,Поповнення карткового рахунку Макаренко Оксана Володимирівна код зарплата за вересень 2019р.,26005643697,current,14285.99,Макаренко Оксана Володимирівна,,фізична особа
ГОЛОС,Київ,84,2019-09-13,173,"Заробітна плата, премії","Заробітна плата, лікарняні, вагітності, відрядження, компенсації",297521,Центральний офіс,39651598,Україна,"Поповнення картки Гевко Андрій Євгенович, зарплата за вересень 2019 Без ПДВ.",26005643697,current,1599.64,Гевко Андрій Євгенович,,фізична особа
ГОЛОС,"Київ, бульвар Дружби Народів, 8А",72,2019-09-12,169,"Придбання, ремонт офісної техніки та програмного забезпечення (Бухгалтерські програми, Ліга.закон, домени)",Придбання офісної техніки та програмного забезпечення,297614,Центральний офіс,39651598,Україна,"Оплата за ноутбуки згідно рахунку №СФ-02439002 від 10.09.2019 р. В т.ч. ПДВ 15507,50",26005643697,current,93045.00,"ТОВ ""Розетка.УА""",37193071,юридична особа
ГОЛОС,"Хмельницька область, Кам'янець-Подільський район, Слобідка-Рихтівська",58,2019-09-12,168,"Виготовлення друкованих матеріалів (плакатів, листівок, буклетів та інших агітаційних матеріалів)",Друкована агітація,297520,Центральний офіс,39651598,Україна,Оплата за друк візиток згідно рахунку №14-11-09-19-CSS від 11.09.2019 р. Без ПДВ,26005643697,current,4050.00,Волошин Руслан Михайлович,,фізична особа
ГОЛОС,Київ,82,2019-09-09,167,"Гонорари, в тому числі за надані консультаційні послуги","Гонорари, в тому числі за надані консультаційні послуги",297519,Центральний офіс,39651598,Україна,Оплата за нотаріальні послуги згідно рахунку №б/н від 06.09.2019 р. Без ПДВ.,26005643697,current,2000.00,Волкова Світлана Михайлівна,,фізична особа
ГОЛОС,"Чернігівська область, Чернігівський район, Снов'янка",69,2019-09-06,166,Організація заходів та інші організаційні послуги,Організація заходів та інші організаційні послуги,297613,Центральний офіс,39651598,Україна,Оплата за оренду конференц залу згідно рахунку № ШСГ-000985 від 18.08.2019 р. Без ПДВ.,26005643697,current,11507.60,"ТОВ ""Шишкін спа готель""",40148694,юридична особа
ГОЛОС,"Київ, вулиця Андрія Малишка, 3",82,2019-09-06,167,"Гонорари, в тому числі за надані консультаційні послуги","Гонорари, в тому числі за надані консультаційні послуги",297518,Центральний офіс,39651598,Україна,Оплата за підготовку документів згідно акту №17 від 06.09.2019 р. Без ПДВ.,26005643697,current,37845.00,Білозір Олена Михайлівна,,фізична особа
ГОЛОС,"Київ, вулиця Академіка Вільямса, 3, 226",82,2019-09-06,159,"Гонорари, в тому числі за надані консультаційні послуги","Гонорари, в тому числі за надані консультаційні послуги",297517,Центральний офіс,39651598,Україна,оплата за юридичні послуги в серпні 2019 зг. рах. № 32 від 28.08.2019 без ПДВ,26005643697,current,16000.00,Ревунова Аліна Олександрівна,,фізична особа
ГОЛОС,"Київ, вулиця Рейтарська, 8/5А",69,2019-09-05,165,Організація заходів та інші організаційні послуги,Організація заходів та інші організаційні послуги,297612,Центральний офіс,39651598,Україна,"Оплата організації та проведення прес-конференціії згідно з рахунком № СФ-0000386 від 04.09.2019 в т.ч. ПДВ (20%) 666,67 грн",26005643697,current,4000.00,"ТОВ ""Інформаційне агенство ""Інтерфакс-Україна""",23732734,юридична особа
ГОЛОС,"Київ, вулиця Академіка Вільямса, 3, 226",82,2019-09-04,163,"Гонорари, в тому числі за надані консультаційні послуги","Гонорари, в тому числі за надані консультаційні послуги",297516,Центральний офіс,39651598,Україна,оплата за юридичні послуги в серпні 2019 зг. рах. № 32 від 28.08.2019 без ПДВ,26005643697,current,16000.00,Ревунова Аліна Олександрівна,,фізична особа
ГОЛОС,"Київ, вулиця Північна, 54В, 79",69,2019-09-04,164,Організація заходів та інші організаційні послуги,Організація заходів та інші організаційні послуги,297515,Центральний офіс,39651598,Україна,Оплата за організацію партійних заходів згідно договору №1 від 03.09.2019 р. Без ПДВ.,26005643697,current,27750.00,Ніколаєнко Катерина Олександрівна,,фізична особа
ГОЛОС,"Київ, вулиця Миколи Лєскова, 9",70,2019-08-30,bn,Банківські послуги,Інші витрати,297611,Центральний офіс,39651598,Україна,"Комісія за ведення поточних рахунків клієнта ПП ""ГОЛОС"" в дирек. 26-Київ за період з 31.07.19 по 29.08.19, без ПДВ",26005643697,current,250.00,"АТ ""Райффайзен банк Аваль""",14305909,юридична особа
ГОЛОС,"Київ, вулиця Миколи Лєскова, 9",70,2019-08-30,bn,Банківські послуги,Інші витрати,297610,Центральний офіс,39651598,Україна,"Комісія за вих перекази в нац валюті (Клієнт-Банк) з 31.07.19 по 29.08.19 по рах №26005643697(UAH) 61*2=122 грн, без ПДВ",26005643697,current,122.00,"АТ ""Райффайзен банк Аваль""",14305909,юридична особа
ГОЛОС,"Київ, вулиця Володимирська, 69",61,2019-08-30,160,Військовий збір,Податкові платежі,297609,Центральний офіс,39651598,Україна,*; 101; 39651598;11011000;військовий збір з з/п за серпень 2019 року;;;,26005643697,current,84.78,УДКСУ у Голосіївському районі м. Києва,38039757,юридична особа
ГОЛОС,"Київ, вулиця Володимирська, 69",63,2019-08-30,161,Податок на доходи,Податкові платежі,297608,Центральний офіс,39651598,Україна,*;101;39651598;11010100;податок на доходи фіз.осіб з заробітної плати за серпень 2019 року;;;,26005643697,current,1017.33,УДКСУ у Голосіївському районі м. Києва,38039757,юридична особа
ГОЛОС,"Київ, вулиця Шолуденка, 33/19",62,2019-08-30,162,Сплата ЄСВ,Податкові платежі,297607,Центральний офіс,39651598,Україна,*;101;39651598;сплата ЄСВ 22% на з/п за серпень 2019 року;;;,26005643697,current,1243.41,ГУ ДФС у м. Києві,39439980,юридична особа
ГОЛОС,Київ,84,2019-08-30,163,"Заробітна плата, премії","Заробітна плата, лікарняні, вагітності, відрядження, компенсації",297514,Центральний офіс,39651598,Україна,"Поповнення картки Гевко Андрій Євгенович, зарплата за серпень 2019 Без ПДВ.",26005643697,current,3359.26,Гевко Андрій Євгенович,,фізична особа
ГОЛОС,"Полтавська область, Оржицький район, Новооржицьке",84,2019-08-30,164,"Заробітна плата, премії","Заробітна плата, лікарняні, вагітності, відрядження, компенсації",297513,Центральний офіс,39651598,Україна,Поповнення карткового рахунку Макаренко Оксана Володимирівна код зарплата за серпень 2019р.,26005643697,current,1190.49,Макаренко Оксана Володимирівна,,фізична особа
ГОЛОС,"Івано-Франківська область, Коломия, вулиця Січових Стрільців, 44, 48",82,2019-08-30,1260,"Гонорари, в тому числі за надані консультаційні послуги","Гонорари, в тому числі за надані консультаційні послуги",297512,Центральний офіс,39651598,Україна,Оплата за комплекс послуг згідно акту від 24.08.2019 р. Без ПДВ.,26005643697,current,27753.00,Жуков Артем Володимирович,,фізична особа
ГОЛОС,"Івано-Франківська область, Коломия, вулиця Січових Стрільців, 44, 48",82,2019-08-30,1261,"Гонорари, в тому числі за надані консультаційні послуги","Гонорари, в тому числі за надані консультаційні послуги",297511,Центральний офіс,39651598,Україна,Оплата за розробку графіки згідно акту від 30.08.2019 р. Без ПДВ.,26005643697,current,67375.00,Жуков Артем Володимирович,,фізична особа
ГОЛОС,"Чернігівська область, Чернігівський район, Снов'янка",69,2019-08-28,158,Організація заходів та інші організаційні послуги,Організація заходів та інші організаційні послуги,297606,Центральний офіс,39651598,Україна,"оплата за послуги харчування згідно рах. № ШР-0000216 від 18.08.2019 в т.ч. ПДВ 5752,11",26005643697,current,34512.68,"ТОВ ""Шишкін ресторан""",41485601,юридична особа
ГОЛОС,"Запорізька область, Запоріжжя, проспект Соборний, 160",79,2019-08-28,156,"Оренда будинків і приміщень та експлуатаційні витрати (прибирання, страхування орендованих будинків, охорона, сигналізація, ремонт, вивіз сміття, тощо)",Оренда нерухомості,297605,Центральний офіс,39651598,Україна,"за оренду приміщення за липень за Договором оренди № MLA/214 від 14.06.2019 в т.ч. ПДВ 20% 2407,64",26005643697,current,14445.82,"ТОВ ""Українська комерційна нерухомість""",33242664,юридична особа
ГОЛОС,"Запорізька область, Запоріжжя, проспект Соборний, 160",79,2019-08-28,157,"Оренда будинків і приміщень та експлуатаційні витрати (прибирання, страхування орендованих будинків, охорона, сигналізація, ремонт, вивіз сміття, тощо)",Оренда нерухомості,297604,Центральний офіс,39651598,Україна,"Відшкодування варт. ел.енергії( інд. лічильн) за липень за Договором оренди № MLA/214 від 14.06.2019 в т.ч. ПДВ 20% 2,75",26005643697,current,16.49,"ТОВ ""Українська комерційна нерухомість""",33242664,юридична особа
ГОЛОС,,67,2019-08-28,159,"Повернення коштів, що надійшли з державного бюджету","Повернення коштів, що надійшли з державного бюджету",297436,Центральний офіс,39651598,Україна,"Перерахування до державного бюджету платежу від 16.07.2019 р. у звʼязку з порушенням ЗУ ""Про політичні партії України"", ст.15.п 5 (невстановлені особи)",26005643697,current,200.00,Петрик Ігор Вячеславович,,фізична особа
ГОЛОС,,67,2019-08-28,158,"Повернення коштів, що надійшли з державного бюджету","Повернення коштів, що надійшли з державного бюджету",297435,Центральний офіс,39651598,Україна,"Перерахування до державного бюджету платежу від 15.07.2019 р. у звʼязку з порушенням ЗУ ""Про політичні партії України"", ст.15.п 5 (невстановлені особи)",26005643697,current,1000.00,Раздуєв Олександр Віталійович,,фізична особа
ГОЛОС,"Київ, вулиця Кирилівська, 102",60,2019-08-20,154,Інші податки,Податкові платежі,297603,Центральний офіс,39651598,Україна,"Оплата за кваліфікований сертифікат згідно рахунку № ТКК-39651598, в т.ч. ПДВ - 1 грн",26005643697,current,92.00,"ТОВ ""Центр сертифікації ключів ""Україна""",36865753,юридична особа
ГОЛОС,"Київ, вулиця Олени Пчілки, 2",82,2019-08-20,153,"Гонорари, в тому числі за надані консультаційні послуги","Гонорари, в тому числі за надані консультаційні послуги",297510,Центральний офіс,39651598,Україна,Оплата за одноразове консультування згідно рахунку № 1272 від 20.08.2019 р. Без ПДВ.,26005643697,current,530.00,Ніколайчук Людмила Леонідівна,,фізична особа
ГОЛОС,"Закарпатська область, Ужгород",79,2019-08-20,155,"Оренда будинків і приміщень та експлуатаційні витрати (прибирання, страхування орендованих будинків, охорона, сигналізація, ремонт, вивіз сміття, тощо)",Оренда нерухомості,297509,Центральний офіс,39651598,Україна,Оренда приміщення за липень за Договором від 10.06.2019 без ПДВ,26005643697,current,19585.00,Рахівська Олена Андріївна,,фізична особа
ГОЛОС,"Київ, вулиця Жилянська, 75",79,2019-08-16,146,"Оренда будинків і приміщень та експлуатаційні витрати (прибирання, страхування орендованих будинків, охорона, сигналізація, ремонт, вивіз сміття, тощо)",Оренда нерухомості,297602,Центральний офіс,39651598,Україна,оплата за оренду оф. приміщення травень 2019 зг. рах. № 1 від 31.05.2019 за договором СУборенда 263/с-19 от 22.05.2019,26005643697,current,10440.00,"ГО ""Справжні зміни""",42949909,юридична особа
ГОЛОС,"Київ, вулиця Жилянська, 75",79,2019-08-16,147,"Оренда будинків і приміщень та експлуатаційні витрати (прибирання, страхування орендованих будинків, охорона, сигналізація, ремонт, вивіз сміття, тощо)",Оренда нерухомості,297601,Центральний офіс,39651598,Україна,оплата відшкодування ком. витрат за травень 2019 зг. рах. № 2 від 31.05.2019 за договором СУборенди 263/с-19 от 22.05.2019 без ПДВ,26005643697,current,564.58,"ГО ""Справжні зміни""",42949909,юридична особа
ГОЛОС,"Київ, вулиця Жилянська, 75",79,2019-08-16,148,"Оренда будинків і приміщень та експлуатаційні витрати (прибирання, страхування орендованих будинків, охорона, сигналізація, ремонт, вивіз сміття, тощо)",Оренда нерухомості,297600,Центральний офіс,39651598,Україна,Оплата за оренду оф. приміщення червень 2019 зг. рах. № 3 від 01.06.2019 за договором СУборенда 263/с-19 от 22.05.2019,26005643697,current,38076.56,"ГО ""Справжні зміни""",42949909,юридична особа
ГОЛОС,"Київ, вулиця Жилянська, 75",79,2019-08-16,149,"Оренда будинків і приміщень та експлуатаційні витрати (прибирання, страхування орендованих будинків, охорона, сигналізація, ремонт, вивіз сміття, тощо)",Оренда нерухомості,297599,Центральний офіс,39651598,Україна,оплата за оренду оф. приміщення липень 2019 зг. рах. № 5 від 01.07.2019 за договором СУборенда 263/с-19 от 22.05.2019 без ПДВ,26005643697,current,38396.58,"ГО ""Справжні зміни""",42949909,юридична особа
ГОЛОС,"Київ, вулиця Жилянська, 75",79,2019-08-16,150,"Оренда будинків і приміщень та експлуатаційні витрати (прибирання, страхування орендованих будинків, охорона, сигналізація, ремонт, вивіз сміття, тощо)",Оренда нерухомості,297598,Центральний офіс,39651598,Україна,оплата відшкодування ком. витрат за червень 2019 зг. рах. № 4 від 30.06.2019 за договором СУборенди 263/с-19 от 22.05.2019 без ПДВ,26005643697,current,129.81,"ГО ""Справжні зміни""",42949909,юридична особа
ГОЛОС,"Київ, вулиця Жилянська, 75",79,2019-08-16,151,"Оренда будинків і приміщень та експлуатаційні витрати (прибирання, страхування орендованих будинків, охорона, сигналізація, ремонт, вивіз сміття, тощо)",Оренда нерухомості,297597,Центральний офіс,39651598,Україна,оплата відшкодування ком. витрат за червень 2019 зг. рах. № 6 від 30.06.2019 за договором СУборенди 263/с-19 от 22.05.2019 без ПДВ,26005643697,current,1506.05,"ГО ""Справжні зміни""",42949909,юридична особа
ГОЛОС,"Київ, вулиця Володимирська, 69",63,2019-08-16,152,Податок на доходи,Податкові платежі,297596,Центральний офіс,39651598,Україна,*;101;39651598;11010100;податок на доходи фіз.осіб з заробітної плати за травень - серпень 2019 року;;;,26005643697,current,26014.00,УДКСУ у Голосіївському районі м. Києва,38039757,юридична особа
ГОЛОС,"Київ, вулиця Володимирська, 69",61,2019-08-16,153,Військовий збір,Податкові платежі,297595,Центральний офіс,39651598,Україна,*; 101; 39651598;11011000;військовий збір з з/п за травень-серпень 2019 року;;;,26005643697,current,2167.85,УДКСУ у Голосіївському районі м. Києва,38039757,юридична особа
ГОЛОС,"Київ, вулиця Шолуденка, 33/19",62,2019-08-16,154,Сплата ЄСВ,Податкові платежі,297594,Центральний офіс,39651598,Україна,*;101;39651598;сплата ЄСВ 22% на з/п за травень-серпень 2019 року;;;,26005643697,current,31794.89,ГУ ДФС у м. Києві,39439980,юридична особа
ГОЛОС,"Київ, вулиця Бульварно-Кудрявська, 8, 26",82,2019-08-16,1152,"Гонорари, в тому числі за надані консультаційні послуги","Гонорари, в тому числі за надані консультаційні послуги",297508,Центральний офіс,39651598,Україна,"Оплата за інформаційно-консультаційні послуги за договором від 29.07.2019, без ПДВ",26005643697,current,203517.82,Бакланова Олександра Євгенівна,,фізична особа
ГОЛОС,Київ,84,2019-08-16,155,"Заробітна плата, премії","Заробітна плата, лікарняні, вагітності, відрядження, компенсації",297507,Центральний офіс,39651598,Україна,"Поповнення поточного рахунку ЮРЧИШИН ЯРОСЛАВ РОМАНОВИЧ, зарплата за травень - серпень 2019 Без ПДВ.",26005643697,current,29972.81,Юрчишин Ярослав Романович,,фізична особа
ГОЛОС,Київ,84,2019-08-16,156,"Заробітна плата, премії","Заробітна плата, лікарняні, вагітності, відрядження, компенсації",297506,Центральний офіс,39651598,Україна,"Поповнення карткового рахунку, Железняк Ярослав Іванович зарплата за травень - серпень 2019 Без ПДВ",26005643697,current,29226.31,Железняк Ярослав Іванович,,фізична особа
ГОЛОС,Київ,84,2019-08-16,157,"Заробітна плата, премії","Заробітна плата, лікарняні, вагітності, відрядження, компенсації",297505,Центральний офіс,39651598,Україна,"Поповнення картки Гевко Андрій Євгенович, зарплата за травень - серпень 2019 Без ПДВ.",26005643697,current,25972.25,Гевко Андрій Євгенович,,фізична особа
ГОЛОС,Київ,84,2019-08-16,1153,"Заробітна плата, премії","Заробітна плата, лікарняні, вагітності, відрядження, компенсації",297504,Центральний офіс,39651598,Україна,"Поповнення карткового рахунку Клименко Юлія Леонідівна, зарплата за травень - серпень 2019 Без ПДВ.",26005643697,current,31168.93,Клименко Юлія Леонідівна,,фізична особа
ГОЛОС,"Київ, проспект Валерія Лобановського, 119",69,2019-08-15,145,Організація заходів та інші організаційні послуги,Організація заходів та інші організаційні послуги,297593,Центральний офіс,39651598,Україна,Оплата за тимчасове платне користування приміщенням згідно рахунку №СФ-0000091 від 15.07.2019 р. В т.ч. ПДВ - 25000 грн.,26005643697,current,150000.00,"ТОВ ""Стерео Плаза Груп""",38515227,юридична особа
ГОЛОС,"Чернігівська область, Чернігівський район, Снов'янка",82,2019-08-13,142,"Гонорари, в тому числі за надані консультаційні послуги","Гонорари, в тому числі за надані консультаційні послуги",297592,Центральний офіс,39651598,Україна,"оплата за послуги згідно рах. № ШСГ-000952 від 12.08.2019 в т.ч. ПДВ 10141,33",26005643697,current,61173.52,"ТОВ ""Шишкін спа готель""",40148694,юридична особа
ГОЛОС,"Чернігівська область, Чернігівський район, Снов'янка",69,2019-08-13,146,Організація заходів та інші організаційні послуги,Організація заходів та інші організаційні послуги,297591,Центральний офіс,39651598,Україна,"оплата за послуги харчування згідно рах. № ШР-0000206 від 13.08.2019 в т.ч. ПДВ 6255,73",26005643697,current,37534.36,"ТОВ ""Шишкін ресторан""",41485601,юридична особа
ГОЛОС,Київ,82,2019-08-13,143,"Гонорари, в тому числі за надані консультаційні послуги","Гонорари, в тому числі за надані консультаційні послуги",297503,Центральний офіс,39651598,Україна,Оплата за засвідчення копій статутних документів згідно рах. № 592 від 09.08.2019 без ПДВ,26005643697,current,1500.00,Волкова Світлана Михайлівна,,фізична особа
ГОЛОС,"Київ, Харківське шосе, 152, 279",66,2019-08-13,145,Повернення внесків приватних внесків (донорам),Повернення приватних внесків (донорам),297452,Центральний офіс,39651598,Україна,повернення помилково перерарахованих коштів,26005643697,current,1400000.00,Ковтонюк Олександр Миколайович,,фізична особа
ГОЛОС,Київ,82,2019-08-12,141,"Гонорари, в тому числі за надані консультаційні послуги","Гонорари, в тому числі за надані консультаційні послуги",297502,Центральний офіс,39651598,Україна,Оплата за засвідчення копій статутних документів згідно рах. бн від 07.08.2019 без ПДВ,26005643697,current,900.00,Волкова Світлана Михайлівна,,фізична особа
ГОЛОС,"Київ, вулиця Терещенківська, 11А",60,2019-08-09,139,Інші податки,Податкові платежі,297590,Центральний офіс,39651598,Україна,Адміністративний збір за проведення державної реєстрації громадських формувань,26005643697,current,580.00,ГУ ДКСУ у м. Києві,37993783,юридична особа
ГОЛОС,"Київ, вулиця Терещенківська, 11А",60,2019-08-09,140,Інші податки,Податкові платежі,297589,Центральний офіс,39651598,Україна,Плата за скорочення термінів надання послуг у сфері державної реєстрації громадських формувань,26005643697,current,5800.00,ГУ ДКСУ у м. Києві,37993783,юридична особа
ГОЛОС,Київ,82,2019-08-08,138,"Гонорари, в тому числі за надані консультаційні послуги","Гонорари, в тому числі за надані консультаційні послуги",297501,Центральний офіс,39651598,Україна,Оплата за засвідчення статутних документів згідно рах. бн від 05.08.2019 без ПДВ,26005643697,current,1200.00,Волкова Світлана Михайлівна,,фізична особа
ГОЛОС,Київ,43,2019-08-08,137,Інші витрати,Інші витрати,297500,Центральний офіс,39651598,Україна,Оплата за засвідчення підпису на банківських картках згідно рах. бн від 07.08.2019 без ПДВ,26005643697,current,850.00,Волкова Світлана Михайлівна,,фізична особа
ГОЛОС,"Київ, вулиця Кирилівська, 102",72,2019-08-07,140,"Придбання, ремонт офісної техніки та програмного забезпечення (Бухгалтерські програми, Ліга.закон, домени)",Придбання офісної техніки та програмного забезпечення,297588,Центральний офіс,39651598,Україна,"Оплата за постачання компоненти компʼютерної програми ""Медок"" з переходу локальної на мережеву версію згідно рахунку № КАГ-39651598 від 01.08.2019 Без ПДВ.",26005643697,current,300.00,"ТОВ ""Софт Солюшнз""",38800462,юридична особа
ГОЛОС,Київ,66,2019-08-07,149,Повернення внесків приватних внесків (донорам),Повернення приватних внесків (донорам),297451,Центральний офіс,39651598,Україна,повернення помилково перерарахованих коштів,26005643697,current,500000.00,Вагоровський Олександр Антонович,,фізична особа
ГОЛОС,Київ,66,2019-08-07,148,Повернення внесків приватних внесків (донорам),Повернення приватних внесків (донорам),297440,Центральний офіс,39651598,Україна,повернення помилково перерарахованих коштів,26005643697,current,1000000.00,Вагоровський Олександр Антонович,,фізична особа
ГОЛОС,,67,2019-08-07,147,"Повернення коштів, що надійшли з державного бюджету","Повернення коштів, що надійшли з державного бюджету",297434,Центральний офіс,39651598,Україна,"Перерахування до державного бюджету платежу від 26.06.2019 р. у звʼязку з порушенням ЗУ ""Про політичні партії України"", ст.15.п 5 (невстановлені особи)",26005643697,current,25000.00,Бойко Юрій Володимирович,,фізична особа
ГОЛОС,,67,2019-08-07,146,"Повернення коштів, що надійшли з державного бюджету","Повернення коштів, що надійшли з державного бюджету",297432,Центральний офіс,39651598,Україна,"Перерахування до державного бюджету платежу від 25.06.2019 р. у звʼязку з порушенням ЗУ ""Про політичні партії України"", ст.15.п 5 (невстановлені особи)",26005643697,current,2000.00,Денис Іван Іванович,,фізична особа
ГОЛОС,,67,2019-08-07,145,"Повернення коштів, що надійшли з державного бюджету","Повернення коштів, що надійшли з державного бюджету",297429,Центральний офіс,39651598,Україна,"Перерахування до державного бюджету платежу від 21.06.2019 р. у звʼязку з порушенням ЗУ ""Про політичні партії України"", ст.15.п 5 (невстановлені особи)",26005643697,current,500.00,Брашкін Михайло Юрійович,,фізична особа
ГОЛОС,Київ,67,2019-08-07,144,"Повернення коштів, що надійшли з державного бюджету","Повернення коштів, що надійшли з державного бюджету",297428,Центральний офіс,39651598,Україна,"Перерахування до державного бюджету платежу від 19.06.2019 р. у звʼязку з порушенням ЗУ ""Про політичні партії України"", ст.15.п 5 (невстановлені особи)",26005643697,current,2000.00,Муц Я Є,,фізична особа
ГОЛОС,,67,2019-08-07,143,"Повернення коштів, що надійшли з державного бюджету","Повернення коштів, що надійшли з державного бюджету",297425,Центральний офіс,39651598,Україна,"Перерахування до державного бюджету платежу від 18.06.2019 р. у звʼязку з порушенням ЗУ ""Про політичні партії України"", ст.15.п 5 (невстановлені особи)",26005643697,current,10.00,Голубев В Г,,фізична особа
ГОЛОС,,67,2019-08-07,142,"Повернення коштів, що надійшли з державного бюджету","Повернення коштів, що надійшли з державного бюджету",297421,Центральний офіс,39651598,Україна,"Перерахування до державного бюджету платежу від 13.06.2019 р. у звʼязку з порушенням ЗУ ""Про політичні партії України"", ст.15.п 5 (невстановлені особи)",26005643697,current,2000.00,Костів Анатолій Богданович,,фізична особа
ГОЛОС,,67,2019-08-07,141,"Повернення коштів, що надійшли з державного бюджету","Повернення коштів, що надійшли з державного бюджету",297420,Центральний офіс,39651598,Україна,"Перерахування до державного бюджету платежу від 12.06.2019 р. у звʼязку з порушенням ЗУ ""Про політичні партії України"", ст.15.п 5 (невстановлені особи)",26005643697,current,1000.00,Хромей Юрій Васильович,,фізична особа
ГОЛОС,"Рівненська область, Рівненський район, Біла Криниця",67,2019-08-06,139,"Повернення коштів, що надійшли з державного бюджету","Повернення коштів, що надійшли з державного бюджету",297424,Центральний офіс,39651598,Україна,"Перерахування до державного бюджету платежу від 14.06.2019 р. у звʼязку з порушенням ЗУ ""Про політичні партії України"", ст.15.п 8 (податковий борг)",26005643697,current,30000.00,Ярош Євген Володимирович,,фізична особа
ГОЛОС,"Київ, вулиця Олександра Кошиця, 11",63,2019-08-05,137,Податок на доходи,Податкові платежі,297587,Центральний офіс,39651598,Україна,*;101;39651598; ПДФО за Саберфельд . ;;;;,26005643697,current,856.27,УДКСУ в Дарницькому районі,38021179,юридична особа
ГОЛОС,"Київ, вулиця Олександра Кошиця, 11",61,2019-08-05,138,Військовий збір,Податкові платежі,297586,Центральний офіс,39651598,Україна,*;101;39651598; військовий збір за Саберфельд;;;;,26005643697,current,70.96,УДКСУ в Дарницькому районі,38021179,юридична особа
ГОЛОС,"Київська обл., Ірпінь, вулиця Мінеральна, 7А, 115",69,2019-08-05,136,Організація заходів та інші організаційні послуги,Організація заходів та інші організаційні послуги,297499,Центральний офіс,39651598,Україна,"за послуги по організації зустрічей, навчань, тренінгів та інш згідно Договору п2/05 від 24.05.2019 без ПДВ",26005643697,current,15000.00,Іванченко Григорій Іванович,,фізична особа
ГОЛОС,"Київ, проспект Академіка Палладіна, 13",82,2019-08-02,134,"Гонорари, в тому числі за надані консультаційні послуги","Гонорари, в тому числі за надані консультаційні послуги",297498,Центральний офіс,39651598,Україна,Оплата за консультування згідно угоди від 23.06.2019 р. Без ПДВ.,26005643697,current,15000.00,Венгер Володимир Миколайович,,фізична особа
ГОЛОС,"Харківська область, Харків, вулиця Героїв Праці, 47А",68,2019-08-01,123,Соцдослідження,"Гонорари, в тому числі за надані консультаційні послуги",297497,Центральний офіс,39651598,Україна,Організація соціологічних досліджень та аналіз громадської думки за Договором п9/05 від 24.05.2019,26005643697,current,12000.00,Романович Дмитро Олегович,,фізична особа
ГОЛОС,"Кіровоградська область, Петрівський район, Петрове, вулиця Святкова, 25",82,2019-08-01,124,"Гонорари, в тому числі за надані консультаційні послуги","Гонорари, в тому числі за надані консультаційні послуги",297496,Центральний офіс,39651598,Україна,Написання та оформлення тексти та статей за договором п10/05 від 24.05.2019,26005643697,current,12000.00,Тимченко Ольга Григорівна,,фізична особа
ГОЛОС,"Київ, вулиця Михайла Драгомирова, 6, 19",82,2019-08-01,125,"Гонорари, в тому числі за надані консультаційні послуги","Гонорари, в тому числі за надані консультаційні послуги",297495,Центральний офіс,39651598,Україна,Послуги з райтер-медіа за Договором п11/05 від 24.05.2019,26005643697,current,12000.00,Болтушкіна Олена Валеріївна,,фізична особа
ГОЛОС,"Івано-Франківська область, Коломия, вулиця Січових Стрільців, 44, 48",82,2019-08-01,126,"Гонорари, в тому числі за надані консультаційні послуги","Гонорари, в тому числі за надані консультаційні послуги",297494,Центральний офіс,39651598,Україна,Послуги райтера соціальних медіа за Договором п12/05 від 24.05.2019,26005643697,current,12000.00,Жуков Артем Володимирович,,фізична особа
ГОЛОС,"Київ, вулиця Юрія Іллєнка, 5, 26",82,2019-08-01,127,"Гонорари, в тому числі за надані консультаційні послуги","Гонорари, в тому числі за надані консультаційні послуги",297493,Центральний офіс,39651598,Україна,Ведення зовнішнії комунікації за договором 13/05 від 24.05.2019,26005643697,current,12000.00,Дух Ярема Володимирович,,фізична особа
ГОЛОС,"Львівська область, Турківський район, Нижній Турів",82,2019-08-01,128,"Гонорари, в тому числі за надані консультаційні послуги","Гонорари, в тому числі за надані консультаційні послуги",297492,Центральний офіс,39651598,Україна,Розяснювальна работа по виборчому процесу за Договором від п15/05 від 24.05.2019. Без ПДВ.,26005643697,current,12000.00,Розлуцька Анастасія Богданівна,,фізична особа
ГОЛОС,"Київ, проспект Павла Тичини, 28, 120",82,2019-08-01,129,"Гонорари, в тому числі за надані консультаційні послуги","Гонорари, в тому числі за надані консультаційні послуги",297491,Центральний офіс,39651598,Україна,"Організація бухобліку звітності, планування та контролю за Договором п3/05 от 24.05.2019",26005643697,current,15000.00,Будник Ольга Олександрівна,,фізична особа
ГОЛОС,"Київська обл., Вишгородський район, Вишгород, вулиця Кургузова, 1-а",82,2019-08-01,130,"Гонорари, в тому числі за надані консультаційні послуги","Гонорари, в тому числі за надані консультаційні послуги",297490,Центральний офіс,39651598,Україна,"Управлінська та операційна підтримка Партії ""Голос"" за Договором п6/05 от 24.05.2019",26005643697,current,15000.00,Остапчук Роман Анатолійович,,фізична особа
ГОЛОС,"Київ, проспект Павла Тичини, 10",69,2019-08-01,131,Організація заходів та інші організаційні послуги,Організація заходів та інші організаційні послуги,297489,Центральний офіс,39651598,Україна,"Організація комунікації та публічних заходів ПП ""Голос"" за Договором п8/05 от 24.05.2019",26005643697,current,15000.00,Ключковська Ярина Юріївна,,фізична особа
ГОЛОС,"Київ, вулиця Бондарська, 3, 104",82,2019-08-01,132,"Гонорари, в тому числі за надані консультаційні послуги","Гонорари, в тому числі за надані консультаційні послуги",297488,Центральний офіс,39651598,Україна,Розроблення макету фірмого стілю та підготовка макетів для друку за договором п7/05 от 24.05.2019,26005643697,current,15000.00,Гожа Марта Едуардівна,,фізична особа
ГОЛОС,"Львівська область, Турківський район, Нижній Турів",82,2019-08-01,133,"Гонорари, в тому числі за надані консультаційні послуги","Гонорари, в тому числі за надані консультаційні послуги",297487,Центральний офіс,39651598,Україна,за послуги по організаціі роботи по підготовці інформаційного бюлетня згідно Договіру п1/05 від 24.05.2019 без ПДВ,26005643697,current,15300.00,Розлуцька Анастасія Богданівна,,фізична особа
ГОЛОС,"Чернігівська область, Чернігів, проспект Перемоги, 75, 6",69,2019-07-31,11120,Організація заходів та інші організаційні послуги,Організація заходів та інші організаційні послуги,297585,Центральний офіс,39651598,Україна,оплата за обслуговування заходу по рах. №2107-1 від 21.07.2019 без ПДВ,26005643697,current,255210.00,"ТОВ ""Квест бар""",40648667,юридична особа
ГОЛОС,"Київ, вулиця Миколи Лєскова, 9",70,2019-07-31,bn,Банківські послуги,Інші витрати,297584,Центральний офіс,39651598,Україна,"Комісія за вих перекази в нац валюті (Клієнт-Банк) з 27.06.19 по 30.07.19 по рах №26005643697(UAH) 97*2=194 грн, без ПДВ",26005643697,current,194.00,"АТ ""Райффайзен банк Аваль""",14305909,юридична особа
ГОЛОС,"Київ, вулиця Миколи Лєскова, 9",70,2019-07-31,bn,Банківські послуги,Інші витрати,297583,Центральний офіс,39651598,Україна,"Комісія за ведення поточних рахунків клієнта ПП ""ГОЛОС"" в дирек. 26-Київ за період з 27.06.19 по 30.07.19, без ПДВ",26005643697,current,250.00,"АТ ""Райффайзен банк Аваль""",14305909,юридична особа
ГОЛОС,"Київ, вулиця Терещенківська, 11А",60,2019-07-31,120,Інші податки,Податкові платежі,297582,Центральний офіс,39651598,Україна,Адміністративний збір за проведення державної реєстрації громадських формувань. Без ПДВ.,26005643697,current,580.00,ГУ ДКСУ у м. Києві,37993783,юридична особа
ГОЛОС,"Київ, вулиця Терещенківська, 11А",60,2019-07-31,121,Інші податки,Податкові платежі,297581,Центральний офіс,39651598,Україна,Плата за скорочення термінів надання послуг у сфері державної реєстрації громадських формувань. Без ПДВ.,26005643697,current,5800.00,ГУ ДКСУ у м. Києві,37993783,юридична особа
ГОЛОС,"Кіровоградська область, Кропивницький",79,2019-07-30,118,"Оренда будинків і приміщень та експлуатаційні витрати (прибирання, страхування орендованих будинків, охорона, сигналізація, ремонт, вивіз сміття, тощо)",Оренда нерухомості,297486,Центральний офіс,39651598,Україна,Оренда приміщення за липень за Договором від 10.06.2019 без ПДВ,26005643697,current,23000.00,Пушкарьов Олександр Степанович,,фізична особа
ГОЛОС,"Кіровоградська область, Кропивницький",79,2019-07-30,119,"Оренда будинків і приміщень та експлуатаційні витрати (прибирання, страхування орендованих будинків, охорона, сигналізація, ремонт, вивіз сміття, тощо)",Оренда нерухомості,297485,Центральний офіс,39651598,Україна,Відшкодування комунальних за липень за Договором від 10.06.2019 без ПДВ,26005643697,current,1360.96,Пушкарьов Олександр Степанович,,фізична особа
ГОЛОС,"Луганська область, Луганськ, вулиця Павла Сороки, 57",79,2019-07-29,104,"Оренда будинків і приміщень та експлуатаційні витрати (прибирання, страхування орендованих будинків, охорона, сигналізація, ремонт, вивіз сміття, тощо)",Оренда нерухомості,297484,Центральний офіс,39651598,Україна,"Оренда приміщення за липень за Договором суборенди від 10.06.2019, без ПДВ",26005643697,current,25993.00,Самарська-Денищенко Анна Юріївна,,фізична особа
ГОЛОС,"Сумська область, Сумський район, Суми",67,2019-07-26,103,"Повернення коштів, що надійшли з державного бюджету","Повернення коштів, що надійшли з державного бюджету",297433,Центральний офіс,39651598,Україна,"Перерахування до державного бюджету платежу від 26.06.2019 р. у звʼязку з порушенням ЗУ ""Про політичні партії України"", ст.15.п 5 (невстановлені особи)",26005643697,current,200.00,Короткова Каріна Вікторівна,,фізична особа
ГОЛОС,,67,2019-07-26,97,"Повернення коштів, що надійшли з державного бюджету","Повернення коштів, що надійшли з державного бюджету",297431,Центральний офіс,39651598,Україна,"Перерахування до державного бюджету платежу від 24.06.2019 р. у звʼязку з порушенням ЗУ ""Про політичні партії України"", ст.15.п 5 (невстановлені особи)",26005643697,current,100.00,Єрьомін Сергій Анатолійович,,фізична особа
ГОЛОС,,67,2019-07-26,96,"Повернення коштів, що надійшли з державного бюджету","Повернення коштів, що надійшли з державного бюджету",297430,Центральний офіс,39651598,Україна,"Перерахування до державного бюджету платежу від 24.06.2019 р. у звʼязку з порушенням ЗУ ""Про політичні партії України"", ст.15.п 5 (невстановлені особи)",26005643697,current,11000.00,Божок Андрій Ігорович,,фізична особа
ГОЛОС,,67,2019-07-26,98,"Повернення коштів, що надійшли з державного бюджету","Повернення коштів, що надійшли з державного бюджету",297427,Центральний офіс,39651598,Україна,"Перерахування до державного бюджету платежу від 19.06.2019 р. у звʼязку з порушенням ЗУ ""Про політичні партії України"", ст.15.п 5 (невстановлені особи)",26005643697,current,1000.00,Дахнова Галина Едуардівна,,фізична особа
ГОЛОС,,67,2019-07-26,95,"Повернення коштів, що надійшли з державного бюджету","Повернення коштів, що надійшли з державного бюджету",297426,Центральний офіс,39651598,Україна,"Перерахування до державного бюджету платежу від 19.06.2019 р. у звʼязку з порушенням ЗУ ""Про політичні партії України"", ст.15.п 5 (невстановлені особи)",26005643697,current,7500.00,Бондарчук Феодосій Романович,,фізична особа
ГОЛОС,,67,2019-07-26,99,"Повернення коштів, що надійшли з державного бюджету","Повернення коштів, що надійшли з державного бюджету",297423,Центральний офіс,39651598,Україна,"Перерахування до державного бюджету платежу від 14.06.2019 р. у звʼязку з порушенням ЗУ ""Про політичні партії України"", ст.15.п 5 (невстановлені особи)",26005643697,current,5000.00,Качуріна Наталія Миколаївна,,фізична особа
ГОЛОС,,67,2019-07-26,100,"Повернення коштів, що надійшли з державного бюджету","Повернення коштів, що надійшли з державного бюджету",297422,Центральний офіс,39651598,Україна,"Перерахування до державного бюджету платежу від 14.06.2019 р. у звʼязку з порушенням ЗУ ""Про політичні партії України"", ст.15.п 5 (невстановлені особи)",26005643697,current,15000.00,Жданов Антон Сергійович,,фізична особа
ГОЛОС,,67,2019-07-26,102,"Повернення коштів, що надійшли з державного бюджету","Повернення коштів, що надійшли з державного бюджету",297419,Центральний офіс,39651598,Україна,"Перерахування до державного бюджету платежу від 12.06.2019 р. у звʼязку з порушенням ЗУ ""Про політичні партії України"", ст.15.п 5 (невстановлені особи)",26005643697,current,800.00,Двірничук Ігор Степанович,,фізична особа
ГОЛОС,,67,2019-07-26,101,"Повернення коштів, що надійшли з державного бюджету","Повернення коштів, що надійшли з державного бюджету",297418,Центральний офіс,39651598,Україна,"Перерахування до державного бюджету платежу від 12.06.2019 р. у звʼязку з порушенням ЗУ ""Про політичні партії України"", ст.15.п 5 (невстановлені особи)",26005643697,current,1000.00,Вербіцький Сергій Васильович,,фізична особа
ГОЛОС,"Київ, вулиця Олександра Кошиця, 11",63,2019-07-25,88,Податок на доходи,Податкові платежі,297580,Центральний офіс,39651598,Україна,"""*;101;39651598; ПДФО за Саберфельд Т.Г. ;;;;",26005643697,current,4224.15,УДКСУ в Дарницькому районі,38021179,юридична особа
ГОЛОС,"Київ, вулиця Олександра Кошиця, 11",61,2019-07-25,89,Військовий збір,Податкові платежі,297579,Центральний офіс,39651598,Україна,"""*;101;39651598; військовий збір за Саберфельд Т.Г..;;;;",26005643697,current,352.01,УДКСУ в Дарницькому районі,38021179,юридична особа
ГОЛОС,"Закарпатська область, Ужгород",79,2019-07-25,86,"Оренда будинків і приміщень та експлуатаційні витрати (прибирання, страхування орендованих будинків, охорона, сигналізація, ремонт, вивіз сміття, тощо)",Оренда нерухомості,297483,Центральний офіс,39651598,Україна,Оренда приміщення за липень за Договором від 10.06.2019 без ПДВ,26005643697,current,19585.00,Рахівська Олена Андріївна,,фізична особа
ГОЛОС,"Вінницька область, Вінниця, вулиця Корольова, 38",79,2019-07-25,87,"Оренда будинків і приміщень та експлуатаційні витрати (прибирання, страхування орендованих будинків, охорона, сигналізація, ремонт, вивіз сміття, тощо)",Оренда нерухомості,297482,Центральний офіс,39651598,Україна,Оплата за оренду офісу у липні згідно договору №б/н від 08.06.2019 р. Без ПДВ,26005643697,current,18891.33,Сабельфельд Тамара Германівна,,фізична особа
ГОЛОС,"Рівненська область, Дубровицький район, Дубровиця",82,2019-07-25,94,"Гонорари, в тому числі за надані консультаційні послуги","Гонорари, в тому числі за надані консультаційні послуги",297481,Центральний офіс,39651598,Україна,Оплата за навчання спостерігачів згідно договору №19/06-1 від 19.06.2019 р. Без ПДВ,26005643697,current,87360.00,Величко-Трифонюк Руслана Володимирівна,,фізична особа
ГОЛОС,,67,2019-07-25,93,"Повернення коштів, що надійшли з державного бюджету","Повернення коштів, що надійшли з державного бюджету",297453,Центральний офіс,39651598,Україна,невірне призначення платежу,26005643697,current,7500.00,Ніцак Катерина Дмитрівна,,фізична особа
ГОЛОС,,67,2019-07-25,92,"Повернення коштів, що надійшли з державного бюджету","Повернення коштів, що надійшли з державного бюджету",297446,Центральний офіс,39651598,Україна,невірне призначення платежу,26005643697,current,1000.00,Ніцак Катерина Дмитрівна,,фізична особа
ГОЛОС,,67,2019-07-25,91,"Повернення коштів, що надійшли з державного бюджету","Повернення коштів, що надійшли з державного бюджету",297445,Центральний офіс,39651598,Україна,невірне призначення платежу,26005643697,current,1500.00,Латишев Дмитро Олександрович,,фізична особа
ГОЛОС,,67,2019-07-25,90,"Повернення коштів, що надійшли з державного бюджету","Повернення коштів, що надійшли з державного бюджету",297444,Центральний офіс,39651598,Україна,невірне призначення платежу,26005643697,current,1500.00,Латишева Яніна Іванівна,,фізична особа
ГОЛОС,"Київ, вулиця Миколи Лєскова, 9",70,2019-07-23,1E5H5693K,Банківські послуги,Інші витрати,297578,Центральний офіс,39651598,Україна,"Комісія за внесення та перерах готівки, доставленої Кл-м для зарах на поточ рах у відділенні, у якому немає відкр поточ рах Кл-та, в нац вал, без ПДВ",26005643697,current,250.00,"АТ ""Райффайзен банк Аваль""",14305909,юридична особа
ГОЛОС,"Чернігівська область, Чернігів",79,2019-07-23,71,"Оренда будинків і приміщень та експлуатаційні витрати (прибирання, страхування орендованих будинків, охорона, сигналізація, ремонт, вивіз сміття, тощо)",Оренда нерухомості,297577,Центральний офіс,39651598,Україна,Оплата за оренду офісу за липень згідно рахунку №37 від 23.07.2019 р.,26005643697,current,26001.00,"ТОВ ""Торговий дім ""Насіння Чернігівщини""",36045753,юридична особа
ГОЛОС,"Житомирська область, Житомир, вулиця Крошенська, 20, 115",79,2019-07-23,75,"Оренда будинків і приміщень та експлуатаційні витрати (прибирання, страхування орендованих будинків, охорона, сигналізація, ремонт, вивіз сміття, тощо)",Оренда нерухомості,297576,Центральний офіс,39651598,Україна,Оплата за оренду приміщення у червні згідно договору від 26.06.2019 р. Без ПДВ.,26005643697,current,1667.00,"ТОВ ""Місцеві""",42246884,юридична особа
ГОЛОС,"Житомирська область, Житомир, вулиця Крошенська, 20, 115",79,2019-07-23,76,"Оренда будинків і приміщень та експлуатаційні витрати (прибирання, страхування орендованих будинків, охорона, сигналізація, ремонт, вивіз сміття, тощо)",Оренда нерухомості,297575,Центральний офіс,39651598,Україна,Оплата за оренду приміщення у липні згідно договору від 26.06.2019 р. Без ПДВ,26005643697,current,8333.00,"ТОВ ""Місцеві""",42246884,юридична особа
ГОЛОС,"Харківська область, Харків, Вірменський провулок, 1/3",79,2019-07-23,81,"Оренда будинків і приміщень та експлуатаційні витрати (прибирання, страхування орендованих будинків, охорона, сигналізація, ремонт, вивіз сміття, тощо)",Оренда нерухомості,297574,Центральний офіс,39651598,Україна,"Оренда приміщення у липні за Договором оренди від 08.06.2019 в т.ч. ПДВ 20% 3333,33 грн",26005643697,current,20000.00,"ТОВ ""Блік""",22708573,юридична особа
ГОЛОС,"Одеська область, Одеса, Адміральський проспект, 34А",79,2019-07-23,82,"Оренда будинків і приміщень та експлуатаційні витрати (прибирання, страхування орендованих будинків, охорона, сигналізація, ремонт, вивіз сміття, тощо)",Оренда нерухомості,297573,Центральний офіс,39651598,Україна,Оренда приміщення у липні за Договором оренди № ОР/29 від 18.06.2019 в т.ч. ПДВ 2090 грн,26005643697,current,12540.00,"ПП ""Альфін""",32575150,юридична особа
ГОЛОС,"Київ, вулиця Олександра Кошиця, 11",63,2019-07-23,84,Податок на доходи,Податкові платежі,297572,Центральний офіс,39651598,Україна,*;101;39651598; ПДФО за Шиляєв О.Л.;;;;,26005643697,current,2399.40,УДКСУ в Дарницькому районі,38021179,юридична особа
ГОЛОС,"Київ, вулиця Олександра Кошиця, 11",61,2019-07-23,85,Військовий збір,Податкові платежі,297571,Центральний офіс,39651598,Україна,*;101;39651598; військовий збір за Шиляєва О.Л.;;;;,26005643697,current,199.95,УДКСУ в Дарницькому районі,38021179,юридична особа
ГОЛОС,"Київ, вулиця Олександра Кошиця, 11",63,2019-07-23,87,Податок на доходи,Податкові платежі,297570,Центральний офіс,39651598,Україна,*;101;39651598; ПДФО за Лучка А.В. ;;;;,26005643697,current,4590.00,УДКСУ в Дарницькому районі,38021179,юридична особа
ГОЛОС,"Київ, вулиця Олександра Кошиця, 11",61,2019-07-23,88,Військовий збір,Податкові платежі,297569,Центральний офіс,39651598,Україна,*;101;39651598; військовий збір за Лучка А.В.;;;;,26005643697,current,382.50,УДКСУ в Дарницькому районі,38021179,юридична особа
ГОЛОС,"Хмельницька область, Хмельницький, вулиця Героїв Майдану, 38",79,2019-07-23,1285,"Оренда будинків і приміщень та експлуатаційні витрати (прибирання, страхування орендованих будинків, охорона, сигналізація, ремонт, вивіз сміття, тощо)",Оренда нерухомості,297568,Центральний офіс,39651598,Україна,Оренда приміщення у липні за Договором суборенди від 10.06.2019 без ПДВ,26005643697,current,22000.00,"ГО ""Агенція сталого розвитку""Aсtар""",41226322,юридична особа
ГОЛОС,"Черкаська область, Черкаси, вулиця Надпільна, 351, 7",79,2019-07-23,73,"Оренда будинків і приміщень та експлуатаційні витрати (прибирання, страхування орендованих будинків, охорона, сигналізація, ремонт, вивіз сміття, тощо)",Оренда нерухомості,297480,Центральний офіс,39651598,Україна,"Оплата за оренду приміщення у червні згідно рахунку №1 від 22.07.2019 р., без ПДВ",26005643697,current,19933.33,Кошева Юлія Павлівна,,фізична особа
ГОЛОС,"Черкаська область, Черкаси, вулиця Надпільна, 351, 7",79,2019-07-23,74,"Оренда будинків і приміщень та експлуатаційні витрати (прибирання, страхування орендованих будинків, охорона, сигналізація, ремонт, вивіз сміття, тощо)",Оренда нерухомості,297479,Центральний офіс,39651598,Україна,Оплата за оренду офісу у липні згідно рахунку №2 від 22.07.2019 р. Без ПДВ,26005643697,current,26000.00,Кошева Юлія Павлівна,,фізична особа
ГОЛОС,"Волинська область, Луцький район, Струмівка, вулиця Чикаленка Євгена, 9, 3",79,2019-07-23,77,"Оренда будинків і приміщень та експлуатаційні витрати (прибирання, страхування орендованих будинків, охорона, сигналізація, ремонт, вивіз сміття, тощо)",Оренда нерухомості,297478,Центральний офіс,39651598,Україна,Оплата за оренду приміщення у червні згідно договору від 08.06.2019 р. Без ПДВ,26005643697,current,15034.33,Козак Інна Валеріївна,,фізична особа
ГОЛОС,"Чернівецька область, Чернівці, вулиця Кармелюка, 67",79,2019-07-23,80,"Оренда будинків і приміщень та експлуатаційні витрати (прибирання, страхування орендованих будинків, охорона, сигналізація, ремонт, вивіз сміття, тощо)",Оренда нерухомості,297477,Центральний офіс,39651598,Україна,Оренда приміщення у липні за Договором суборенди від 10.06.2019 без ПДВ,26005643697,current,20064.00,Жук Наталія Дмитрівна,,фізична особа
ГОЛОС,"Волинська область, Луцький район, Струмівка, вулиця Чикаленка Євгена, 9, 3",79,2019-07-23,78,"Оренда будинків і приміщень та експлуатаційні витрати (прибирання, страхування орендованих будинків, охорона, сигналізація, ремонт, вивіз сміття, тощо)",Оренда нерухомості,297476,Центральний офіс,39651598,Україна,Оплата за оренду приміщення у липні згідно договору від 08.06.2019 р. Без ПДВ,26005643697,current,19610.00,Козак Інна Валеріївна,,фізична особа
ГОЛОС,"Рівненська область, Рівне",79,2019-07-23,83,"Оренда будинків і приміщень та експлуатаційні витрати (прибирання, страхування орендованих будинків, охорона, сигналізація, ремонт, вивіз сміття, тощо)",Оренда нерухомості,297475,Центральний офіс,39651598,Україна,Оплата за оренду приміщення у липні згідно рахунку № НФ-000601 від 19.07.2019 р. Шиляєв О.Л. Без ПДВ.,26005643697,current,10730.65,Шиляєв Олександр Леонідович,,фізична особа
ГОЛОС,"Тернопільська область, Збаразький район, Збараж",79,2019-07-23,86,"Оренда будинків і приміщень та експлуатаційні витрати (прибирання, страхування орендованих будинків, охорона, сигналізація, ремонт, вивіз сміття, тощо)",Оренда нерухомості,297474,Центральний офіс,39651598,Україна,"за оренду приміщення в липні за Договором від 08.06.2019 на суму 25500,00 без ПДВ",26005643697,current,20527.50,Лучка Андрій Володимирович,,фізична особа
ГОЛОС,"Київ, проспект Перемоги, 68/1, 62",82,2019-07-19,69,"Гонорари, в тому числі за надані консультаційні послуги","Гонорари, в тому числі за надані консультаційні послуги",297567,Центральний офіс,39651598,Україна,"оплата невиключних майнових прав інтелектуальної власності відповідно до рахунку №1-44-06/19 від 15.06.19, без ПДВ",26005643697,current,50000.00,"ТОВ ""Суперсиметрія""",33602681,юридична особа
ГОЛОС,"Київ, вулиця Миколи Лєскова, 9",70,2019-07-19,1D1W5342K,Банківські послуги,Інші витрати,297566,Центральний офіс,39651598,Україна,"Комісія за внесення та перерах готівки, доставленої Кл-м для зарах на поточ рах у відділенні, у якому немає відкр поточ рах Кл-та, в нац вал, без ПДВ",26005643697,current,250.00,"АТ ""Райффайзен банк Аваль""",14305909,юридична особа
ГОЛОС,"Київ, вулиця Миколи Лєскова, 9",70,2019-07-19,1D1W5282K,Банківські послуги,Інші витрати,297565,Центральний офіс,39651598,Україна,"Комісія за внесення та перерах готівки, доставленої Кл-м для зарах на поточ рах у відділенні, у якому немає відкр поточ рах Кл-та, в нац вал, без ПДВ",26005643697,current,250.00,"АТ ""Райффайзен банк Аваль""",14305909,юридична особа
ГОЛОС,"Київ, вулиця Миколи Лєскова, 9",70,2019-07-19,1D1W4957K,Банківські послуги,Інші витрати,297564,Центральний офіс,39651598,Україна,"Комісія за внесення та перерах готівки, доставленої Кл-м для зарах на поточ рах у відділенні, у якому немає відкр поточ рах Кл-та, в нац вал, без ПДВ",26005643697,current,250.00,"АТ ""Райффайзен банк Аваль""",14305909,юридична особа
ГОЛОС,"Київ, вулиця Теремківська, 19, 57",57,2019-07-19,67,Виготовлення брендованої продукції,"Виготовлення брендованої продукції (футболки, кепки, парасольки)",297473,Центральний офіс,39651598,Україна,Брендування сцени за рахунком 68 від 19.07.19 без ПДВ,26005643697,current,76600.00,Бойко Павло Олексійович,,фізична особа
ГОЛОС,"Київ, вулиця Теремківська, 19, 57",82,2019-07-19,68,"Гонорари, в тому числі за надані консультаційні послуги","Гонорари, в тому числі за надані консультаційні послуги",297472,Центральний офіс,39651598,Україна,Віготовлення логотипу для фотозони за рахунком 67 від 19.07.19 без ПДВ,26005643697,current,15000.00,Бойко Павло Олексійович,,фізична особа
ГОЛОС,"Київ, вулиця Гродненська, 36",77,2019-07-18,59,"Оренда, ремонт та обслуговування автомобілів","Оренда, ремонт та обслуговування автомобілів",297563,Центральний офіс,39651598,Україна,"Оренда транспортних засобів, за договором 31/05-19 від 31.05.2019 в тч ПДВ",26005643697,current,1200.00,"ТОВ ""Трансформула""",42653459,юридична особа
ГОЛОС,"Київ, вулиця Шолуденка, 33/19",62,2019-07-18,61,Сплата ЄСВ,Податкові платежі,297562,Центральний офіс,39651598,Україна,*;101;39651598;ЄСВ за червень 2019 р.;;;;,26005643697,current,2346.16,ГУ ДФС у м. Києві,39439980,юридична особа
ГОЛОС,"Київ, вулиця Олександра Кошиця, 11",63,2019-07-18,62,Податок на доходи,Податкові платежі,297561,Центральний офіс,39651598,Україна,*;101;39651598;ПДФО за червень 2019 р. ;;;;,26005643697,current,1919.58,УДКСУ в Дарницькому районі,38021179,юридична особа
ГОЛОС,"Київ, вулиця Олександра Кошиця, 11",61,2019-07-18,63,Військовий збір,Податкові платежі,297560,Центральний офіс,39651598,Україна,*;101;39651598; військовий збір за червень 2019 р.;;;;,26005643697,current,159.98,УДКСУ в Дарницькому районі,38021179,юридична особа
ГОЛОС,"Київ, вулиця Жилянська, 75",46,2019-07-18,60,Перерахування коштів на виборчі рахунки партії,Перерахування коштів до виборчих фондів,297559,Центральний офіс,39651598,Україна,"+;1; кошти партії ""Голос"", внесені до виборчого фонду; без ПДВ.",26005643697,current,2000000.00,Центральний офіс Голос,39651598,юридична особа
ГОЛОС,"Івано-Франківська область, Івано-Франківськ, вулиця Августина Волошина, 11",79,2019-07-18,66,"Оренда будинків і приміщень та експлуатаційні витрати (прибирання, страхування орендованих будинків, охорона, сигналізація, ремонт, вивіз сміття, тощо)",Оренда нерухомості,297471,Центральний офіс,39651598,Україна,За оренду приміщення в липні за Договором від 10.06.2019 без ПДВ,26005643697,current,25000.00,Кузьмінський Роман Іванович,,фізична особа
ГОЛОС,"Сумська область, Суми, вулиця Інтернаціоналістів, 15, 295",79,2019-07-18,65,"Оренда будинків і приміщень та експлуатаційні витрати (прибирання, страхування орендованих будинків, охорона, сигналізація, ремонт, вивіз сміття, тощо)",Оренда нерухомості,297470,Центральний офіс,39651598,Україна,За оренду приміщення за липень 2019 р за Договором суборенди від 13.06.2019 без ПДВ,26005643697,current,6500.00,Гуменний Олександр Тихонович,,фізична особа
ГОЛОС,"Київ, вулиця Жилянська, 75",46,2019-07-17,55,Перерахування коштів на виборчі рахунки партії,Перерахування коштів до виборчих фондів,297558,Центральний офіс,39651598,Україна,"+;1; кошти партії ""Голос"", внесені до виборчого фонду; без ПДВ.",26005643697,current,5000000.00,Центральний офіс Голос,39651598,юридична особа
ГОЛОС,"Кіровоградська область, Кропивницький",79,2019-07-17,56,"Оренда будинків і приміщень та експлуатаційні витрати (прибирання, страхування орендованих будинків, охорона, сигналізація, ремонт, вивіз сміття, тощо)",Оренда нерухомості,297469,Центральний офіс,39651598,Україна,Оплата за оренду приміщення у червні згідно рахунку №1/06/19 від 22.06.2019 р. Без ПДВ,26005643697,current,15000.00,Пушкарьов Олександр Степанович,,фізична особа
ГОЛОС,"Дніпропетровська область, Дніпро́, вулиця Чиркова, 79А",43,2019-07-17,57,Інші витрати,Інші витрати,297468,Центральний офіс,39651598,Україна,оплата послуг за рахунком №1707-1 від 17.07.19 без ПДВ,26005643697,current,24310.00,Снітко Артем Станіславович,,фізична особа
ГОЛОС,"Івано-Франківська область, Богородчанський район, Богородчани, вулиця Українська",43,2019-07-17,1256,Інші витрати,Інші витрати,297467,Центральний офіс,39651598,Україна,оплата послуг по рахунку №1556 від 17.07.19 без ПДВ,26005643697,current,19610.00,Капущак Сергій Ярославович,,фізична особа
ГОЛОС,"Полтавська область, Полтава, вулиця Курчатова, 3",43,2019-07-17,54,Інші витрати,Інші витрати,297466,Центральний офіс,39651598,Україна,оплата послуг згідно з рахунком № 1 від 15.07.2019 без ПДВ,26005643697,current,80000.00,Городчаніна Юлія Валеріївна,,фізична особа
ГОЛОС,"Кіровоградська область, Кропивницький",79,2019-07-16,52,"Оренда будинків і приміщень та експлуатаційні витрати (прибирання, страхування орендованих будинків, охорона, сигналізація, ремонт, вивіз сміття, тощо)",Оренда нерухомості,297465,Центральний офіс,39651598,Україна,Оплата за оренду приміщення у червні згідно рахунку №1/06/19 від 22.06.2019 р. Без ПДВ,26005643697,current,15000.00,Пушкарьов Олександр Степанович,,фізична особа
ГОЛОС,"Київ, вулиця Жилянська, 75",46,2019-07-15,50,Перерахування коштів на виборчі рахунки партії,Перерахування коштів до виборчих фондів,297557,Центральний офіс,39651598,Україна,"+;1; кошти партії ""Голос"", внесені до виборчого фонду; без ПДВ.",26005643697,current,2000000.00,Центральний офіс Голос,39651598,юридична особа
ГОЛОС,"Київ, вулиця Жилянська, 75",46,2019-07-15,1248,Перерахування коштів на виборчі рахунки партії,Перерахування коштів до виборчих фондів,297556,Центральний офіс,39651598,Україна,"+;1; кошти партії ""Голос"", внесені до виборчого фонду; без ПДВ.",26005643697,current,1609000.00,Центральний офіс Голос,39651598,юридична особа
ГОЛОС,"Київ, вулиця Олександра Кошиця, 11",61,2019-07-15,1249,Військовий збір,Податкові платежі,297555,Центральний офіс,39651598,Україна,*;101;39651598; військовий збір за Шиляєва О.Л.;;;;,26005643697,current,153.30,УДКСУ в Дарницькому районі,38021179,юридична особа
ГОЛОС,"Київ, вулиця Олександра Кошиця, 11",63,2019-07-15,1250,Податок на доходи,Податкові платежі,297554,Центральний офіс,39651598,Україна,*;101;39651598; ПДФО за Шиляєв О.Л.;;;;,26005643697,current,1839.60,УДКСУ в Дарницькому районі,38021179,юридична особа
ГОЛОС,"Рівненська область, Рівне",79,2019-07-15,49,"Оренда будинків і приміщень та експлуатаційні витрати (прибирання, страхування орендованих будинків, охорона, сигналізація, ремонт, вивіз сміття, тощо)",Оренда нерухомості,297464,Центральний офіс,39651598,Україна,Оплата за оренду приміщення у червні згідно рахунку № НФ-000557 від 04.07.2019 р. Шиляєв О.Л. Без ПДВ.,26005643697,current,8227.10,Шиляєв Олександр Леонідович,,фізична особа
ГОЛОС,"Київ, вулиця Жилянська, 75",46,2019-07-12,47,Перерахування коштів на виборчі рахунки партії,Перерахування коштів до виборчих фондів,297553,Центральний офіс,39651598,Україна,"+;1; кошти партії ""Голос"", внесені до виборчого фонду; без ПДВ.",26005643697,current,5000000.00,Центральний офіс Голос,39651598,юридична особа
ГОЛОС,"Миколаївська область, Первомайська район, Первомайськ, вулиця Івана Виговського, 8, 4",82,2019-07-12,1247,"Гонорари, в тому числі за надані консультаційні послуги","Гонорари, в тому числі за надані консультаційні послуги",297463,Центральний офіс,39651598,Україна,Оплата за розробку макетів згідно рахунку №СФ-0000572 від 11.07.2019 р. Без ПДВ.,26005643697,current,17325.00,Кацан Наталія Василівна,,фізична особа
ГОЛОС,"Львівська область, Львів, вулиця Тадеуша Костюшка, 18",79,2019-07-11,45,"Оренда будинків і приміщень та експлуатаційні витрати (прибирання, страхування орендованих будинків, охорона, сигналізація, ремонт, вивіз сміття, тощо)",Оренда нерухомості,297552,Центральний офіс,39651598,Україна,Оплата за оренду приміщення за червень згідно рахунку №31 від 20.06.2019 р. Без ПДВ.,26005643697,current,25220.31,"ТОВ ""Елліко""",40310575,юридична особа
ГОЛОС,"Львівська область, Львів, вулиця Тадеуша Костюшка, 18",79,2019-07-11,46,"Оренда будинків і приміщень та експлуатаційні витрати (прибирання, страхування орендованих будинків, охорона, сигналізація, ремонт, вивіз сміття, тощо)",Оренда нерухомості,297551,Центральний офіс,39651598,Україна,Оплата за оренду приміщення за липень згідно рахунку №38 від 20.06.2019 р. Без ПДВ.,26005643697,current,25220.31,"ТОВ ""Елліко""",40310575,юридична особа
ГОЛОС,"Київ, вулиця Жилянська, 75",46,2019-07-11,44,Перерахування коштів на виборчі рахунки партії,Перерахування коштів до виборчих фондів,297550,Центральний офіс,39651598,Україна,"+;1; кошти партії ""Голос"", внесені до виборчого фонду; без ПДВ.",26005643697,current,12000000.00,Центральний офіс Голос,39651598,юридична особа
ГОЛОС,"Київ, вулиця Жилянська, 75",46,2019-07-09,43,Перерахування коштів на виборчі рахунки партії,Перерахування коштів до виборчих фондів,297549,Центральний офіс,39651598,Україна,"+;1; кошти партії ""Голос"", внесені до виборчого фонду; без ПДВ.",26005643697,current,7500000.00,Центральний офіс Голос,39651598,юридична особа
ГОЛОС,"Київ, вулиця Ярославів Вал, 13, 3",82,2019-07-09,42,"Гонорари, в тому числі за надані консультаційні послуги","Гонорари, в тому числі за надані консультаційні послуги",297548,Центральний офіс,39651598,Україна,"Оплата за комплекс послуг згідно рахунку акту №2-07 від 04.07.2019 до договору 14/11-19від 03.06.2019, Без ПДВ.",26005643697,current,20000.00,"ТОВ ""Голден ай""",42665003,юридична особа
ГОЛОС,"Київ, вулиця Жилянська, 75",46,2019-07-08,36,Перерахування коштів на виборчі рахунки партії,Перерахування коштів до виборчих фондів,297547,Центральний офіс,39651598,Україна,"+;1; кошти партії ""Голос"", внесені до виборчого фонду; без ПДВ.",26005643697,current,6080000.00,Центральний офіс Голос,39651598,юридична особа
ГОЛОС,"Київ, вулиця Сирецька, 9",78,2019-07-08,37,Оренда обладнання та технічних засобів,Оренда обладнання та технічних засобів,297546,Центральний офіс,39651598,Україна,За технічне забеспечення обладнанням за рахунком 07 від 08.06.19 без ПДВ,26005643697,current,416045.00,"ПП ""Медіа тек""",41673102,юридична особа
ГОЛОС,"Київ, вулиця Шота Руставелі, 15",78,2019-07-08,38,Оренда обладнання та технічних засобів,Оренда обладнання та технічних засобів,297545,Центральний офіс,39651598,Україна,"За технічне забеспечення обладнанням рахунку СФ-5 від 05.07.19 в т.ч. ПДВ 40552,27 грн",26005643697,current,243313.60,"ТОВ ""Зінтеко""",24926995,юридична особа
ГОЛОС,"Тернопільська область, Збаразький район, Збараж",79,2019-07-08,11156,"Оренда будинків і приміщень та експлуатаційні витрати (прибирання, страхування орендованих будинків, охорона, сигналізація, ремонт, вивіз сміття, тощо)",Оренда нерухомості,297462,Центральний офіс,39651598,Україна,"за оренду приміщення в червні за Договором оренди від 08.06.2019 на суму 19 550,00 без ПДВ",26005643697,current,15737.75,Лучка Андрій Володимирович,,фізична особа
ГОЛОС,"Київ, вулиця Олександра Кошиця, 11",63,2019-07-05,34,Податок на доходи,Податкові платежі,297544,Центральний офіс,39651598,Україна,*;101;39651598; ПДФО за Лучка А.В. ;;;;,26005643697,current,3519.00,УДКСУ в Дарницькому районі,38021179,юридична особа
ГОЛОС,"Київ, вулиця Олександра Кошиця, 11",61,2019-07-05,35,Військовий збір,Податкові платежі,297543,Центральний офіс,39651598,Україна,*;101;39651598; військовий збір за Лучка А.В.;;;;,26005643697,current,293.25,УДКСУ в Дарницькому районі,38021179,юридична особа
ГОЛОС,"Миколаївська область, Миколаїв, вулиця Спаська, 67",79,2019-07-05,20,"Оренда будинків і приміщень та експлуатаційні витрати (прибирання, страхування орендованих будинків, охорона, сигналізація, ремонт, вивіз сміття, тощо)",Оренда нерухомості,297542,Центральний офіс,39651598,Україна,"за оренду приміщення за Договором від 08.06.2019 сума 40000,00 грн без ПДВ",26005643697,current,40000.00,"ТОВ ""Маунт поінт""",38395445,юридична особа
ГОЛОС,"Хмельницька область, Хмельницький, вулиця Героїв Майдану, 38",79,2019-07-05,31,"Оренда будинків і приміщень та експлуатаційні витрати (прибирання, страхування орендованих будинків, охорона, сигналізація, ремонт, вивіз сміття, тощо)",Оренда нерухомості,297541,Центральний офіс,39651598,Україна,"за оренду приміщення в червні за Договором суборенди від 10.06.2019 на суму 14 666,67 без ПДВ",26005643697,current,14666.67,"ГО ""Агенція сталого розвитку""Aсtар""",41226322,юридична особа
ГОЛОС,"Київ, вулиця Жилянська, 75",46,2019-07-05,33,Перерахування коштів на виборчі рахунки партії,Перерахування коштів до виборчих фондів,297540,Центральний офіс,39651598,Україна,"+;1; кошти партії ""Голос"", внесені до виборчого фонду; без ПДВ.",26005643697,current,11500000.00,Центральний офіс Голос,39651598,юридична особа
ГОЛОС,"Одеська область, Одеса, Адміральський проспект, 34А",79,2019-07-05,23,"Оренда будинків і приміщень та експлуатаційні витрати (прибирання, страхування орендованих будинків, охорона, сигналізація, ремонт, вивіз сміття, тощо)",Оренда нерухомості,297539,Центральний офіс,39651598,Україна,"за оренду приміщення з 18.06 по 30.06.19 за Договором оренди № ОР/29 від 18.06.2019 в т.ч. ПДВ 20% 905,69",26005643697,current,5434.15,"ПП ""Альфін""",32575150,юридична особа
ГОЛОС,"Харківська область, Харків, Вірменський провулок, 1/3",79,2019-07-05,27,"Оренда будинків і приміщень та експлуатаційні витрати (прибирання, страхування орендованих будинків, охорона, сигналізація, ремонт, вивіз сміття, тощо)",Оренда нерухомості,297538,Центральний офіс,39651598,Україна,"за оренду приміщення за Договором оренди від 08.06.2019 в т.ч. ПДВ 20% 1444,44",26005643697,current,8666.66,"ТОВ ""Блік""",22708573,юридична особа
ГОЛОС,"Запорізька область, Запоріжжя, проспект Соборний, 160",79,2019-07-05,28,"Оренда будинків і приміщень та експлуатаційні витрати (прибирання, страхування орендованих будинків, охорона, сигналізація, ремонт, вивіз сміття, тощо)",Оренда нерухомості,297537,Центральний офіс,39651598,Україна,"за оренду приміщення з 18.06 по 30.06.19 за Договором оренди № MLA/214 від 14.06.2019 в т.ч. ПДВ 20% 1 043,28",26005643697,current,6259.68,"ТОВ ""Українська комерційна нерухомість""",33242664,юридична особа
ГОЛОС,"Херсонська область, Херсон, вулиця Михайлівська, 18",79,2019-07-05,29,"Оренда будинків і приміщень та експлуатаційні витрати (прибирання, страхування орендованих будинків, охорона, сигналізація, ремонт, вивіз сміття, тощо)",Оренда нерухомості,297536,Центральний офіс,39651598,Україна,"за оренду приміщення за червень-липень 2019 за Договором оренди від 18.06.2019 в т.ч. ПДВ 20% 1 283,61",26005643697,current,7701.68,"ТОВ ""Група компаній ""Содружество""",14121018,юридична особа
ГОЛОС,"Тернопільська область, Збаразький район, Збараж",79,2019-07-05,32,"Оренда будинків і приміщень та експлуатаційні витрати (прибирання, страхування орендованих будинків, охорона, сигналізація, ремонт, вивіз сміття, тощо)",Оренда нерухомості,297461,Центральний офіс,39651598,Україна,"за оренду приміщення в червні за Договором оренди від 08.06.2019 на суму 19 550,00 без ПДВ",26005643697,current,15737.75,Лучка Андрій Володимирович,,фізична особа
ГОЛОС,"Луганська область, Луганськ, вулиця Павла Сороки, 57",79,2019-07-05,24,"Оренда будинків і приміщень та експлуатаційні витрати (прибирання, страхування орендованих будинків, охорона, сигналізація, ремонт, вивіз сміття, тощо)",Оренда нерухомості,297460,Центральний офіс,39651598,Україна,"за оренду приміщення з 10.06 по 30.06.19 за Договором суборенди від 10.06.2019 сума 18195,10 без ПДВ",26005643697,current,18195.10,Самарська-Денищенко Анна Юріївна,,фізична особа
ГОЛОС,"Сумська область, Суми, вулиця Інтернаціоналістів, 15, 295",79,2019-07-05,26,"Оренда будинків і приміщень та експлуатаційні витрати (прибирання, страхування орендованих будинків, охорона, сигналізація, ремонт, вивіз сміття, тощо)",Оренда нерухомості,297459,Центральний офіс,39651598,Україна,"за оренду приміщення з 13.06 по 30.06.19 за Договором суборенди від 13.06.2019 сума 3900,00 без ПДВ",26005643697,current,3900.00,Гуменний Олександр Тихонович,,фізична особа
ГОЛОС,"Чернівецька область, Чернівці, вулиця Кармелюка, 67",79,2019-07-05,30,"Оренда будинків і приміщень та експлуатаційні витрати (прибирання, страхування орендованих будинків, охорона, сигналізація, ремонт, вивіз сміття, тощо)",Оренда нерухомості,297458,Центральний офіс,39651598,Україна,"за оренду приміщення в червні за Договором суборенди від 10.06.2019 15 382,40 без ПДВ",26005643697,current,15382.40,Жук Наталія Дмитрівна,,фізична особа
ГОЛОС,"Івано-Франківська область, Івано-Франківськ, вулиця Августина Волошина, 11",79,2019-07-05,21,"Оренда будинків і приміщень та експлуатаційні витрати (прибирання, страхування орендованих будинків, охорона, сигналізація, ремонт, вивіз сміття, тощо)",Оренда нерухомості,297457,Центральний офіс,39651598,Україна,"за оренду приміщення в червні за Договором від 10.06.2019 сума 20 000,00 без ПДВ",26005643697,current,20000.00,Кузьмінський Роман Іванович,,фізична особа
ГОЛОС,"Закарпатська область, Ужгород",79,2019-07-05,22,"Оренда будинків і приміщень та експлуатаційні витрати (прибирання, страхування орендованих будинків, охорона, сигналізація, ремонт, вивіз сміття, тощо)",Оренда нерухомості,297456,Центральний офіс,39651598,Україна,"за оренду приміщення за червень 2019 р. за Договором від 10.06.2019 сума 19585,00 без ПДВ",26005643697,current,13709.50,Рахівська Олена Андріївна,,фізична особа
ГОЛОС,"Київ, вулиця Жилянська, 75",46,2019-07-04,20,Перерахування коштів на виборчі рахунки партії,Перерахування коштів до виборчих фондів,297535,Центральний офіс,39651598,Україна,"+;1; кошти партії ""Голос"", внесені до виборчого фонду; без ПДВ.",26005643697,current,11000000.00,Центральний офіс Голос,39651598,юридична особа
ГОЛОС,"Київ, вулиця Жилянська, 75",46,2019-07-03,19,Перерахування коштів на виборчі рахунки партії,Перерахування коштів до виборчих фондів,297534,Центральний офіс,39651598,Україна,"+;1; кошти партії ""Голос"", внесені до виборчого фонду; без ПДВ.",26005643697,current,5000000.00,Центральний офіс Голос,39651598,юридична особа
ГОЛОС,"Полтавська область, Полтава",67,2019-07-02,15,"Повернення коштів, що надійшли з державного бюджету","Повернення коштів, що надійшли з державного бюджету",297450,Центральний офіс,39651598,Україна,невірне призначення платежу,26005643697,current,11700.00,Зорін Руслан Владиславович,,фізична особа
ГОЛОС,Київ,66,2019-07-02,18,Повернення внесків приватних внесків (донорам),Повернення приватних внесків (донорам),297448,Центральний офіс,39651598,Україна,повернення помилково перерарахованих коштів,26005643697,current,1498000.00,Блуділіна Ліана Володимирівна,,фізична особа
ГОЛОС,"Київ, вулиця Жилянська, 75",46,2019-07-01,11,Перерахування коштів на виборчі рахунки партії,Перерахування коштів до виборчих фондів,297533,Центральний офіс,39651598,Україна,"+;1; кошти партії ""Голос"", внесені до виборчого фонду; без ПДВ.",26005643697,current,7000000.00,Центральний офіс Голос,39651598,юридична особа
ГОЛОС,"Київ, вулиця Олени Пчілки, 2",72,2019-07-01,13,"Придбання, ремонт офісної техніки та програмного забезпечення (Бухгалтерські програми, Ліга.закон, домени)",Придбання офісної техніки та програмного забезпечення,297455,Центральний офіс,39651598,Україна,Оплата за консультаційні послуги з М.Е.Док згідно рахунку №943 від 18.06.2019 р. Бз ПДВ.,26005643697,current,440.00,Ніколайчук Людмила Леонідівна,,фізична особа
ГОЛОС,"Київ, вулиця Олени Пчілки, 2",72,2019-07-01,14,"Придбання, ремонт офісної техніки та програмного забезпечення (Бухгалтерські програми, Ліга.закон, домени)",Придбання офісної техніки та програмного забезпечення,297454,Центральний офіс,39651598,Україна,Оплата за консультування з М.Е.Док згідно рахунку №943 від 18.06.2019 р. Без ПДВ,26005643697,current,440.00,Ніколайчук Людмила Леонідівна,,фізична особа
ГОЛОС,"Київ, вулиця Жилянська, 75",46,2019-06-27,10,Перерахування коштів на виборчі рахунки партії,Перерахування коштів до виборчих фондів,297414,Центральний офіс,39651598,Україна,"+;1; кошти партії ""Голос"", внесені до виборчого фонду; без ПДВ. Сума 10000000,00 Без податку (ПДВ)",26005643697,current,10000000.00,Центральний офіс Голос,39651598,юридична особа
ГОЛОС,"Київ, вулиця Межигірська, 82А",53,2019-06-27,11,Витрати на розміщення зовнішньої реклами,Зовнішня реклама,297413,Центральний офіс,39651598,Україна,"За нанесення рекламного зображення на транспортні засоби згідно договору від 03/06/2019 від 03.06.19 В т.ч. ПДВ (20%) 41450,00",26005643697,current,248700.00,"ТОВ ""Автомагія""",34294399,юридична особа
ГОЛОС,"Київ, вулиця Ярославів Вал, 13, 3",43,2019-06-27,8,Інші витрати,Інші витрати,297412,Центральний офіс,39651598,Україна,"Оплата за комплекс послуг згідно акту №23від 18.06.2019 до договору 14/11-19 от 03.06.2019, Без ПДВ. Сума 45000,00 Без податку (ПДВ)",26005643697,current,45000.00,"ТОВ ""Голден ай""",42665003,юридична особа
ГОЛОС,"Київ, вулиця Ярославів Вал, 13, 3",43,2019-06-27,7,Інші витрати,Інші витрати,297411,Центральний офіс,39651598,Україна,"Оплата за комплекс послуг згідно акту №2 від 13.06.2019 до договору 14/11-19 от 03.06.2019, Без ПДВ.",26005643697,current,50000.00,"ТОВ ""Голден ай""",42665003,юридична особа
ГОЛОС,"Київ, вулиця Миколи Лєскова, 9",70,2019-06-27,bn,Банківські послуги,Інші витрати,297410,Центральний офіс,39651598,Україна,"Комісія за вих перекази в нац валюті (Клієнт-Банк) з 31.05.19 по 26.06.19 по рах №26005643697(UAH) 108*2=216 грн, без ПДВ",26005643697,current,216.00,"АТ ""Райффайзен банк Аваль""",14305909,юридична особа
ГОЛОС,"Київ, вулиця Миколи Лєскова, 9",70,2019-06-27,bn,Банківські послуги,Інші витрати,297409,Центральний офіс,39651598,Україна,"""Комісія за ведення поточних рахунків клієнта ПП """"ГОЛОС"""" в дирек. 26-Київ за період з 31.05.19 по 26.06.19, без ПДВ",26005643697,current,250.00,"АТ ""Райффайзен банк Аваль""",14305909,юридична особа
ГОЛОС,"Київська обл., Ірпінь, вулиця Покровська, 33",79,2019-06-27,9,"Оренда будинків і приміщень та експлуатаційні витрати (прибирання, страхування орендованих будинків, охорона, сигналізація, ремонт, вивіз сміття, тощо)",Оренда нерухомості,297315,Центральний офіс,39651598,Україна,"за оренду приміщення за Договором оренди від 08.06.2019 сума 12 500,00 Без податку (ПДВ)",26005643697,current,12500.00,Єрмоленко Валентина Анатоліївна,,фізична особа
ГОЛОС,"Київ, вулиця Братів Зерових, 21",55,2019-06-26,107,Виготовлення аудіозаписів,Реклама (без класифікації),297408,Центральний офіс,39651598,Україна,"За послуги по Своренню радіороликів за Договіром 030619/Г/1 от 03.06.2019, Рах 10 від 14.06.2019, в т.ч ПДВ 5172,20грн",26005643697,current,31034.01,"ТОВ ""Медіа сервіс ресурс""",34579126,юридична особа
ГОЛОС,"Київ, вулиця Жилянська, 75",46,2019-06-26,7,Перерахування коштів на виборчі рахунки партії,Перерахування коштів до виборчих фондів,297407,Центральний офіс,39651598,Україна,"+;1; кошти партії ""Голос"", внесені до виборчого фонду; без ПДВ.",26005643697,current,5000000.00,Центральний офіс Голос,39651598,юридична особа
ГОЛОС,"Київ, вулиця Братів Зерових, 21",79,2019-06-26,108,"Оренда будинків і приміщень та експлуатаційні витрати (прибирання, страхування орендованих будинків, охорона, сигналізація, ремонт, вивіз сміття, тощо)",Оренда нерухомості,297406,Центральний офіс,39651598,Україна,"За послуги по створенню аудіовізуального твору, за Договором 030619/Г/1 от 03.06.2019, Рах 9 від 12.06.2019, ПДВ 171150,57грн",26005643697,current,1026903.41,"ТОВ ""Медіа сервіс ресурс""",34579126,юридична особа
ГОЛОС,"Київ, вулиця Олександра Кошиця, 11",63,2019-06-25,3,Податок на доходи,Податкові платежі,297405,Центральний офіс,39651598,Україна,"""*;101;39651598; ПДФО за Саберфельд Т.Г. ;;;;",26005643697,current,3534.85,УДКСУ в Дарницькому районі,38021179,юридична особа
ГОЛОС,"Київ, вулиця Олександра Кошиця, 11",61,2019-06-25,4,Військовий збір,Податкові платежі,297404,Центральний офіс,39651598,Україна,"""*;101;39651598; військовий збір за Саберфельд Т.Г..;;;;",26005643697,current,294.57,УДКСУ в Дарницькому районі,38021179,юридична особа
ГОЛОС,"Київ, вулиця Жилянська, 75",46,2019-06-25,0,Перерахування коштів на виборчі рахунки партії,Перерахування коштів до виборчих фондів,297403,Центральний офіс,39651598,Україна,"+1; кошти партії ""Голос"", внесені до виборчого фонду по загальнодержавному багатомандатному виборчому округу; без ПДВ.",26005643697,current,15000000.00,Центральний офіс Голос,39651598,юридична особа
ГОЛОС,"Вінницька область, Вінниця, вулиця Корольова, 38",79,2019-06-25,2,"Оренда будинків і приміщень та експлуатаційні витрати (прибирання, страхування орендованих будинків, охорона, сигналізація, ремонт, вивіз сміття, тощо)",Оренда нерухомості,297314,Центральний офіс,39651598,Україна,"за оренду приміщення за Договором від 01.06.2019 Сума 19638,08 (за вырахування податку на доходи фіз. осіб та військового збору) Без податку (ПДВ)",26005643697,current,19638.08,Сабельфельд Тамара Германівна,,фізична особа
ГОЛОС,Київ,43,2019-06-19,105,Інші витрати,Інші витрати,297313,Центральний офіс,39651598,Україна,Оплата завірення підписів згідно рахунку №394 від 19.06.2019 р. Без ПДВ.,26005643697,current,500.00,Волкова Світлана Михайлівна,,фізична особа
ГОЛОС,"Київ, площа Лесі Українки, 1",59,2019-06-18,80,Грошова застава,Грошова застава,297402,Центральний офіс,39651598,Україна,Грошова застава кандидата у народні депутати України Савчина Михайла Васильовича по одномандатному округу №68,26005643697,current,41730.00,Центральна виборча комісія,21661450,юридична особа
ГОЛОС,"Київ, площа Лесі Українки, 1",59,2019-06-18,97,Грошова застава,Грошова застава,297401,Центральний офіс,39651598,Україна,Грошова застава кандидата у народні депутати України Гуйди Оксани Анатоліївни по одномандатному округу №150,26005643697,current,41730.00,Центральна виборча комісія,21661450,юридична особа
ГОЛОС,"Київ, площа Лесі Українки, 1",59,2019-06-18,81,Грошова застава,Грошова застава,297400,Центральний офіс,39651598,Україна,Грошова застава кандидата у народні депутати України Шершуна Олександра Олександровича по одномандатному округу №69,26005643697,current,41730.00,Центральна виборча комісія,21661450,юридична особа
ГОЛОС,"Київ, проспект Леся Курбаса, 2Б",57,2019-06-18,103,Виготовлення брендованої продукції,"Виготовлення брендованої продукції (футболки, кепки, парасольки)",297399,Центральний офіс,39651598,Україна,"Оплата за сувенірну продукцію згідно рахунку № 3 від 05.06.2019 р., в т.ч. ПДВ - 142832,33",26005643697,current,856994.00,"ТОВ ""Бренд диктатор""",42764373,юридична особа
ГОЛОС,"Київ, площа Лесі Українки, 1",59,2019-06-18,82,Грошова застава,Грошова застава,297398,Центральний офіс,39651598,Україна,Грошова застава кандидата у народні депутати України Розман Іванни Степанівни по одномандатному округу №71,26005643697,current,41730.00,Центральна виборча комісія,21661450,юридична особа
ГОЛОС,"Київ, площа Лесі Українки, 1",59,2019-06-18,99,Грошова застава,Грошова застава,297397,Центральний офіс,39651598,Україна,Грошова застава кандидата у народні депутати України Кисіля Віктора Васильовича по одномандатному округу №175,26005643697,current,41730.00,Центральна виборча комісія,21661450,юридична особа
ГОЛОС,"Київ, площа Лесі Українки, 1",59,2019-06-18,101,Грошова застава,Грошова застава,297396,Центральний офіс,39651598,Україна,Грошова застава кандидата у народні депутати України Кокаревича Артура Андрісовича по одномандатному округу №188,26005643697,current,41730.00,Центральна виборча комісія,21661450,юридична особа
ГОЛОС,"Київ, площа Лесі Українки, 1",59,2019-06-18,102,Грошова застава,Грошова застава,297395,Центральний офіс,39651598,Україна,Грошова застава кандидата у народні депутати України Вікнянського Миколи Львовича по одномандатному округу №135,26005643697,current,41730.00,Центральна виборча комісія,21661450,юридична особа
ГОЛОС,"Київ, площа Лесі Українки, 1",59,2019-06-18,95,Грошова застава,Грошова застава,297394,Центральний офіс,39651598,Україна,Грошова застава кандидата у народні депутати України Ткача Дмитра Володимировича по одномандатному округу №140,26005643697,current,41730.00,Центральна виборча комісія,21661450,юридична особа
ГОЛОС,"Київ, площа Лесі Українки, 1",59,2019-06-18,96,Грошова застава,Грошова застава,297393,Центральний офіс,39651598,Україна,Грошова застава кандидата у народні депутати України Політучої Анни Ігорівни по одномандатному округу №144,26005643697,current,41730.00,Центральна виборча комісія,21661450,юридична особа
ГОЛОС,"Київ, площа Лесі Українки, 1",59,2019-06-18,98,Грошова застава,Грошова застава,297392,Центральний офіс,39651598,Україна,Грошова застава кандидата у народні депутати України Чернадчука Олександра Вікторовича по одномандатному округу №158,26005643697,current,41730.00,Центральна виборча комісія,21661450,юридична особа
ГОЛОС,"Київ, площа Лесі Українки, 1",59,2019-06-18,100,Грошова застава,Грошова застава,297391,Центральний офіс,39651598,Україна,Грошова застава кандидата у народні депутати України Білецького Павла Сергійовича по одномандатному округу №182,26005643697,current,41730.00,Центральна виборча комісія,21661450,юридична особа
ГОЛОС,"Київ, площа Лесі Українки, 1",59,2019-06-18,89,Грошова застава,Грошова застава,297390,Центральний офіс,39651598,Україна,Грошова застава кандидата у народні депутати Покровської Ольги Геннадіївни по одномандатному округу №127,26005643697,current,41730.00,Центральна виборча комісія,21661450,юридична особа
ГОЛОС,"Київ, площа Лесі Українки, 1",59,2019-06-18,90,Грошова застава,Грошова застава,297389,Центральний офіс,39651598,Україна,Грошова застава кандидата у народні депутати України Покровського Романа Леонідовича по одномандатному округу №131,26005643697,current,41730.00,Центральна виборча комісія,21661450,юридична особа
ГОЛОС,"Київ, площа Лесі Українки, 1",59,2019-06-18,91,Грошова застава,Грошова застава,297388,Центральний офіс,39651598,Україна,Грошова застава кандидата у народні депутати України Атєрлєя Дмитра Григоровича по одномандатному округу №133,26005643697,current,41730.00,Центральна виборча комісія,21661450,юридична особа
ГОЛОС,"Київ, площа Лесі Українки, 1",59,2019-06-18,92,Грошова застава,Грошова застава,297387,Центральний офіс,39651598,Україна,Грошова застава кандидата у народні депутати України Богаченко Наталії Валеріївни по одномандатному округу №134,26005643697,current,41730.00,Центральна виборча комісія,21661450,юридична особа
ГОЛОС,"Київ, площа Лесі Українки, 1",59,2019-06-18,93,Грошова застава,Грошова застава,297386,Центральний офіс,39651598,Україна,Грошова застава кандидата у народні депутати України Муля Павла Валерійовича по одномандатному округу №137,26005643697,current,41730.00,Центральна виборча комісія,21661450,юридична особа
ГОЛОС,"Київ, площа Лесі Українки, 1",59,2019-06-18,94,Грошова застава,Грошова застава,297385,Центральний офіс,39651598,Україна,Грошова застава кандидата у народні депутати України Слідзюка Володимира Володимировича по одномандатному округу №139,26005643697,current,41730.00,Центральна виборча комісія,21661450,юридична особа
ГОЛОС,"Київ, площа Лесі Українки, 1",59,2019-06-18,83,Грошова застава,Грошова застава,297384,Центральний офіс,39651598,Україна,Грошова застава кандидата у народні депутати України Баранкевич Галини Євгенівни по одномандатному округу №83,26005643697,current,41730.00,Центральна виборча комісія,21661450,юридична особа
ГОЛОС,"Київ, площа Лесі Українки, 1",59,2019-06-18,84,Грошова застава,Грошова застава,297383,Центральний офіс,39651598,Україна,Грошова застава кандидата у народні депутати України Кобильника Романа Васильовича по одномандатному округу №85,26005643697,current,41730.00,Центральна виборча комісія,21661450,юридична особа
ГОЛОС,"Київ, площа Лесі Українки, 1",59,2019-06-18,85,Грошова застава,Грошова застава,297382,Центральний офіс,39651598,Україна,Грошова застава кандидата у народні депутати України Кузя Андрія Петровича по одномандатному округу №86,26005643697,current,41730.00,Центральна виборча комісія,21661450,юридична особа
ГОЛОС,"Київ, площа Лесі Українки, 1",59,2019-06-18,86,Грошова застава,Грошова застава,297381,Центральний офіс,39651598,Україна,Грошова застава кандидата у народні депутати України Тищенка Володимира Олеговича по одномандатному округу №87,26005643697,current,41730.00,Центральна виборча комісія,21661450,юридична особа
ГОЛОС,"Київ, площа Лесі Українки, 1",59,2019-06-18,87,Грошова застава,Грошова застава,297380,Центральний офіс,39651598,Україна,Грошова застава кандидата у народні депутати України Бігарі Наталії Володимирівни по одномандатному округу №90,26005643697,current,41730.00,Центральна виборча комісія,21661450,юридична особа
ГОЛОС,"Київ, площа Лесі Українки, 1",59,2019-06-18,88,Грошова застава,Грошова застава,297379,Центральний офіс,39651598,Україна,Грошова застава кандидата у народні депутати України Лисенка Микити Олександровича по одномандатному округу №91,26005643697,current,41730.00,Центральна виборча комісія,21661450,юридична особа
ГОЛОС,"Київ, площа Лесі Українки, 1",59,2019-06-18,79,Грошова застава,Грошова застава,297378,Центральний офіс,39651598,Україна,Грошова застава кандидата у народні депутати України Колесник Ірини Миколаївни по одномандатному округу №13,26005643697,current,41730.00,Центральна виборча комісія,21661450,юридична особа
ГОЛОС,"Київ, вулиця Межова, 23Б",80,2019-06-18,78,"Транспортні послуги (квитки, пасажирські перевезення і т.д.)","Транспортні послуги (квитки, пасажирські перевезення і т.д.)",297312,Центральний офіс,39651598,Україна,Оплата за пасажирські перевезення згідно рахунку №035 від 11.06.2019 р в т.ч. ПДВ 41500 грн,26005643697,current,249000.00,Чиж Олександр Миколайович,,фізична особа
ГОЛОС,"Одеська область, Одеса",66,2019-06-14,1,Повернення внесків приватних внесків (донорам),Повернення приватних внесків (донорам),297417,Центральний офіс,39651598,Україна,повернення грошового внеску,26005643697,current,26000.00,Чикур Василь Михайлович,,фізична особа
ГОЛОС,"Одеська область, Білгород-Дністровський, провулок Буджакський, 40",66,2019-06-14,1432,Повернення внесків приватних внесків (донорам),Повернення приватних внесків (донорам),297416,Центральний офіс,39651598,Україна,повернення грошового внеску,26005643697,current,5000.00,"ТОВ ""Ален груп""",38222857,юридична особа
ГОЛОС,"Київ, вулиця Героїв Космосу, 4",51,2019-06-14,71,Оплата ефірного часу на ТБ,Телереклама,297377,Центральний офіс,39651598,Україна,Оплата за послуги з розміщення рекламних матеріалів згідно рахунку №1704 від 13.06.2019 р. в т.ч. ПДВ 537702 грн,26005643697,current,3226212.00,"ТОВ ""Медіа парнерство баінг""",38990495,юридична особа
ГОЛОС,"Київ, вулиця Магнітогорська, 1",58,2019-06-14,74,"Виготовлення друкованих матеріалів (плакатів, листівок, буклетів та інших агітаційних матеріалів)",Друкована агітація,297376,Центральний офіс,39651598,Україна,"Оплата за інформаційний бюлетень згідно рахунку №19-0918 від 12.06.2019 р. в т.ч. ПДВ 11416,80 грн",26005643697,current,68500.00,"ТОВ ""Новий друк""",22891092,юридична особа
ГОЛОС,"Київ, вулиця Паньківська, 11",51,2019-06-14,73,Оплата ефірного часу на ТБ,Телереклама,297375,Центральний офіс,39651598,Україна,Оплата за надання рекламних послуг згідно рахунку № БС-00000560 від 12.06.19 р.,26005643697,current,1625706.00,"ТОВ ""СТАРЛАЙТ БРЕНД КОНТЕНТ""",35380148,юридична особа
ГОЛОС,"Київ, вулиця Межова, 23Б",80,2019-06-14,75,"Транспортні послуги (квитки, пасажирські перевезення і т.д.)","Транспортні послуги (квитки, пасажирські перевезення і т.д.)",297311,Центральний офіс,39651598,Україна,Оплата за пасажирські перевезення згідно рахунку №033 від 10.06.2019 р в т.ч. ПДВ 41500 грн,26005643697,current,249000.00,Чиж Олександр Миколайович,,фізична особа
ГОЛОС,"Київ, вулиця Жилянська, 30А",51,2019-06-14,77,Оплата ефірного часу на ТБ,Телереклама,297310,Центральний офіс,39651598,Україна,Оплата за рекламні послуги згідно рахунку № 03-05 від 31.05.2019 р. Без ПДВ,26005643697,current,1219550.00,Ведмідь Олена Олександрівна,,фізична особа
ГОЛОС,"Київ, площа Лесі Українки, 1",59,2019-06-13,65,Грошова застава,Грошова застава,297374,Центральний офіс,39651598,Україна,Грошова застава кандидата у народні депутати України Гаврона Володимира Івановича по одномандатному округу №126,26005643697,current,41730.00,Центральна виборча комісія,21661450,юридична особа
ГОЛОС,"Київ, вулиця Шолуденка, 33/19",62,2019-06-13,69,Сплата ЄСВ,Податкові платежі,297373,Центральний офіс,39651598,Україна,ЄСВ за травень,26005643697,current,275.42,ГУ ДФС у м. Києві,39439980,юридична особа
ГОЛОС,"Київ, вулиця Олександра Кошиця, 11",61,2019-06-13,67,Військовий збір,Податкові платежі,297372,Центральний офіс,39651598,Україна,Військовий збір за травень,26005643697,current,18.78,УДКСУ в Дарницькому районі,38021179,юридична особа
ГОЛОС,"Київ, вулиця Олександра Кошиця, 11",63,2019-06-13,68,Податок на доходи,Податкові платежі,297371,Центральний офіс,39651598,Україна,ПДФО із ЗП за травень 2019 ВИЯСНИТИ,26005643697,current,225.34,УДКСУ в Дарницькому районі,38021179,юридична особа
ГОЛОС,"Київ, площа Лесі Українки, 1",59,2019-06-13,66,Грошова застава,Грошова застава,297370,Центральний офіс,39651598,Україна,Грошова застава кандидата у народні депутати України Салко Віту Степанівну по одномандатному округу №164,26005643697,current,41730.00,Центральна виборча комісія,21661450,юридична особа
ГОЛОС,"Київ, вулиця Хрещатик, 27А",51,2019-06-13,70,Оплата ефірного часу на ТБ,Телереклама,297369,Центральний офіс,39651598,Україна,"Оплата за рекламні послуги згідно договору №П-19 від 13.06.2019 р. в т.ч. ПДВ - 22961,80",26005643697,current,137770.80,"ТОВ ""Медіа хаб""",41544263,юридична особа
ГОЛОС,"Київ, площа Лесі Українки, 1",59,2019-06-13,62,Грошова застава,Грошова застава,297368,Центральний офіс,39651598,Україна,Грошова застава кандидата у народні депутати України Скорик-Шкарівську Михайлину Михайлівну по одномандатному округу №95,26005643697,current,41730.00,Центральна виборча комісія,21661450,юридична особа
ГОЛОС,"Київ, площа Лесі Українки, 1",59,2019-06-13,63,Грошова застава,Грошова застава,297367,Центральний офіс,39651598,Україна,Грошова застава кандидата у народні депутати України Замідру Сергія Володимировича по одномандатному округу №96,26005643697,current,41730.00,Центральна виборча комісія,21661450,юридична особа
ГОЛОС,"Київ, площа Лесі Українки, 1",59,2019-06-13,64,Грошова застава,Грошова застава,297366,Центральний офіс,39651598,Україна,Грошова застава кандидата у народні депутати України Андрейка Віталія Васильовича по одномандатному округу №122,26005643697,current,41730.00,Центральна виборча комісія,21661450,юридична особа
ГОЛОС,"Київ, площа Лесі Українки, 1",59,2019-06-12,56,Грошова застава,Грошова застава,297365,Центральний офіс,39651598,Україна,Грошова застава кандидата у народні депутати України Черкашина Максима Володимировича по одномандатному округу №163,26005643697,current,41730.00,Центральна виборча комісія,21661450,юридична особа
ГОЛОС,"Київ, площа Лесі Українки, 1",59,2019-06-12,50,Грошова застава,Грошова застава,297364,Центральний офіс,39651598,Україна,Грошова застава кандидата у народні депутати України Вережака Івана Михайловича по одномандатному округу №88,26005643697,current,41730.00,Центральна виборча комісія,21661450,юридична особа
ГОЛОС,"Київ, площа Лесі Українки, 1",59,2019-06-12,51,Грошова застава,Грошова застава,297363,Центральний офіс,39651598,Україна,Грошова застава кандидата у народні депутати України Рущишина Ярослава Івановича по одномандатному округу №117,26005643697,current,41730.00,Центральна виборча комісія,21661450,юридична особа
ГОЛОС,"Київ, площа Лесі Українки, 1",59,2019-06-12,60,Грошова застава,Грошова застава,297362,Центральний офіс,39651598,Україна,Грошова застава кандидата у народні депутати України Ємця Леоніда Олександровича по одномандатному округу №221,26005643697,current,41730.00,Центральна виборча комісія,21661450,юридична особа
ГОЛОС,"Київ, площа Лесі Українки, 1",59,2019-06-12,52,Грошова застава,Грошова застава,297361,Центральний офіс,39651598,Україна,Грошова застава кандидата у народні депутати України Шибу Олега Ярославовича по одномандатному округу №119,26005643697,current,41730.00,Центральна виборча комісія,21661450,юридична особа
ГОЛОС,"Київ, площа Лесі Українки, 1",59,2019-06-12,53,Грошова застава,Грошова застава,297360,Центральний офіс,39651598,Україна,Грошова застава кандидата у народні депутати України Елейка Тараса Васильовича по одномандатному округу №120,26005643697,current,41730.00,Центральна виборча комісія,21661450,юридична особа
ГОЛОС,"Київ, площа Лесі Українки, 1",59,2019-06-12,54,Грошова застава,Грошова застава,297359,Центральний офіс,39651598,Україна,Грошова застава кандидата у народні депутати України Зауральського Ростислава Валентиновича по одномандатному округу №146,26005643697,current,41730.00,Центральна виборча комісія,21661450,юридична особа
ГОЛОС,"Київ, площа Лесі Українки, 1",59,2019-06-12,55,Грошова застава,Грошова застава,297358,Центральний офіс,39651598,Україна,Грошова застава кандидата у народні депутати України Бондаренка Валентина Борисовича по одномандатному округу №161,26005643697,current,41730.00,Центральна виборча комісія,21661450,юридична особа
ГОЛОС,"Київ, площа Лесі Українки, 1",59,2019-06-12,57,Грошова застава,Грошова застава,297357,Центральний офіс,39651598,Україна,Грошова застава кандидата у народні депутати України Мартюка Василя Івановича по одномандатному округу №165,26005643697,current,41730.00,Центральна виборча комісія,21661450,юридична особа
ГОЛОС,"Київ, площа Лесі Українки, 1",59,2019-06-12,58,Грошова застава,Грошова застава,297356,Центральний офіс,39651598,Україна,Грошова застава кандидата у народні депутати України Коваль Аліну Володимирівну по одномандатному округу №187,26005643697,current,41730.00,Центральна виборча комісія,21661450,юридична особа
ГОЛОС,"Київ, площа Лесі Українки, 1",59,2019-06-12,59,Грошова застава,Грошова застава,297355,Центральний офіс,39651598,Україна,Грошова застава кандидата у народні депутати України Усенка Анатолія Анатолійовича по одномандатному округу №208,26005643697,current,41730.00,Центральна виборча комісія,21661450,юридична особа
ГОЛОС,"Київ, площа Лесі Українки, 1",59,2019-06-12,49,Грошова застава,Грошова застава,297354,Центральний офіс,39651598,Україна,Грошова застава кандидата у народні депутати України Соболівського Антона Михайловича по одномандатному округу №66,26005643697,current,41730.00,Центральна виборча комісія,21661450,юридична особа
ГОЛОС,Київ,43,2019-06-12,61,Інші витрати,Інші витрати,297309,Центральний офіс,39651598,Україна,Оплата завірення підписів згідно рахунку №392 від 11.06.2019 р. Без ПДВ.,26005643697,current,700.00,Волкова Світлана Михайлівна,,фізична особа
ГОЛОС,Київ,66,2019-06-11,1170755,Повернення внесків приватних внесків (донорам),Повернення приватних внесків (донорам),297415,Центральний офіс,39651598,Україна,повернення грошового внеску,26005643697,current,1595000.00,Лімаков Володимир Олександрович,,фізична особа
ГОЛОС,"Київ, площа Лесі Українки, 1",59,2019-06-11,30,Грошова застава,Грошова застава,297353,Центральний офіс,39651598,Україна,Грошова застава кандидата у народні депутати України Піпи Наталії Романівни по одномандатному округу №115,26005643697,current,41730.00,Центральна виборча комісія,21661450,юридична особа
ГОЛОС,"Київ, площа Лесі Українки, 1",59,2019-06-11,31,Грошова застава,Грошова застава,297352,Центральний офіс,39651598,Україна,Грошова застава кандидата у народні депутати України Романяк Марти Олегівни по одномандатному округу №116,26005643697,current,41730.00,Центральна виборча комісія,21661450,юридична особа
ГОЛОС,"Київ, площа Лесі Українки, 1",59,2019-06-11,20,Грошова застава,Грошова застава,297351,Центральний офіс,39651598,Україна,Грошова застава кандидата у народні депутати України Панащенка Юрія Володимировича по одномандатному округу №26,26005643697,current,41730.00,Центральна виборча комісія,21661450,юридична особа
ГОЛОС,"Київ, площа Лесі Українки, 1",59,2019-06-11,21,Грошова застава,Грошова застава,297350,Центральний офіс,39651598,Україна,Грошова застава кандидата у народні депутати України Різник Яніну Володимирівну по одномандатному округу №27,26005643697,current,41730.00,Центральна виборча комісія,21661450,юридична особа
ГОЛОС,"Київ, площа Лесі Українки, 1",59,2019-06-11,22,Грошова застава,Грошова застава,297349,Центральний офіс,39651598,Україна,Грошова застава кандидата у народні депутати України Данилюка Олександра Мирославовича по одномандатному округу №72,26005643697,current,41730.00,Центральна виборча комісія,21661450,юридична особа
ГОЛОС,"Київ, площа Лесі Українки, 1",59,2019-06-11,23,Грошова застава,Грошова застава,297348,Центральний офіс,39651598,Україна,Грошова застава кандидата у народні депутати України Керечана Тараса Михайловича по одномандатному округу №73,26005643697,current,41730.00,Центральна виборча комісія,21661450,юридична особа
ГОЛОС,"Київ, площа Лесі Українки, 1",59,2019-06-11,25,Грошова застава,Грошова застава,297347,Центральний офіс,39651598,Україна,Грошова застава кандидата у народні депутати України Савченко Олександри Юріївни по одномандатному округу №75,26005643697,current,41730.00,Центральна виборча комісія,21661450,юридична особа
ГОЛОС,"Київ, площа Лесі Українки, 1",59,2019-06-11,29,Грошова застава,Грошова застава,297346,Центральний офіс,39651598,Україна,Грошова застава кандидата у народні депутати України Різаненка Павла Олександровича по одномандатному округу №97,26005643697,current,41730.00,Центральна виборча комісія,21661450,юридична особа
ГОЛОС,"Київ, площа Лесі Українки, 1",59,2019-06-11,44,Грошова застава,Грошова застава,297345,Центральний офіс,39651598,Україна,Грошова застава кандидата у народні депутати України Кияка Максима Тарасовича по одномандатному округу №201,26005643697,current,41730.00,Центральна виборча комісія,21661450,юридична особа
ГОЛОС,"Київ, площа Лесі Українки, 1",59,2019-06-11,45,Грошова застава,Грошова застава,297344,Центральний офіс,39651598,Україна,Грошова застава кандидата у народні депутати України Козака Тараса Мирославовича по одномандатному округу №211,26005643697,current,41730.00,Центральна виборча комісія,21661450,юридична особа
ГОЛОС,"Київ, площа Лесі Українки, 1",59,2019-06-11,46,Грошова застава,Грошова застава,297343,Центральний офіс,39651598,Україна,Грошова застава кандидата у народні депутати України Васильчука Вадима Васильовича по одномандатному округу №214,26005643697,current,41730.00,Центральна виборча комісія,21661450,юридична особа
ГОЛОС,"Київ, вулиця Кирилівська, 102",72,2019-06-11,19,"Придбання, ремонт офісної техніки та програмного забезпечення (Бухгалтерські програми, Ліга.закон, домени)",Придбання офісної техніки та програмного забезпечення,297342,Центральний офіс,39651598,Україна,"""Оплата за програмний комплекс """"Варта"""" згідно рахунку №ТКК-39651598 від 10.06.19 р. в т.ч. ПДВ 2 грн.""",26005643697,current,292.00,"ТОВ ""Центр сертифікації ключів ""Україна""",36865753,юридична особа
ГОЛОС,"Київ, площа Лесі Українки, 1",59,2019-06-11,47,Грошова застава,Грошова застава,297341,Центральний офіс,39651598,Україна,Грошова застава кандидата у народні депутати України Кузьменка Андрія Павловича по одномандатному округу №215,26005643697,current,41730.00,Центральна виборча комісія,21661450,юридична особа
ГОЛОС,"Київ, площа Лесі Українки, 1",59,2019-06-11,48,Грошова застава,Грошова застава,297340,Центральний офіс,39651598,Україна,Грошова застава кандидата у народні депутати України Пташник Вікторію Юріївну по одномандатному округу №223,26005643697,current,41730.00,Центральна виборча комісія,21661450,юридична особа
ГОЛОС,"Київ, площа Лесі Українки, 1",59,2019-06-11,34,Грошова застава,Грошова застава,297339,Центральний офіс,39651598,Україна,Грошова застава кандидата у народні депутати України Чолія Тараса Богдановича по одномандатному округу №123,26005643697,current,41730.00,Центральна виборча комісія,21661450,юридична особа
ГОЛОС,"Київ, вулиця Маршала Рибалка, 11",72,2019-06-11,18,"Придбання, ремонт офісної техніки та програмного забезпечення (Бухгалтерські програми, Ліга.закон, домени)",Придбання офісної техніки та програмного забезпечення,297338,Центральний офіс,39651598,Україна,За програм М.Е.Док згідно рахунку №17642 від 10.06.2019 р. Без ПДВ.,26005643697,current,2102.00,"ТОВ ""ЦПЗ ""Софтком""",38516922,юридична особа
ГОЛОС,"Київ, площа Лесі Українки, 1",59,2019-06-11,35,Грошова застава,Грошова застава,297337,Центральний офіс,39651598,Україна,Грошова застава кандидата у народні депутати України Ведровську Валентину Валентинівну по одномандатному округу №124,26005643697,current,41730.00,Центральна виборча комісія,21661450,юридична особа
ГОЛОС,"Київ, площа Лесі Українки, 1",59,2019-06-11,36,Грошова застава,Грошова застава,297336,Центральний офіс,39651598,Україна,Грошова застава кандидата у народні депутати України Кобзара Артура Анатолійовича по одномандатному округу №148,26005643697,current,41730.00,Центральна виборча комісія,21661450,юридична особа
ГОЛОС,"Київ, площа Лесі Українки, 1",59,2019-06-11,37,Грошова застава,Грошова застава,297335,Центральний офіс,39651598,Україна,Грошова застава кандидата у народні депутати України Войціцьку Вікторію Михайлівну по одномандатному округу №155,26005643697,current,41730.00,Центральна виборча комісія,21661450,юридична особа
ГОЛОС,"Київ, площа Лесі Українки, 1",59,2019-06-11,26,Грошова застава,Грошова застава,297334,Центральний офіс,39651598,Україна,Грошова застава кандидата у народні депутати України Гергелюка Володимира Івановича по одномандатному округу №84,26005643697,current,41730.00,Центральна виборча комісія,21661450,юридична особа
ГОЛОС,"Київ, площа Лесі Українки, 1",59,2019-06-11,27,Грошова застава,Грошова застава,297333,Центральний офіс,39651598,Україна,Грошова застава кандидата у народні депутати України Качкана Віталія Васильовича по одномандатному округу №89,26005643697,current,41730.00,Центральна виборча комісія,21661450,юридична особа
ГОЛОС,"Київ, площа Лесі Українки, 1",59,2019-06-11,28,Грошова застава,Грошова застава,297332,Центральний офіс,39651598,Україна,Грошова застава кандидата у народні депутати України Оксаніченко Анни Володимирівни по одномандатному округу №94,26005643697,current,41730.00,Центральна виборча комісія,21661450,юридична особа
ГОЛОС,"Київ, площа Лесі Українки, 1",59,2019-06-11,38,Грошова застава,Грошова застава,297331,Центральний офіс,39651598,Україна,Грошова застава кандидата у народні депутати України Пехотіна Андрія Васильовича по одномандатному округу №156,26005643697,current,41730.00,Центральна виборча комісія,21661450,юридична особа
ГОЛОС,"Київ, площа Лесі Українки, 1",59,2019-06-11,39,Грошова застава,Грошова застава,297330,Центральний офіс,39651598,Україна,Грошова застава кандидата у народні депутати України Вітвіцького Олега Івановича по одномандатному округу №166,26005643697,current,41730.00,Центральна виборча комісія,21661450,юридична особа
ГОЛОС,"Київ, площа Лесі Українки, 1",59,2019-06-11,40,Грошова застава,Грошова застава,297329,Центральний офіс,39651598,Україна,Грошова застава кандидата у народні депутати України Квач Аллу Василівну по одномандатному округу №167,26005643697,current,41730.00,Центральна виборча комісія,21661450,юридична особа
ГОЛОС,"Київ, площа Лесі Українки, 1",59,2019-06-11,41,Грошова застава,Грошова застава,297328,Центральний офіс,39651598,Україна,Грошова застава кандидата у народні депутати України Артеменка Віктора Володимировича по одномандатному округу №191,26005643697,current,41730.00,Центральна виборча комісія,21661450,юридична особа
ГОЛОС,"Київ, площа Лесі Українки, 1",59,2019-06-11,42,Грошова застава,Грошова застава,297327,Центральний офіс,39651598,Україна,Грошова застава кандидата у народні депутати України Євпака Віктора Миколайовича по одномандатному округу №194,26005643697,current,41730.00,Центральна виборча комісія,21661450,юридична особа
ГОЛОС,"Київ, площа Лесі Українки, 1",59,2019-06-11,43,Грошова застава,Грошова застава,297326,Центральний офіс,39651598,Україна,Грошова застава кандидата у народні депутати України Друмашка Володимира Григоровича по одномандатному округу №195,26005643697,current,41730.00,Центральна виборча комісія,21661450,юридична особа
ГОЛОС,"Київ, площа Лесі Українки, 1",59,2019-06-11,32,Грошова застава,Грошова застава,297325,Центральний офіс,39651598,Україна,Грошова застава кандидата у народні депутати України Васильченко Галини Іванівни по одномандатному округу №118,26005643697,current,41730.00,Центральна виборча комісія,21661450,юридична особа
ГОЛОС,"Київ, площа Лесі Українки, 1",59,2019-06-11,33,Грошова застава,Грошова застава,297324,Центральний офіс,39651598,Україна,Грошова застава кандидата у народні депутати України Огньова Дмитра Володимировича по одномандатному округу №121,26005643697,current,41730.00,Центральна виборча комісія,21661450,юридична особа
ГОЛОС,"Київ, проспект Леся Курбаса, 2Б",58,2019-06-10,17,"Виготовлення друкованих матеріалів (плакатів, листівок, буклетів та інших агітаційних матеріалів)",Друкована агітація,297323,Центральний офіс,39651598,Україна,Оплата за поліграфічну продукцію згідно рахунку №4 від 10.06.2019 р. в т.ч. ПДВ 124280 грн,26005643697,current,745680.00,"ТОВ ""Бренд диктатор""",42764373,юридична особа
ГОЛОС,"Київ, вулиця Ярославів Вал, 13, 3",43,2019-06-10,15,Інші витрати,Інші витрати,297322,Центральний офіс,39651598,Україна,Оплата за комплекс послуг згідно рахунку №1-06 від 10.06.2019 рю Без ПДВ.,26005643697,current,50000.00,"ТОВ ""Голден ай""",42665003,юридична особа
ГОЛОС,"Київська обл., Обухівський район, Нещерів",58,2019-06-10,16,"Виготовлення друкованих матеріалів (плакатів, листівок, буклетів та інших агітаційних матеріалів)",Друкована агітація,297308,Центральний офіс,39651598,Україна,Оплата за листівки логотипи згідно рахунку № 124 від 07.06.2019 р. Без ПДВ,26005643697,current,33900.00,Кішка Іван Васильович,,фізична особа
ГОЛОС,"Київ, вулиця Володимирська, 2",69,2019-06-07,8,Організація заходів та інші організаційні послуги,Організація заходів та інші організаційні послуги,297321,Центральний офіс,39651598,Україна,"Оплата за послуги з організації заходу згідно рахунку № 38 від 06.06.2019 р., без ПДВ.",26005643697,current,220000.00,Національний музей історії України,02226103,юридична особа
ГОЛОС,"Житомирська область, Житомир, вулиця Небесної Сотні, 44, 57",57,2019-06-07,14,Виготовлення брендованої продукції,"Виготовлення брендованої продукції (футболки, кепки, парасольки)",297320,Центральний офіс,39651598,Україна,Оплата за контрольні браслети згідно рахунку № СФ-0000428. В т.ч. ПДВ 4000 грн,26005643697,current,24000.00,"ТОВ ""Комодо альянс""",37221035,юридична особа
ГОЛОС,"Київ, площа Лесі Українки, 1",59,2019-06-07,10,Грошова застава,Грошова застава,297319,Центральний офіс,39651598,Україна,"""Грошова застава кандидатів у народні депутати України, включених до виборчого списку політичної партії """"ГОЛОС"""". Без ПДВ.""",26005643697,current,4173000.00,Центральна виборча комісія,21661450,юридична особа
ГОЛОС,"Київська обл., Києво-Святошинський район, Боярка, вулиця Білогородська, 21, 72",43,2019-06-07,13,Інші витрати,Інші витрати,297307,Центральний офіс,39651598,Україна,Оплата за 5808 тасьму С згідно рахунку № 231 від 06.06.2019 р. Без ПДВ.,26005643697,current,26400.00,Демидов Олексій Вікторович,,фізична особа
ГОЛОС,"Київ, вулиця Алматинська, 39Е, 92",80,2019-06-07,12,"Транспортні послуги (квитки, пасажирські перевезення і т.д.)","Транспортні послуги (квитки, пасажирські перевезення і т.д.)",297306,Центральний офіс,39651598,Україна,Оплата за транспортні послуги згідно рахунку №46 від 07.06.2019 р. Без ПДВ,26005643697,current,499000.00,Ступак Олександр Сергійович,,фізична особа
ГОЛОС,"Київ, вулиця Теремківська, 19, 57",43,2019-06-07,9,Інші витрати,Інші витрати,297305,Центральний офіс,39651598,Україна,Оплата за виготовлення подіуму згідно рахунку №СФ-0000057,26005643697,current,40000.00,Бойко Павло Олексійович,,фізична особа
ГОЛОС,"Київ, вулиця Межова, 23Б",80,2019-06-07,11,"Транспортні послуги (квитки, пасажирські перевезення і т.д.)","Транспортні послуги (квитки, пасажирські перевезення і т.д.)",297304,Центральний офіс,39651598,Україна,Оплата за пасажирські перевезення згідно рахунку №031 від 05.06.2019р. В т.ч. ПДВ 41500 грн.,26005643697,current,249000.00,Чиж Олександр Миколайович,,фізична особа
ГОЛОС,"Київ, проспект Леся Курбаса, 2Б",57,2019-06-06,7,Виготовлення брендованої продукції,"Виготовлення брендованої продукції (футболки, кепки, парасольки)",297318,Центральний офіс,39651598,Україна,"Оплата за сувенірну продукцію згідно рахунку № 2 від 05.06.2019 р., в т.ч. ПДВ - 166666,67",26005643697,current,1000000.00,"ТОВ ""Бренд диктатор""",42764373,юридична особа
ГОЛОС,"Київ, вулиця Межигірська, 82А",43,2019-06-04,0,Інші витрати,Інші витрати,297317,Центральний офіс,39651598,Україна,"Оплата за договором Договір Сума 248700,00 В т.ч. ПДВ(20%) 41450,00",26005643697,current,248700.00,"ТОВ ""Автомагія""",34294399,юридична особа
ГОЛОС,"Київ, вулиця Гродненська, 36",80,2019-06-04,6,"Транспортні послуги (квитки, пасажирські перевезення і т.д.)","Транспортні послуги (квитки, пасажирські перевезення і т.д.)",297316,Центральний офіс,39651598,Україна,Оплата за пасажирську перевезення згідно рахунку №СФ-01 від 3.06.2019 р. в т.ч. ПДВ 25000 грн,26005643697,current,150000.00,"ТОВ ""Трансформула""",42653459,юридична особа
